Workbook

Sheet Програм
A1: Обрасци за припрему програмског буџета
A2: 1. ПРОГРАМ
A4: Назив програма: | D4: Програм 9. Основно образовање и вспитање
A5: Шифра програма: | D5: 2002
A6: Сектор: | D6: Образовање
A7: Сврха: | D7: Доступност основног образовања свој деци са територије града/ општине у складу са прописаним стандардима.
A8: Основ: | D8: Закон о основама образовања и васпитања, Закон о основном образовању, Стратегија развоја образовања до 2020.г.
A9: Опис: | D9: Активности које се односе на побољшање квалитета образовања.
A10: Назив организационе јединице/Буџетски корисник: | D10: ОШ ,, ДЕСАНКА МАКСИМОВИЋ ,, ГРДЕЛИЦА
A11: Одговорно лице за спровођење програмa: | D11: Ненад Младеновић
B13: Циљ* | D13: Индикатори**
D14: Назив индикатора | G14: Вредност у базној години (2017) | H14: Очекивана вредност у 2018. години | I14: Циљана вредност у 2019. години | J14: Циљана вредност у 2020. години | K14: Циљана вредност у 2021. години | L14: Извор верификације
A15: 1 | B15: Потпуни обухват основним образовањем и васпитањем | D15: Обухват деце основним образовањем | G15: 638 | H15: 655 | I15: 574 | J15: 600 | K15: 600 | L15: Документација школе
D16: Стопа прекида основног образовања | G16: 2 | H16: 0 | I16: 0 | J16: 0 | K16: 0 | L16: Документација школе
B19: Циљ | D19: Индикатори
D20: Назив индикатора | G20: Вредност у базној години (2017) | H20: Очекивана вредност у 2018. години | I20: Циљана вредност у 2019. години | J20: Циљана вредност у 2020. години | K20: Циљана вредност у 2021. години | L20: Извор верификације
A21: 2 | B21: Унапређење доступности основног образовања деци из осетљивих група | D21: Проценат деце која се школују у редовним основним школама на основу - ИОП-а у односу на укупан број | G21: 2.20 | H21: 2.50 | I21: 0,17 | J21: 0,20 | K21: 0,20 | L21: Документација школе
D22: Број објеката који су прилагодили простор за децу са инвалидитетом у односу на укупан број објеката основних школа | G22: 0 | H22: 0 | I22: 0 | J22: 0 | K22: 0 | L22: Документација школе
B25: Циљ | D25: Индикатори
D26: Назив индикатора | G26: Вредност у базној години (2017) | H26: Очекивана вредност у 2018. години | I26: Циљана вредност у 2019. години | J26: Циљана вредност у 2020. години | K26: Циљана вредност у 2021. години | L26: Извор верификације
A27: 3 | B27: Унапређен квалитет основног образовања | D27: Просечан број поена на матурском испиту | G27: 11.79 | H27: 10.88 | I27: 12 | J27: 16 | K27: 16 | L27: Документација школе
D28: Проценат ученика који је учествовао на републичким такмичењима | G28: 0.6 | H28: 0.3 | I28: 0.3 | J28: 0.75 | K28: 0.75 | L28: Документација школе
A32: ПЛАНИРАНА СРЕДСТВА ЗА ПРОГРАМ
A33: Рбр. | B33: Конто | C33: ОПИС | D33: Вредност у базној години (2017) | F33: Очекивана вредност у 2018. години | H33: Вредност у 2019. години | J33: Вредност у 2020. години | L33: Вредност у 2021. години | N33: Укупно (2019-2021)
D34: Приходи из буџета | E34: Приходи из осталих извора | F34: Приходи из буџета | G34: Приходи из осталих извора | H34: Приходи из буџета | I34: Приходи из осталих извора | J34: Приходи из буџета | K34: Приходи из осталих извора | L34: Приходи из буџета | M34: Приходи из осталих извора | N34: Приходи из буџета | O34: Приходи из осталих извора
A35: 1 | B35: 2 | C35: 3 | D35: 4 | E35: 5 | F35: 6 | G35: 7 | H35: 8 | I35: 9 | J35: 10 | K35: 11 | L35: 12 | M35: 13 | N35: 14=(8+10+12) | O35: 15=(9+11+13)
A36: 1 | B36: 300000 | C36: КАПИТАЛ, УТВРЂИВАЊЕ РЕЗУЛТАТА ПОСЛОВАЊА И ВАНБИЛАНСНА ЕВИДЕНЦИЈА (2 + 5) | D36: =SUM(D37,D40) -> 0 | E36: =SUM(E37,E40) -> 0 | F36: 0 | G36: 9000 | H36: 0 | I36: 0 | J36: 0 | K36: 0 | L36: 0 | M36: 0 | N36: 0 | O36: 0
A37: 2 | B37: 310000 | C37: КАПИТАЛ (3) | D37: =SUM(D38) -> 0 | E37: =SUM(E38) -> 0 | F37: =SUM(F38) -> 0 | G37: 0 | H37: 0 | I37: 0 | J37: 0 | K37: 0 | L37: 0 | M37: 0 | N37: 0 | O37: 0
A38: 3 | B38: 311000 | C38: КАПИТАЛ (4) | D38: =SUM(D39) -> 0 | E38: =SUM(E39) -> 0 | F38: 0 | G38: 0 | H38: 0 | I38: 0 | J38: 0 | K38: 0 | L38: 0 | M38: 0 | N38: =SUM(N39) -> 0 | O38: 0
A39: 4 | B39: 311700 | C39: Пренета неутрошена средства из ранијих година | N39: =SUM(H39,J39,L39) -> 0 | O39: =SUM(I39,K39,M39) -> 0
A40: 5 | B40: 320000 | C40: УТВРЂИВАЊЕ РЕЗУЛТАТА ПОСЛОВАЊА (6) | D40: =SUM(D41) -> 0 | E40: =SUM(E41) -> 0 | F40: 0 | G40: 9000 | H40: 0 | I40: 0 | J40: 0 | K40: 0 | L40: 0 | M40: 0 | N40: 0 | O40: 0
A41: 6 | B41: 321000 | C41: УТВРЂИВАЊЕ РЕЗУЛТАТА ПОСЛОВАЊА (7) | D41: =SUM(D42) -> 0 | E41: 0 | F41: 0 | G41: 9000 | H41: 0 | I41: 0 | J41: 0 | K41: 0 | L41: 0 | M41: 0 | N41: 0 | O41: 0
A42: 7 | B42: 321300 | C42: Нераспоређени вишак прихода и примања или дефицит из ранијих година | G42: 9000 | N42: =SUM(H42,J42,L42) -> 0 | O42: =SUM(I42,K42,M42) -> 0
A43: =A42+1 -> 8 | B43: 700000 | C43: ТЕКУЋИ ПРИХОДИ (9 + 32 + 44 + 69 + 74 +78) | D43: =D44+D67+D79+D104+D109+D113 -> 8057000 | E43: =E44+E67+E79+E104+E109+E113 -> 68759000 | F43: 16169000 | G43: 72873000 | H43: 16475000 | I43: 80491000 | J43: 17630000 | K43: 104880000 | L43: 17630000 | M43: 104880000 | N43: =N44+N67+N79+N104+N109+N113 -> 51735000 | O43: 290251000
A44: =A43+1 -> 9 | B44: 710000 | C44: ПОРЕЗИ (10 + 14 + 16 + 23 + 29) | D44: =D45+D49+D51+D58+D64 -> 0 | E44: =E45+E49+E51+E58+E64 -> 0 | F44: 0 | G44: 0 | H44: 0 | I44: 0 | J44: 0 | K44: 0 | L44: 0 | M44: 0 | N44: 0 | O44: 0
A45: 10 | B45: 711000 | C45: ПОРЕЗ НА ДОХОДАК, ДОБИТ И КАПИТАЛНЕ ДОБИТКЕ (од 11 до 13) | D45: =SUM(D46:D48) -> 0 | E45: =SUM(E46:E48) -> 0 | F45: 0 | G45: 0 | H45: 0 | I45: 0 | J45: 0 | K45: 0 | L45: 0 | M45: 0 | N45: =SUM(H45,J45,L45) -> 0 | O45: 0
A46: 11 | B46: 711100 | C46: Порези на доходак и капиталнe добиткe које плаћају физичка лица | N46: 0 | O46: 0
A47: 12 | B47: 711200 | C47: Порези на добит и капиталне добитке које плаћају предузећа и друга правна лица | N47: 0 | O47: 0
A48: 13 | B48: 711300 | C48: Порези на доходак, добит и капиталне добитке који се не могу разврстати између физичких и правних лица | N48: 0 | O48: 0
A49: 14 | B49: 712000 | C49: ПОРЕЗ НА ФОНД ЗАРАДА (15) | D49: =SUM(D50) -> 0 | E49: 0 | F49: 0 | G49: 0 | H49: 0 | I49: 0 | J49: 0 | K49: 0 | L49: 0 | M49: 0 | N49: 0 | O49: 0
A50: 15 | B50: 712100 | C50: Порез на фонд зарада | N50: 0 | O50: 0
A51: 16 | B51: 713000 | C51: ПОРЕЗ НА ИМОВИНУ (од 17 до 22) | D51: =SUM(D52:D57) -> 0 | E51: 0 | F51: 0 | G51: 0 | H51: 0 | I51: 0 | J51: 0 | K51: 0 | L51: 0 | M51: 0 | N51: 0 | O51: 0
A52: 17 | B52: 713100 | C52: Периодични порези на непокретности | N52: 0 | O52: 0
A53: 18 | B53: 713200 | C53: Периодични порези на нето имовину | N53: 0 | O53: 0
A54: 19 | B54: 713300 | C54: Порези на заоставштину, наслеђе и поклон | N54: 0 | O54: 0
A55: 20 | B55: 713400 | C55: Порези на финансијске и капиталне трансакције | N55: 0 | O55: 0
A56: 21 | B56: 713500 | C56: Други једнократни порези на имовину | N56: 0 | O56: 0
A57: 22 | B57: 713600 | C57: Други периодични порези на имовину | N57: 0 | O57: 0
A58: 23 | B58: 714000 | C58: ПОРЕЗ НА ДОБРА И УСЛУГЕ (од 24 до 28) | D58: =SUM(D59:D63) -> 0 | E58: 0 | F58: 0 | G58: 0 | H58: 0 | I58: 0 | J58: 0 | K58: 0 | L58: 0 | M58: 0 | N58: 0 | O58: 0
A59: 24 | B59: 714100 | C59: Општи порези на добра и услуге | N59: 0 | O59: 0
A60: 25 | B60: 714300 | C60: Добит фискалних монопола | N60: 0 | O60: 0
A61: 26 | B61: 714400 | C61: Порези на појединачне услуге | N61: 0 | O61: 0
A62: 27 | B62: 714500 | C62: Порези, таксе и накнаде на употребу добара, на дозволу да се добра употребљавају или делатности обављају | N62: 0 | O62: 0
A63: 28 | B63: 714600 | C63: Други порези на добра и услуге | N63: 0 | O63: 0
A64: 29 | B64: 716000 | C64: ДРУГИ ПОРЕЗИ (30 + 31) | D64: =SUM(D65:D66) -> 0 | E64: 0 | F64: 0 | G64: 0 | H64: 0 | I64: 0 | J64: 0 | K64: 0 | L64: 0 | M64: 0 | N64: 0 | O64: 0
A65: 30 | B65: 716100 | C65: Други порези које искључиво плаћају предузећа, односно предузетници | N65: 0 | O65: 0
A66: 31 | B66: 716200 | C66: Други порези које плаћају остала лица или који се не могу идентификовати | N66: 0 | O66: 0
A67: 32 | B67: 730000 | C67: ДОНАЦИЈЕ, ПОМОЋИ И ТРАНСФЕРИ (33 + 36 + 41) | D67: =D68+D71+D76 -> 0 | E67: =E68+E71+E76 -> 124000 | F67: 0 | G67: 76000 | H67: 0 | I67: 425000 | J67: 0 | K67: 460000 | L67: 0 | M67: 460000 | N67: 0 | O67: 1345000
A68: 33 | B68: 731000 | C68: ДОНАЦИЈЕ ОД ИНОСТРАНИХ ДРЖАВА (34 + 35) | D68: =SUM(D69:D70) -> 0 | E68: 0 | F68: 0 | G68: 0 | H68: 0 | I68: 0 | J68: 0 | K68: 0 | L68: 0 | M68: 0 | N68: 0 | O68: 0
A69: 34 | B69: 731100 | C69: Текуће донације од иностраних држава | N69: 0 | O69: 0
A70: 35 | B70: 731200 | C70: Капиталне донације од иностраних држава | N70: 0 | O70: 0
A71: 36 | B71: 732000 | C71: ДОНАЦИЈЕ И ПОМОЋИ ОД МЕЂУНАРОДНИХ ОРГАНИЗАЦИЈА (од 37 до 40) | D71: =SUM(D72:D75) -> 0 | E71: =SUM(E72:E75) -> 124000 | F71: 0 | G71: 76000 | H71: 0 | I71: 425000 | J71: 0 | K71: 460000 | L71: 0 | M71: 460000 | N71: 0 | O71: 1345000
A72: 37 | B72: 732100 | C72: Текуће донације од међународних организација | E72: 124000 | G72: 76000 | I72: 425000 | K72: 460000 | M72: 460000 | N72: 0 | O72: 1345000
A73: 38 | B73: 732200 | C73: Капиталне донације од међународних организација | N73: 0 | O73: 0
A74: 39 | B74: 732300 | C74: Текуће помоћи од ЕУ | N74: 0 | O74: 0
A75: 40 | B75: 732400 | C75: Капиталне помоћи од ЕУ | N75: 0 | O75: 0
A76: 41 | B76: 733000 | C76: ТРАНСФЕРИ ОД ДРУГИХ НИВОА ВЛАСТИ (42 + 43) | D76: =SUM(D77:D78) -> 0 | E76: 0 | F76: 0 | G76: 0 | H76: 0 | I76: 0 | J76: 0 | K76: 0 | L76: 0 | M76: 0 | N76: =SUM(H76,J76,L76) -> 0 | O76: 0
A77: 42 | B77: 733100 | C77: Текући трансфери од других нивоа власти | N77: 0 | O77: 0
A78: 43 | B78: 733200 | C78: Капитални трансфери од других нивоа власти | N78: 0 | O78: 0
A79: 44 | B79: 740000 | C79: ДРУГИ ПРИХОДИ (45 + 52 + 57 + 64 + 67) | D79: =D80+D87+D92+D99+D102 -> 0 | E79: =E80+E87+E92+E99+E102 -> 2806000 | F79: 0 | G79: 3034000 | H79: 0 | I79: 3480000 | J79: 0 | K79: 3520000 | L79: 0 | M79: 3520000 | N79: 0 | O79: 10520000
A80: 45 | B80: 741000 | C80: ПРИХОДИ ОД ИМОВИНЕ (од 46 до 51) | D80: =SUM(D81:D86) -> 0 | E80: =SUM(E81:E86) -> 0 | F80: 0 | G80: 0 | H80: 0 | I80: 0 | J80: 0 | K80: 0 | L80: 0 | M80: 0 | N80: 0 | O80: 0
A81: 46 | B81: 741100 | C81: Камате | N81: 0 | O81: 0
A82: 47 | B82: 741200 | C82: Дивиденде | N82: 0 | O82: 0
A83: 48 | B83: 741300 | C83: Повлачење прихода од квази корпорација | N83: 0 | O83: 0
A84: 49 | B84: 741400 | C84: Приход од имовине који припада имаоцима полиса осигурања | N84: 0 | O84: 0
A85: 50 | B85: 741500 | C85: Закуп непроизведене имовине | N85: 0 | O85: 0
A86: 51 | B86: 741600 | C86: Финансијске промене на финансијским лизинзима | N86: 0 | O86: 0
A87: 52 | B87: 742000 | C87: ПРИХОДИ ОД ПРОДАЈЕ ДОБАРА И УСЛУГА (од 53 до 56) | D87: =SUM(D88:D91) -> 0 | E87: 2806000 | F87: 0 | G87: 3034000 | H87: 0 | I87: 3480000 | J87: 0 | K87: 3520000 | L87: 0 | M87: 3520000 | N87: 0 | O87: 10520000
A88: 53 | B88: 742100 | C88: Приходи од продаје добара и услуга или закупа од стране тржишних организација | N88: 0 | O88: 0
A89: 54 | B89: 742200 | C89: Таксе и накнаде | N89: 0 | O89: 0
A90: 55 | B90: 742300 | C90: Споредне продаје добара и услуга које врше државне нетржишне јединице | E90: 2806000 | G90: 3034000 | I90: 3480000 | K90: 3520000 | M90: 3520000 | N90: 0 | O90: 10520000
A91: 56 | B91: 742400 | C91: Импутиране продаје добара и услуга | N91: 0 | O91: 0
A92: 57 | B92: 743000 | C92: НОВЧАНЕ КАЗНЕ И ОДУЗЕТА ИМОВИНСКА КОРИСТ (од 58 до 63) | D92: =SUM(D93:D98) -> 0 | E92: 0 | F92: 0 | G92: 0 | H92: 0 | I92: 0 | J92: 0 | K92: 0 | L92: 0 | M92: 0 | N92: 0 | O92: 0
A93: 58 | B93: 743100 | C93: Приходи од новчаних казни за кривична дела | N93: 0 | O93: 0
A94: 59 | B94: 743200 | C94: Приходи од новчаних казни за привредне преступе | N94: 0 | O94: 0
A95: 60 | B95: 743300 | C95: Приходи од новчаних казни за прекршаје | N95: 0 | O95: 0
A96: 61 | B96: 743400 | C96: Приходи од пенала | N96: 0 | O96: 0
A97: 62 | B97: 743500 | C97: Приходи од одузете имовинске користи | N97: 0 | O97: 0
A98: 63 | B98: 743900 | C98: Остале новчане казне, пенали и приходи од одузете имовинске користи | N98: 0 | O98: 0
A99: 64 | B99: 744000 | C99: ДОБРОВОЉНИ ТРАНСФЕРИ ОД ФИЗИЧКИХ И ПРАВНИХ ЛИЦА (65 + 66) | D99: =SUM(D100:D101) -> 0 | E99: 0 | F99: 0 | G99: 0 | H99: 0 | I99: 0 | J99: 0 | K99: 0 | L99: 0 | M99: 0 | N99: 0 | O99: 0
A100: 65 | B100: 744100 | C100: Текући добровољни трансфери од физичких и правних лица | N100: 0 | O100: 0
A101: 66 | B101: 744200 | C101: Капитални добровољни трансфери од физичких и правних лица | N101: 0 | O101: 0
A102: 67 | B102: 745000 | C102: МЕШОВИТИ И НЕОДРЕЂЕНИ ПРИХОДИ (68) | D102: =D103 -> 0 | E102: =E103 -> 0 | F102: 0 | G102: 0 | H102: 0 | I102: 0 | J102: 0 | K102: 0 | L102: 0 | M102: 0 | N102: 0 | O102: 0
A103: 68 | B103: 745100 | C103: Мешовити и неодређени приходи | N103: 0 | O103: 0
A104: 69 | B104: 770000 | C104: МЕМОРАНДУМСКЕ СТАВКЕ ЗА РЕФУНДАЦИЈУ РАСХОДА (70 + 72) | D104: =D105+D107 -> 0 | E104: 2690000 | F104: 0 | G104: 1812000 | H104: 0 | I104: 1000000 | J104: 0 | K104: 2000000 | L104: 0 | M104: 2000000 | N104: 0 | O104: 5000000
A105: 70 | B105: 771000 | C105: МЕМОРАНДУМСКЕ СТАВКЕ ЗА РЕФУНДАЦИЈУ РАСХОДА (71) | D105: =D106 -> 0 | E105: =E106 -> 2690000 | F105: 0 | G105: 1812000 | H105: 0 | I105: 1000000 | J105: 0 | K105: 2000000 | L105: 0 | M105: 2000000 | N105: 0 | O105: 5000000
A106: 71 | B106: 771100 | C106: Меморандумске ставке за рефундацију расхода | E106: 2690000 | G106: 1812000 | I106: 1000000 | K106: 2000000 | M106: 2000000 | N106: 0 | O106: 5000000
A107: 72 | B107: 772000 | C107: МЕМОРАНДУМСКЕ СТАВКЕ ЗА РЕФУНДАЦИЈУ РАСХОДА ИЗ ПРЕТХОДНЕ ГОДИНЕ (73) | D107: =D108 -> 0 | E107: =E108 -> 0 | F107: 0 | G107: 0 | H107: 0 | I107: 0 | J107: 0 | K107: 0 | L107: 0 | M107: 0 | N107: 0 | O107: 0
A108: =A107+1 -> 73 | B108: 772100 | C108: Меморандумске ставке за рефундацију расхода из претходне године | N108: 0 | O108: 0
A109: 74 | B109: 780000 | C109: ТРАНСФЕРИ ИЗМЕЂУ БУЏЕТСКИХ КОРИСНИКА НА ИСТОМ НИВОУ (75) | D109: =D110 -> 0 | E109: 0 | F109: 0 | G109: 0 | H109: 0 | I109: 0 | J109: 0 | K109: 0 | L109: 0 | M109: 0 | N109: 0 | O109: 0
A110: 75 | B110: 781000 | C110: ТРАНСФЕРИ ИЗМЕЂУ БУЏЕТСКИХ КОРИСНИКА НА ИСТОМ НИВОУ (76 + 77) | D110: =SUM(D111:D112) -> 0 | E110: 0 | F110: 0 | G110: 0 | H110: 0 | I110: 0 | J110: 0 | K110: 0 | L110: 0 | M110: 0 | N110: 0 | O110: 0
A111: 76 | B111: 781100 | C111: Трансфери између буџетских корисника на истом нивоу | N111: =SUM(H111,J111,L111) -> 0 | O111: =SUM(I111,K111,M111) -> 0
A112: 77 | B112: 781300 | C112: Трансфери између организација обавезног социјалног осигурања | N112: 0 | O112: 0
A113: 78 | B113: 790000 | C113: ПРИХОДИ ИЗ БУЏЕТА (79) | D113: =D114 -> 8057000 | E113: 63139000 | F113: 16169000 | G113: 67951000 | H113: 16475000 | I113: 75586000 | J113: 17630000 | K113: 98900000 | L113: 17630000 | M113: 98900000 | N113: 51735000 | O113: 273386000
A114: 79 | B114: 791000 | C114: ПРИХОДИ ИЗ БУЏЕТА (80) | D114: =D115 -> 8057000 | E114: 63139000 | F114: 16169000 | G114: 67951000 | H114: 16475000 | I114: 75586000 | J114: 17630000 | K114: 98900000 | L114: 17630000 | M114: 98900000 | N114: 51735000 | O114: 273386000
A115: 80 | B115: 791100 | C115: Приходи из буџета | D115: 8057000 | E115: 63139000 | F115: 16169000 | G115: 67951000 | H115: 16475000 | I115: 75586000 | J115: 17630000 | K115: 98900000 | L115: 17630000 | M115: 98900000 | N115: 51735000 | O115: 273386000
A116: 81 | B116: 800000 | C116: ПРИМАЊА ОД ПРОДАЈЕ НЕФИНАНСИЈСКЕ ИМОВИНЕ (82 + 89 + 96 + 99) | D116: =D117+D124+D131+D134 -> 0 | E116: =E117+E124+E131+E134 -> 0 | F116: 0 | G116: 0 | H116: 0 | I116: 0 | J116: 0 | K116: 0 | L116: 0 | M116: 0 | N116: 0 | O116: 0
A117: 82 | B117: 810000 | C117: ПРИМАЊА ОД ПРОДАЈЕ ОСНОВНИХ СРЕДСТАВА (83 + 85 + 87) | D117: =D118+D120+D122 -> 0 | E117: =E118+E120+E122 -> 0 | F117: 0 | G117: 0 | H117: 0 | I117: 0 | J117: 0 | K117: 0 | L117: 0 | M117: 0 | N117: 0 | O117: 0
A118: 83 | B118: 811000 | C118: ПРИМАЊА ОД ПРОДАЈЕ НЕПОКРЕТНОСТИ (84) | D118: =D119 -> 0 | E118: =E119 -> 0 | F118: 0 | G118: 0 | H118: 0 | I118: 0 | J118: 0 | K118: 0 | L118: 0 | M118: 0 | N118: 0 | O118: 0
A119: 84 | B119: 811100 | C119: Примања од продаје непокретности | N119: 0 | O119: 0
A120: 85 | B120: 812000 | C120: ПРИМАЊА ОД ПРОДАЈЕ ПОКРЕТНЕ ИМОВИНЕ (86) | D120: =D121 -> 0 | E120: 0 | F120: 0 | G120: 0 | H120: 0 | I120: 0 | J120: 0 | K120: 0 | L120: 0 | M120: 0 | N120: 0 | O120: 0
A121: 86 | B121: 812100 | C121: Примања од продаје покретне имовине | N121: 0 | O121: 0
A122: 87 | B122: 813000 | C122: ПРИМАЊА ОД ПРОДАЈЕ ОСТАЛИХ ОСНОВНИХ СРЕДСТАВА (88) | D122: =D123 -> 0 | E122: 0 | F122: 0 | G122: 0 | H122: 0 | I122: 0 | J122: 0 | K122: 0 | L122: 0 | M122: 0 | N122: 0 | O122: 0
A123: 88 | B123: 813100 | C123: Примања од продаје осталих основних средстава | N123: 0 | O123: 0
A124: 89 | B124: 820000 | C124: ПРИМАЊА ОД ПРОДАЈЕ ЗАЛИХА (90 + 92 + 94) | D124: =D125+D127+D129 -> 0 | E124: 0 | F124: 0 | G124: 0 | H124: 0 | I124: 0 | J124: 0 | K124: 0 | L124: 0 | M124: 0 | N124: 0 | O124: 0
A125: 90 | B125: 821000 | C125: ПРИМАЊА ОД ПРОДАЈЕ РОБНИХ РЕЗЕРВИ (91) | D125: =D126 -> 0 | E125: 0 | F125: 0 | G125: 0 | H125: 0 | I125: 0 | J125: 0 | K125: 0 | L125: 0 | M125: 0 | N125: 0 | O125: 0
A126: 91 | B126: 821100 | C126: Примања од продаје робних резерви | N126: 0 | O126: 0
A127: 92 | B127: 822000 | C127: ПРИМАЊА ОД ПРОДАЈЕ ЗАЛИХА ПРОИЗВОДЊЕ (93) | D127: =D128 -> 0 | E127: 0 | F127: 0 | G127: 0 | H127: 0 | I127: 0 | J127: 0 | K127: 0 | L127: 0 | M127: 0 | N127: 0 | O127: 0
A128: 93 | B128: 822100 | C128: Примања од продаје залиха производње | N128: 0 | O128: 0
A129: 94 | B129: 823000 | C129: ПРИМАЊА ОД ПРОДАЈЕ РОБЕ ЗА ДАЉУ ПРОДАЈУ (95) | D129: =D130 -> 0 | E129: 0 | F129: 0 | G129: 0 | H129: 0 | I129: 0 | J129: 0 | K129: 0 | L129: 0 | M129: 0 | N129: 0 | O129: 0
A130: 95 | B130: 823100 | C130: Примања од продаје робе за даљу продају | N130: 0 | O130: 0
A131: 96 | B131: 830000 | C131: ПРИМАЊА ОД ПРОДАЈЕ ДРАГОЦЕНОСТИ (97) | D131: =D132 -> 0 | E131: 0 | F131: 0 | G131: 0 | H131: 0 | I131: 0 | J131: 0 | K131: 0 | L131: 0 | M131: 0 | N131: 0 | O131: 0
A132: 97 | B132: 831000 | C132: ПРИМАЊА ОД ПРОДАЈЕ ДРАГОЦЕНОСТИ (98) | D132: 0 | E132: 0 | F132: 0 | G132: 0 | H132: 0 | I132: 0 | J132: 0 | K132: 0 | L132: 0 | M132: 0 | N132: 0 | O132: 0
A133: 98 | B133: 831100 | C133: Примања од продаје драгоцености | N133: 0 | O133: 0
A134: 99 | B134: 840000 | C134: ПРИМАЊА ОД ПРОДАЈЕ ПРИРОДНЕ ИМОВИНЕ (100 + 102 + 104) | D134: =D135+D137+D139 -> 0 | E134: 0 | F134: 0 | G134: 0 | H134: 0 | I134: 0 | J134: 0 | K134: 0 | L134: 0 | M134: 0 | N134: 0 | O134: 0
A135: 100 | B135: 841000 | C135: ПРИМАЊА ОД ПРОДАЈЕ ЗЕМЉИШТА (101) | D135: =D136 -> 0 | E135: 0 | F135: 0 | G135: 0 | H135: 0 | I135: 0 | J135: 0 | K135: 0 | L135: 0 | M135: 0 | N135: 0 | O135: 0
A136: 101 | B136: 841100 | C136: Примања од продаје земљишта | N136: 0 | O136: 0
A137: 102 | B137: 842000 | C137: ПРИМАЊА ОД ПРОДАЈЕ ПОДЗЕМНИХ БЛАГА (103) | D137: =D138 -> 0 | E137: 0 | F137: 0 | G137: 0 | H137: 0 | I137: 0 | J137: 0 | K137: 0 | L137: 0 | M137: 0 | N137: 0 | O137: 0
A138: 103 | B138: 842100 | C138: Примања од продаје подземних блага | N138: 0 | O138: 0
A139: 104 | B139: 843000 | C139: ПРИМАЊА ОД ПРОДАЈЕ ШУМА И ВОДА (105) | D139: =D140 -> 0 | E139: 0 | F139: 0 | G139: 0 | H139: 0 | I139: 0 | J139: 0 | K139: 0 | L139: 0 | M139: 0 | N139: 0 | O139: 0
A140: 105 | B140: 843100 | C140: Примања од продаје шума и вода | N140: =SUM(H140,J140,L140) -> 0 | O140: 0
A141: 106 | B141: 900000 | C141: ПРИМАЊА ОД ЗАДУЖИВАЊА И ПРОДАЈЕ ФИНАНСИЈСКЕ ИМОВИНЕ (107 + 126) | D141: =D142+D161 -> 0 | E141: =E142+E161 -> 0 | F141: 0 | G141: 0 | H141: 0 | I141: 0 | J141: 0 | K141: 0 | L141: 0 | M141: 0 | N141: 0 | O141: 0
A142: 107 | B142: 910000 | C142: ПРИМАЊА ОД ЗАДУЖИВАЊА (108+118) | D142: =D143+D153 -> 0 | E142: =E143+E153 -> 0 | F142: 0 | G142: 0 | H142: 0 | I142: 0 | J142: 0 | K142: 0 | L142: 0 | M142: 0 | N142: 0 | O142: 0
A143: 108 | B143: 911000 | C143: ПРИМАЊА ОД ДОМАЋИХ ЗАДУЖИВАЊА (од 109 до 117) | D143: =SUM(D144:D152) -> 0 | E143: 0 | F143: 0 | G143: 0 | H143: 0 | I143: 0 | J143: 0 | K143: 0 | L143: 0 | M143: 0 | N143: 0 | O143: 0
A144: 109 | B144: 911100 | C144: Примања од емитовања домаћих хартија од вредности, изузев акција | N144: 0 | O144: 0
A145: 110 | B145: 911200 | C145: Примања од задуживања од осталих нивоа власти | N145: 0 | O145: 0
A146: 111 | B146: 911300 | C146: Примања од задуживања од јавних финансијских институција у земљи | N146: 0 | O146: 0
A147: 112 | B147: 911400 | C147: Примања од задуживања од пословних банака у земљи | N147: 0 | O147: 0
A148: 113 | B148: 911500 | C148: Примања од задуживања код осталих поверилаца у земљи | N148: 0 | O148: 0
A149: 114 | B149: 911600 | C149: Примања од задуживања од домаћинстава у земљи | N149: 0 | O149: 0
A150: 115 | B150: 911700 | C150: Примања од домаћих финансијских деривата | N150: 0 | O150: 0
A151: 116 | B151: 911800 | C151: Примања од домаћих меница | N151: 0 | O151: 0
A152: 117 | B152: 911900 | C152: Исправка унутрашњег дуга | N152: 0 | O152: 0
A153: 118 | B153: 912000 | C153: ПРИМАЊА ОД ИНОСТРАНОГ ЗАДУЖИВАЊА (од 119 + 125) | D153: =SUM(D154:D160) -> 0 | E153: 0 | F153: 0 | G153: 0 | H153: 0 | I153: 0 | J153: 0 | K153: 0 | L153: 0 | M153: 0 | N153: 0 | O153: 0
A154: 119 | B154: 912100 | C154: Примања од емитовања хартија од вредности, изузев акција, на иностраном финансијском тржишту | N154: 0 | O154: 0
A155: 120 | B155: 912200 | C155: Примања од задуживања од иностраних држава | N155: 0 | O155: 0
A156: 121 | B156: 912300 | C156: Примања од задуживања од мултилатералних институција | N156: 0 | O156: 0
A157: 122 | B157: 912400 | C157: Примања од задуживања од иностраних пословних банака | N157: 0 | O157: 0
A158: 123 | B158: 912500 | C158: Примања од задуживања од осталих иностраних поверилаца | N158: 0 | O158: 0
A159: 124 | B159: 912600 | C159: Примања од иностраних финансијских деривата | N159: 0 | O159: 0
A160: 125 | B160: 912900 | C160: Исправка спољног дуга | N160: 0 | O160: 0
A161: 126 | B161: 920000 | C161: ПРИМАЊА ОД ПРОДАЈЕ ФИНАНСИЈСКЕ ИМОВИНЕ (127 + 137) | D161: =D162+D172 -> 0 | E161: 0 | F161: 0 | G161: 0 | H161: 0 | I161: 0 | J161: 0 | K161: 0 | L161: 0 | M161: 0 | N161: 0 | O161: 0
A162: 127 | B162: 921000 | C162: ПРИМАЊА ОД ПРОДАЈЕ ДОМАЋЕ ФИНАНСИЈСКЕ ИМОВИНЕ (од 128 до 136) | D162: =SUM(D163:D171) -> 0 | E162: 0 | F162: 0 | G162: 0 | H162: 0 | I162: 0 | J162: 0 | K162: 0 | L162: 0 | M162: 0 | N162: 0 | O162: 0
A163: 128 | B163: 921100 | C163: Примања од продаје домаћих хартија од вредности, изузев акција | N163: 0 | O163: 0
A164: 129 | B164: 921200 | C164: Примања од отплате кредита датих осталим нивоима власти | N164: 0 | O164: 0
A165: 130 | B165: 921300 | C165: Примања од отплате кредита датих домаћим јавним финансијским институцијама | N165: 0 | O165: 0
A166: 131 | B166: 921400 | C166: Примања од отплате кредита домаћим пословним банкама | N166: 0 | O166: 0
A167: 132 | B167: 921500 | C167: Примања од отплате кредита датих домаћим јавним нефинансијским институцијама | N167: 0 | O167: 0
A168: 133 | B168: 921600 | C168: Примања од отплате кредита датих физичким лицима и домаћинствима у земљи | N168: 0 | O168: 0
A169: 134 | B169: 921700 | C169: Примања од отплате кредита датих удружењима грађана у земљи | N169: 0 | O169: 0
A170: 135 | B170: 921800 | C170: Примања од отплате кредита датих нефинансијским приватним предузећима у земљи | N170: 0 | O170: 0
A171: 136 | B171: 921900 | C171: Примања од продаје домаћих акција и осталог капитала | N171: 0 | O171: 0
A172: =A171+1 -> 137 | B172: 922000 | C172: ПРИМАЊА ОД ПРОДАЈЕ СТРАНЕ ФИНАНСИЈСКЕ ИМОВИНЕ (од 138 до 145) | D172: =SUM(D173:D180) -> 0 | E172: =SUM(E173:E180) -> 0 | F172: 0 | G172: 0 | H172: 0 | I172: 0 | J172: 0 | K172: 0 | L172: 0 | M172: 0 | N172: 0 | O172: 0
A173: 138 | B173: 922100 | C173: Примања од продаје страних хартија од вредности, изузев акција | N173: 0 | O173: 0
A174: 139 | B174: 922200 | C174: Примања од отплате кредита датих страним владама | N174: 0 | O174: 0
A175: 140 | B175: 922300 | C175: Примања од отплате кредита датих међународним организацијама | N175: 0 | O175: 0
A176: 141 | B176: 922400 | C176: Примања од отплате кредита датих страним пословним банкама | N176: 0 | O176: 0
A177: 142 | B177: 922500 | C177: Примања од отплате кредита датих страним нефинансијским институцијама | N177: 0 | O177: 0
A178: 143 | B178: 922600 | C178: Примања од отплате кредита датих страним невладиним организацијама | N178: 0 | O178: 0
A179: 144 | B179: 922700 | C179: Примања од продаје страних акција и осталог капитала | N179: 0 | O179: 0
A180: 145 | B180: 922800 | C180: Примања од продаје стране валуте | N180: 0 | O180: 0
A181: 146 | C181: УКУПНИ ПРИХОДИ, ПРИМАЊА И ПРЕНЕТА СРЕДСТВА ИЗ ПРЕТХОДНЕ ГОДИНЕ (1 + 8 + 81 + 106) | D181: =D36+D43+D116+D141 -> 8057000 | E181: =E36+E43+E116+E141 -> 68759000 | F181: 16169000 | G181: 72882000 | H181: 16475000 | I181: 80491000 | J181: 17630000 | K181: 104880000 | L181: 17630000 | M181: 104880000 | N181: =SUM(H181,J181,L181) -> 51735000 | O181: =SUM(I181,K181,M181) -> 290251000
A182: 147 | B182: 400000 | C182: ТЕКУЋИ РАСХОДИ (148+166+211+226+250+263+279+294) | D182: =D183+D201+D246+D261+D285+D298+D314+D329 -> 8041000 | E182: 68671000 | F182: 16169000 | G182: 72873000 | H182: 15925000 | I182: 80191000 | J182: 17630000 | K182: 104880000 | L182: 17630000 | M182: 104880000 | N182: 51185000 | O182: 289951000
A183: 148 | B183: 410000 | C183: РАСХОДИ ЗА ЗАПОСЛЕНЕ (149+151+155+157+162+164) | D183: =D184+D186+D190+D192+D197+D199 -> 2994000 | E183: =E184+E186+E190+E192+E197+E199 -> 65425000 | F183: 3037000 | G183: 69299000 | H183: 2400000 | I183: 74696000 | J183: 3400000 | K183: 99000000 | L183: 3400000 | M183: 99000000 | N183: 9200000 | O183: 272696000
A184: 149 | B184: 411000 | C184: ПЛАТЕ, ДОДАЦИ И НАКНАДЕ ЗАПОСЛЕНИХ (ЗАРАДЕ) (150) | D184: =D185 -> 0 | E184: 53188000 | F184: 0 | G184: 56740000 | H184: 0 | I184: 62236000 | J184: 0 | K184: 80000000 | L184: 0 | M184: 80000000 | N184: 0 | O184: 222236000
A185: 150 | B185: 411100 | C185: Плате, додаци и накнаде запослених | E185: 53188000 | G185: 56740000 | I185: 62236000 | K185: 80000000 | M185: 80000000 | N185: 0 | O185: 222236000
A186: 151 | B186: 412000 | C186: СОЦИЈАЛНИ ДОПРИНОСИ НА ТЕРЕТ ПОСЛОДАВЦА (од 152 до 154) | D186: =SUM(D187:D189) -> 0 | E186: 9547000 | F186: 0 | G186: 10198000 | H186: 0 | I186: 11160000 | J186: 0 | K186: 16000000 | L186: 0 | M186: 16000000 | N186: 0 | O186: 43160000
A187: 152 | B187: 412100 | C187: Допринос за пензијско и инвалидско осигурање | E187: 6400000 | G187: 6837000 | I187: 7481000 | K187: 10000000 | M187: 10000000 | N187: 0 | O187: 27481000
A188: 153 | B188: 412200 | C188: Допринос за здравствено осигурање | E188: 2747000 | G188: 2934000 | I188: 3211000 | K188: 5000000 | M188: 5000000 | N188: 0 | O188: 13211000
A189: 154 | B189: 412300 | C189: Допринос за незапосленост | E189: 400000 | G189: 427000 | I189: 468000 | K189: 1000000 | M189: 1000000 | N189: 0 | O189: 2468000
A190: 155 | B190: 413000 | C190: НАКНАДЕ У НАТУРИ (156) | D190: =D191 -> 279000 | E190: 0 | F190: 327000 | G190: 0 | H190: 400000 | I190: 0 | J190: 600000 | K190: 0 | L190: 600000 | M190: 0 | N190: 1600000 | O190: 0
A191: 156 | B191: 413100 | C191: Накнаде у натури | D191: 279000 | F191: 327000 | H191: 400000 | J191: 600000 | L191: 600000 | N191: 1600000 | O191: 0
A192: 157 | B192: 414000 | C192: СОЦИЈАЛНА ДАВАЊА ЗАПОСЛЕНИМА (од 158 до 161) | D192: =SUM(D193:D196) -> 0 | E192: 2690000 | F192: 0 | G192: 2361000 | H192: 0 | I192: 1300000 | J192: 0 | K192: 3000000 | L192: 0 | M192: 3000000 | N192: 0 | O192: 7300000
A193: 158 | B193: 414100 | C193: Исплата накнада за време одсуствовања с посла на терет фондова | E193: 2690000 | G193: 1812000 | I193: 1000000 | K193: 2000000 | M193: 2000000 | N193: 0 | O193: 5000000
A194: 159 | B194: 414200 | C194: Расходи за образовање деце запослених | N194: 0 | O194: 0
A195: 160 | B195: 414300 | C195: Отпремнине и помоћи | G195: 549000 | I195: 300000 | K195: 1000000 | M195: 1000000 | N195: 0 | O195: 2300000
A196: 161 | B196: 414400 | C196: Помоћ у медицинском лечењу запосленог или чланова уже породице и друге помоћи запосленом | N196: 0 | O196: 0
A197: 162 | B197: 415000 | C197: НАКНАДА ТРОШКОВА ЗА ЗАПОСЛЕНЕ (163) | D197: =D198 -> 2271000 | E197: 0 | F197: 1783000 | G197: 0 | H197: 1450000 | I197: 0 | J197: 1800000 | K197: 0 | L197: 1800000 | M197: 0 | N197: 5050000 | O197: 0
A198: 163 | B198: 415100 | C198: Накнаде трошкова за запослене | D198: 2271000 | F198: 1783000 | H198: 1450000 | J198: 1800000 | L198: 1800000 | N198: 5050000 | O198: 0
A199: 164 | B199: 416000 | C199: НАГРАДЕ ЗАПОСЛЕНИМА И ОСТАЛИ ПОСЕБНИ РАСХОДИ (165) | D199: =D200 -> 444000 | E199: 0 | F199: 927000 | G199: 0 | H199: 550000 | I199: 0 | J199: 1000000 | K199: 0 | L199: 1000000 | M199: 0 | N199: 2550000 | O199: 0
A200: 165 | B200: 416100 | C200: Награде запосленима и остали посебни расходи | D200: 444000 | F200: 927000 | H200: 550000 | J200: 1000000 | L200: 1000000 | N200: 2550000 | O200: 0
A201: 166 | B201: 420000 | C201: КОРИШЋЕЊЕ УСЛУГА И РОБА (167 + 175 + 181 + 190 + 198 + 201) | D201: =D202+D210+D216+D225+D233+D236 -> 5022000 | E201: 2894000 | F201: 12690000 | G201: 3552000 | H201: 13495000 | I201: 5425000 | J201: 14030000 | K201: 5840000 | L201: 14030000 | M201: 5840000 | N201: =SUM(H201,J201,L201) -> 41555000 | O201: 17105000
A202: 167 | B202: 421000 | C202: СТАЛНИ ТРОШКОВИ (од 168 до 174) | D202: =SUM(D203:D209) -> 2210000 | E202: 66000 | F202: 7640000 | G202: 46000 | H202: 7200000 | I202: 95000 | J202: 9330000 | K202: 100000 | L202: 9330000 | M202: 100000 | N202: 25860000 | O202: 295000
A203: 168 | B203: 421100 | C203: Трошкови платног промета и банкарских услуга | D203: 102000 | E203: 21000 | F203: 130000 | G203: 20000 | H203: 130000 | I203: 30000 | J203: 150000 | K203: 50000 | L203: 150000 | M203: 50000 | N203: 430000 | O203: 130000
A204: 169 | B204: 421200 | C204: Енергетске услуге | D204: 1373000 | E204: 13000 | F204: 6489000 | G204: 15000 | H204: 5950000 | I204: 20000 | J204: 8000000 | L204: 8000000 | N204: 21950000 | O204: 20000
A205: 170 | B205: 421300 | C205: Комуналне услуге | D205: 680000 | F205: 924000 | H205: 1000000 | J205: 1000000 | L205: 1000000 | N205: 3000000 | O205: 0
A206: 171 | B206: 421400 | C206: Услуге комуникација | D206: 42000 | E206: 32000 | F206: 40000 | G206: 11000 | H206: 70000 | I206: 20000 | J206: 60000 | K206: 20000 | L206: 60000 | M206: 20000 | N206: 190000 | O206: 60000
A207: 172 | B207: 421500 | C207: Трошкови осигурања | D207: 13000 | F207: 57000 | H207: 50000 | J207: 60000 | L207: 60000 | N207: 170000 | O207: 0
A208: 173 | B208: 421600 | C208: Закуп имовине и опреме | I208: 25000 | J208: 60000 | K208: 30000 | L208: 60000 | M208: 30000 | N208: 120000 | O208: 85000
A209: 174 | B209: 421900 | C209: Остали трошкови | N209: 0 | O209: 0
... 303 more rows

Sheet Програмска активност
A1: Обрасци за припрему програмског буџета
A2: 2. ПРОГРАМСКА АКТИВНОСТ
A4: Програм коме припада:
A5: Шифра и назив: | D5: 2002-0001 Функционисање основних школа
A6: Функција: | D6: 912 Основно образовање
A7: Назив организационе јединице/Буџетски корисник: | D7: ОШ,, Десанка Максимовић,, Грделица
A8: Сврхa: | D8: Стварање адекватних услова за рад у школи по прописаним стандардима
A9: Основ:
A10: Опис: | D10: За рад школе потребно је обезбедити одговарајуће услове ( МАТЕРИЈАЛНЕ, ТЕХНИЧКЕ...)
A11: Мере и поглавље преговора о приступању ЕУ: | D11: (Анекс 3 Упутства за израду програмског буџета) релевантно само за Републику Србију)
A12: Одговорно лице за спровођење прог. aктивности: | D12: Ненад Младеновић, директор
B14: Циљ* | D14: Индикатори**
D15: Назив индикатора | G15: Вредност у базној години (2017) | H15: Очекивана вредност у 2018. години | I15: Циљана вредност у 2019. години | J15: Циљана вредност у 2020. години | K15: Циљана вредност у 2021. години | L15: Извор верификације
A16: 1 | B16: Обезбеђени прописани услови за васпитно-образовни рад са децом у основним школама | D16: Просечан број ученика по одељењу | G16: 17.83 | H16: 18.19 | I16: 16,50 | J16: 18.57 | K16: 18.57 | L16: Евиденција школе
B20: Циљ | D20: Индикатори
D21: Назив индикатора | G21: Вредност у базној години (2017) | H21: Очекивана вредност у 2018. години | I21: Циљана вредност у 2019. години | J21: Циљана вредност у 2020. години | K21: Циљана вредност у 2021. години | L21: Извор верификације
A22: 2 | B22: Унапредјенје квалитета образовања и васпитањау основним школама | D22: Број ученика који похађају ваннаставне активности у односу на укупан број | G22: 75% | H22: 80% | I22: 100% | J22: 100% | K22: 100% | L22: Евиденција школе
D23: Број стручних лица која су добиланајманје 24 бода на стручно усавршавање, кроз учешће на семинарима на годишњем нивоу | G23: 50% | H23: 55% | I23: 60% | J23: 90% | K23: 90% | L23: Евиденција школе
A27: ПЛАНИРАНА СРЕДСТВА ЗА ПРОГРАМСКУ АКТИВНОСТ
A28: Рбр. | B28: Конто | C28: ОПИС | D28: Вредност у базној години (2017) | F28: Очекивана вредност у 2018. години | H28: Вредност у 2019. години | J28: Вредност у 2020. години | L28: Вредност у 2021. години | N28: Укупно (2019-2021)
D29: Приходи из буџета | E29: Приходи из осталих извора | F29: Приходи из буџета | G29: Приходи из осталих извора | H29: Приходи из буџета | I29: Приходи из осталих извора | J29: Приходи из буџета | K29: Приходи из осталих извора | L29: Приходи из буџета | M29: Приходи из осталих извора | N29: Приходи из буџета | O29: Приходи из осталих извора
A30: 1 | B30: 2 | C30: 3 | D30: 4 | E30: 5 | F30: 6 | G30: 7 | H30: 8 | I30: 9 | J30: 10 | K30: 11 | L30: 12 | M30: 13 | N30: 14=(8+10+12) | O30: 15=(9+11+13)
A31: 1 | B31: 300000 | C31: КАПИТАЛ, УТВРЂИВАЊЕ РЕЗУЛТАТА ПОСЛОВАЊА И ВАНБИЛАНСНА ЕВИДЕНЦИЈА (2 + 5) | D31: =SUM(D32,D35) -> 0 | E31: =SUM(E32,E35) -> 0 | F31: 0 | G31: 9000 | H31: 0 | I31: 0 | J31: 0 | K31: 0 | L31: 0 | M31: 0 | N31: 0 | O31: 0
A32: 2 | B32: 310000 | C32: КАПИТАЛ (3) | D32: =SUM(D33) -> 0 | E32: =SUM(E33) -> 0 | F32: =SUM(F33) -> 0 | G32: 0 | H32: 0 | I32: 0 | J32: 0 | K32: 0 | L32: 0 | M32: 0 | N32: 0 | O32: 0
A33: 3 | B33: 311000 | C33: КАПИТАЛ (4) | D33: =SUM(D34) -> 0 | E33: =SUM(E34) -> 0 | F33: 0 | G33: 0 | H33: 0 | I33: 0 | J33: 0 | K33: 0 | L33: 0 | M33: 0 | N33: =SUM(N34) -> 0 | O33: 0
A34: 4 | B34: 311700 | C34: Пренета неутрошена средства из ранијих година | N34: =SUM(H34,J34,L34) -> 0 | O34: =SUM(I34,K34,M34) -> 0
A35: 5 | B35: 320000 | C35: УТВРЂИВАЊЕ РЕЗУЛТАТА ПОСЛОВАЊА (6) | D35: =SUM(D36) -> 0 | E35: =SUM(E36) -> 0 | F35: 0 | G35: 9000 | H35: 0 | I35: 0 | J35: 0 | K35: 0 | L35: 0 | M35: 0 | N35: 0 | O35: 0
A36: 6 | B36: 321000 | C36: УТВРЂИВАЊЕ РЕЗУЛТАТА ПОСЛОВАЊА (7) | D36: =SUM(D37) -> 0 | E36: 0 | F36: 0 | G36: 9000 | H36: 0 | I36: 0 | J36: 0 | K36: 0 | L36: 0 | M36: 0 | N36: 0 | O36: 0
A37: 7 | B37: 321300 | C37: Нераспоређени вишак прихода и примања или дефицит из ранијих година | G37: 9000 | N37: =SUM(H37,J37,L37) -> 0 | O37: =SUM(I37,K37,M37) -> 0
A38: =A37+1 -> 8 | B38: 700000 | C38: ТЕКУЋИ ПРИХОДИ (9 + 32 + 44 + 69 + 74 +78) | D38: =D39+D62+D74+D99+D104+D108 -> 8057000 | E38: =E39+E62+E74+E99+E104+E108 -> 68759000 | F38: 16169000 | G38: 72873000 | H38: 16475000 | I38: 80491000 | J38: 17630000 | K38: 104880000 | L38: 17630000 | M38: 104880000 | N38: =N39+N62+N74+N99+N104+N108 -> 51735000 | O38: 290251000
A39: =A38+1 -> 9 | B39: 710000 | C39: ПОРЕЗИ (10 + 14 + 16 + 23 + 29) | D39: =D40+D44+D46+D53+D59 -> 0 | E39: =E40+E44+E46+E53+E59 -> 0 | F39: 0 | G39: 0 | H39: 0 | I39: 0 | J39: 0 | K39: 0 | L39: 0 | M39: 0 | N39: 0 | O39: 0
A40: 10 | B40: 711000 | C40: ПОРЕЗ НА ДОХОДАК, ДОБИТ И КАПИТАЛНЕ ДОБИТКЕ (од 11 до 13) | D40: =SUM(D41:D43) -> 0 | E40: =SUM(E41:E43) -> 0 | F40: 0 | G40: 0 | H40: 0 | I40: 0 | J40: 0 | K40: 0 | L40: 0 | M40: 0 | N40: =SUM(H40,J40,L40) -> 0 | O40: 0
A41: 11 | B41: 711100 | C41: Порези на доходак и капиталнe добиткe које плаћају физичка лица | N41: 0 | O41: 0
A42: 12 | B42: 711200 | C42: Порези на добит и капиталне добитке које плаћају предузећа и друга правна лица | N42: 0 | O42: 0
A43: 13 | B43: 711300 | C43: Порези на доходак, добит и капиталне добитке који се не могу разврстати између физичких и правних лица | N43: 0 | O43: 0
A44: 14 | B44: 712000 | C44: ПОРЕЗ НА ФОНД ЗАРАДА (15) | D44: =SUM(D45) -> 0 | E44: 0 | F44: 0 | G44: 0 | H44: 0 | I44: 0 | J44: 0 | K44: 0 | L44: 0 | M44: 0 | N44: 0 | O44: 0
A45: 15 | B45: 712100 | C45: Порез на фонд зарада | N45: 0 | O45: 0
A46: 16 | B46: 713000 | C46: ПОРЕЗ НА ИМОВИНУ (од 17 до 22) | D46: =SUM(D47:D52) -> 0 | E46: 0 | F46: 0 | G46: 0 | H46: 0 | I46: 0 | J46: 0 | K46: 0 | L46: 0 | M46: 0 | N46: 0 | O46: 0
A47: 17 | B47: 713100 | C47: Периодични порези на непокретности | N47: 0 | O47: 0
A48: 18 | B48: 713200 | C48: Периодични порези на нето имовину | N48: 0 | O48: 0
A49: 19 | B49: 713300 | C49: Порези на заоставштину, наслеђе и поклон | N49: 0 | O49: 0
A50: 20 | B50: 713400 | C50: Порези на финансијске и капиталне трансакције | N50: 0 | O50: 0
A51: 21 | B51: 713500 | C51: Други једнократни порези на имовину | N51: 0 | O51: 0
A52: 22 | B52: 713600 | C52: Други периодични порези на имовину | N52: 0 | O52: 0
A53: 23 | B53: 714000 | C53: ПОРЕЗ НА ДОБРА И УСЛУГЕ (од 24 до 28) | D53: =SUM(D54:D58) -> 0 | E53: 0 | F53: 0 | G53: 0 | H53: 0 | I53: 0 | J53: 0 | K53: 0 | L53: 0 | M53: 0 | N53: 0 | O53: 0
A54: 24 | B54: 714100 | C54: Општи порези на добра и услуге | N54: 0 | O54: 0
A55: 25 | B55: 714300 | C55: Добит фискалних монопола | N55: 0 | O55: 0
A56: 26 | B56: 714400 | C56: Порези на појединачне услуге | N56: 0 | O56: 0
A57: 27 | B57: 714500 | C57: Порези, таксе и накнаде на употребу добара, на дозволу да се добра употребљавају или делатности обављају | N57: 0 | O57: 0
A58: 28 | B58: 714600 | C58: Други порези на добра и услуге | N58: 0 | O58: 0
A59: 29 | B59: 716000 | C59: ДРУГИ ПОРЕЗИ (30 + 31) | D59: =SUM(D60:D61) -> 0 | E59: 0 | F59: 0 | G59: 0 | H59: 0 | I59: 0 | J59: 0 | K59: 0 | L59: 0 | M59: 0 | N59: 0 | O59: 0
A60: 30 | B60: 716100 | C60: Други порези које искључиво плаћају предузећа, односно предузетници | N60: 0 | O60: 0
A61: 31 | B61: 716200 | C61: Други порези које плаћају остала лица или који се не могу идентификовати | N61: 0 | O61: 0
A62: 32 | B62: 730000 | C62: ДОНАЦИЈЕ, ПОМОЋИ И ТРАНСФЕРИ (33 + 36 + 41) | D62: =D63+D66+D71 -> 0 | E62: =E63+E66+E71 -> 124000 | F62: 0 | G62: 76000 | H62: 0 | I62: 425000 | J62: 0 | K62: 460000 | L62: 0 | M62: 460000 | N62: 0 | O62: 1345000
A63: 33 | B63: 731000 | C63: ДОНАЦИЈЕ ОД ИНОСТРАНИХ ДРЖАВА (34 + 35) | D63: =SUM(D64:D65) -> 0 | E63: 0 | F63: 0 | G63: 0 | H63: 0 | I63: 0 | J63: 0 | K63: 0 | L63: 0 | M63: 0 | N63: 0 | O63: 0
A64: 34 | B64: 731100 | C64: Текуће донације од иностраних држава | N64: 0 | O64: 0
A65: 35 | B65: 731200 | C65: Капиталне донације од иностраних држава | N65: 0 | O65: 0
A66: 36 | B66: 732000 | C66: ДОНАЦИЈЕ И ПОМОЋИ ОД МЕЂУНАРОДНИХ ОРГАНИЗАЦИЈА (од 37 до 40) | D66: =SUM(D67:D70) -> 0 | E66: =SUM(E67:E70) -> 124000 | F66: 0 | G66: 76000 | H66: 0 | I66: 425000 | J66: 0 | K66: 460000 | L66: 0 | M66: 460000 | N66: 0 | O66: 1345000
A67: 37 | B67: 732100 | C67: Текуће донације од међународних организација | E67: 124000 | G67: 76000 | I67: 425000 | K67: 460000 | M67: 460000 | N67: 0 | O67: 1345000
A68: 38 | B68: 732200 | C68: Капиталне донације од међународних организација | N68: 0 | O68: 0
A69: 39 | B69: 732300 | C69: Текуће помоћи од ЕУ | N69: 0 | O69: 0
A70: 40 | B70: 732400 | C70: Капиталне помоћи од ЕУ | N70: 0 | O70: 0
A71: 41 | B71: 733000 | C71: ТРАНСФЕРИ ОД ДРУГИХ НИВОА ВЛАСТИ (42 + 43) | D71: =SUM(D72:D73) -> 0 | E71: 0 | F71: 0 | G71: 0 | H71: 0 | I71: 0 | J71: 0 | K71: 0 | L71: 0 | M71: 0 | N71: =SUM(H71,J71,L71) -> 0 | O71: 0
A72: 42 | B72: 733100 | C72: Текући трансфери од других нивоа власти | N72: 0 | O72: 0
A73: 43 | B73: 733200 | C73: Капитални трансфери од других нивоа власти | N73: 0 | O73: 0
A74: 44 | B74: 740000 | C74: ДРУГИ ПРИХОДИ (45 + 52 + 57 + 64 + 67) | D74: =D75+D82+D87+D94+D97 -> 0 | E74: =E75+E82+E87+E94+E97 -> 2806000 | F74: 0 | G74: 3034000 | H74: 0 | I74: 3480000 | J74: 0 | K74: 3520000 | L74: 0 | M74: 3520000 | N74: 0 | O74: 10520000
A75: 45 | B75: 741000 | C75: ПРИХОДИ ОД ИМОВИНЕ (од 46 до 51) | D75: =SUM(D76:D81) -> 0 | E75: =SUM(E76:E81) -> 0 | F75: 0 | G75: 0 | H75: 0 | I75: 0 | J75: 0 | K75: 0 | L75: 0 | M75: 0 | N75: 0 | O75: 0
A76: 46 | B76: 741100 | C76: Камате | N76: 0 | O76: 0
A77: 47 | B77: 741200 | C77: Дивиденде | N77: 0 | O77: 0
A78: 48 | B78: 741300 | C78: Повлачење прихода од квази корпорација | N78: 0 | O78: 0
A79: 49 | B79: 741400 | C79: Приход од имовине који припада имаоцима полиса осигурања | N79: 0 | O79: 0
A80: 50 | B80: 741500 | C80: Закуп непроизведене имовине | N80: 0 | O80: 0
A81: 51 | B81: 741600 | C81: Финансијске промене на финансијским лизинзима | N81: 0 | O81: 0
A82: 52 | B82: 742000 | C82: ПРИХОДИ ОД ПРОДАЈЕ ДОБАРА И УСЛУГА (од 53 до 56) | D82: =SUM(D83:D86) -> 0 | E82: 2806000 | F82: 0 | G82: 3034000 | H82: 0 | I82: 3480000 | J82: 0 | K82: 3520000 | L82: 0 | M82: 3520000 | N82: 0 | O82: 10520000
A83: 53 | B83: 742100 | C83: Приходи од продаје добара и услуга или закупа од стране тржишних организација | N83: 0 | O83: 0
A84: 54 | B84: 742200 | C84: Таксе и накнаде | N84: 0 | O84: 0
A85: 55 | B85: 742300 | C85: Споредне продаје добара и услуга које врше државне нетржишне јединице | E85: 2806000 | G85: 3034000 | I85: 3480000 | K85: 3520000 | M85: 3520000 | N85: 0 | O85: 10520000
A86: 56 | B86: 742400 | C86: Импутиране продаје добара и услуга | N86: 0 | O86: 0
A87: 57 | B87: 743000 | C87: НОВЧАНЕ КАЗНЕ И ОДУЗЕТА ИМОВИНСКА КОРИСТ (од 58 до 63) | D87: =SUM(D88:D93) -> 0 | E87: 0 | F87: 0 | G87: 0 | H87: 0 | I87: 0 | J87: 0 | K87: 0 | L87: 0 | M87: 0 | N87: 0 | O87: 0
A88: 58 | B88: 743100 | C88: Приходи од новчаних казни за кривична дела | N88: 0 | O88: 0
A89: 59 | B89: 743200 | C89: Приходи од новчаних казни за привредне преступе | N89: 0 | O89: 0
A90: 60 | B90: 743300 | C90: Приходи од новчаних казни за прекршаје | N90: 0 | O90: 0
A91: 61 | B91: 743400 | C91: Приходи од пенала | N91: 0 | O91: 0
A92: 62 | B92: 743500 | C92: Приходи од одузете имовинске користи | N92: 0 | O92: 0
A93: 63 | B93: 743900 | C93: Остале новчане казне, пенали и приходи од одузете имовинске користи | N93: 0 | O93: 0
A94: 64 | B94: 744000 | C94: ДОБРОВОЉНИ ТРАНСФЕРИ ОД ФИЗИЧКИХ И ПРАВНИХ ЛИЦА (65 + 66) | D94: =SUM(D95:D96) -> 0 | E94: 0 | F94: 0 | G94: 0 | H94: 0 | I94: 0 | J94: 0 | K94: 0 | L94: 0 | M94: 0 | N94: 0 | O94: 0
A95: 65 | B95: 744100 | C95: Текући добровољни трансфери од физичких и правних лица | N95: 0 | O95: 0
A96: 66 | B96: 744200 | C96: Капитални добровољни трансфери од физичких и правних лица | N96: 0 | O96: 0
A97: 67 | B97: 745000 | C97: МЕШОВИТИ И НЕОДРЕЂЕНИ ПРИХОДИ (68) | D97: =D98 -> 0 | E97: =E98 -> 0 | F97: 0 | G97: 0 | H97: 0 | I97: 0 | J97: 0 | K97: 0 | L97: 0 | M97: 0 | N97: 0 | O97: 0
A98: 68 | B98: 745100 | C98: Мешовити и неодређени приходи | N98: 0 | O98: 0
A99: 69 | B99: 770000 | C99: МЕМОРАНДУМСКЕ СТАВКЕ ЗА РЕФУНДАЦИЈУ РАСХОДА (70 + 72) | D99: =D100+D102 -> 0 | E99: 2690000 | F99: 0 | G99: 1812000 | H99: 0 | I99: 1000000 | J99: 0 | K99: 2000000 | L99: 0 | M99: 2000000 | N99: 0 | O99: 5000000
A100: 70 | B100: 771000 | C100: МЕМОРАНДУМСКЕ СТАВКЕ ЗА РЕФУНДАЦИЈУ РАСХОДА (71) | D100: =D101 -> 0 | E100: =E101 -> 2690000 | F100: 0 | G100: 1812000 | H100: 0 | I100: 1000000 | J100: 0 | K100: 2000000 | L100: 0 | M100: 2000000 | N100: 0 | O100: 5000000
A101: 71 | B101: 771100 | C101: Меморандумске ставке за рефундацију расхода | E101: 2690000 | G101: 1812000 | I101: 1000000 | K101: 2000000 | M101: 2000000 | N101: 0 | O101: 5000000
A102: 72 | B102: 772000 | C102: МЕМОРАНДУМСКЕ СТАВКЕ ЗА РЕФУНДАЦИЈУ РАСХОДА ИЗ ПРЕТХОДНЕ ГОДИНЕ (73) | D102: =D103 -> 0 | E102: =E103 -> 0 | F102: 0 | G102: 0 | H102: 0 | I102: 0 | J102: 0 | K102: 0 | L102: 0 | M102: 0 | N102: 0 | O102: 0
A103: =A102+1 -> 73 | B103: 772100 | C103: Меморандумске ставке за рефундацију расхода из претходне године | N103: 0 | O103: 0
A104: 74 | B104: 780000 | C104: ТРАНСФЕРИ ИЗМЕЂУ БУЏЕТСКИХ КОРИСНИКА НА ИСТОМ НИВОУ (75) | D104: =D105 -> 0 | E104: 0 | F104: 0 | G104: 0 | H104: 0 | I104: 0 | J104: 0 | K104: 0 | L104: 0 | M104: 0 | N104: 0 | O104: 0
A105: 75 | B105: 781000 | C105: ТРАНСФЕРИ ИЗМЕЂУ БУЏЕТСКИХ КОРИСНИКА НА ИСТОМ НИВОУ (76 + 77) | D105: =SUM(D106:D107) -> 0 | E105: 0 | F105: 0 | G105: 0 | H105: 0 | I105: 0 | J105: 0 | K105: 0 | L105: 0 | M105: 0 | N105: 0 | O105: 0
A106: 76 | B106: 781100 | C106: Трансфери између буџетских корисника на истом нивоу | N106: =SUM(H106,J106,L106) -> 0
A107: 77 | B107: 781300 | C107: Трансфери између организација обавезног социјалног осигурања | N107: 0
A108: 78 | B108: 790000 | C108: ПРИХОДИ ИЗ БУЏЕТА (79) | D108: =D109 -> 8057000 | E108: 63139000 | F108: 16169000 | G108: 67951000 | H108: 16475000 | I108: 75586000 | J108: 17630000 | K108: 98900000 | L108: 17630000 | M108: 98900000 | N108: 51735000 | O108: 273386000
A109: 79 | B109: 791000 | C109: ПРИХОДИ ИЗ БУЏЕТА (80) | D109: =D110 -> 8057000 | E109: 63139000 | F109: 16169000 | G109: 67951000 | H109: 16475000 | I109: 75586000 | J109: 17630000 | K109: 98900000 | L109: 17630000 | M109: 98900000 | N109: 51735000 | O109: 273386000
A110: 80 | B110: 791100 | C110: Приходи из буџета | D110: 8057000 | E110: 63139000 | F110: 16169000 | G110: 67951000 | H110: 16475000 | I110: 75586000 | J110: 17630000 | K110: 98900000 | L110: 17630000 | M110: 98900000 | N110: 51735000
A111: 81 | B111: 800000 | C111: ПРИМАЊА ОД ПРОДАЈЕ НЕФИНАНСИЈСКЕ ИМОВИНЕ (82 + 89 + 96 + 99) | D111: =D112+D119+D126+D129 -> 0 | E111: =E112+E119+E126+E129 -> 0 | F111: 0 | G111: 0 | H111: 0 | I111: 0 | J111: 0 | K111: 0 | L111: 0 | M111: 0 | N111: 0 | O111: 0
A112: 82 | B112: 810000 | C112: ПРИМАЊА ОД ПРОДАЈЕ ОСНОВНИХ СРЕДСТАВА (83 + 85 + 87) | D112: =D113+D115+D117 -> 0 | E112: =E113+E115+E117 -> 0 | F112: 0 | G112: 0 | H112: 0 | I112: 0 | J112: 0 | K112: 0 | L112: 0 | M112: 0 | N112: 0 | O112: 0
A113: 83 | B113: 811000 | C113: ПРИМАЊА ОД ПРОДАЈЕ НЕПОКРЕТНОСТИ (84) | D113: =D114 -> 0 | E113: =E114 -> 0 | F113: 0 | G113: 0 | H113: 0 | I113: 0 | J113: 0 | K113: 0 | L113: 0 | M113: 0 | N113: 0 | O113: 0
A114: 84 | B114: 811100 | C114: Примања од продаје непокретности | N114: 0 | O114: 0
A115: 85 | B115: 812000 | C115: ПРИМАЊА ОД ПРОДАЈЕ ПОКРЕТНЕ ИМОВИНЕ (86) | D115: =D116 -> 0 | E115: 0 | F115: 0 | G115: 0 | H115: 0 | I115: 0 | J115: 0 | K115: 0 | L115: 0 | M115: 0 | N115: 0 | O115: 0
A116: 86 | B116: 812100 | C116: Примања од продаје покретне имовине | N116: 0 | O116: 0
A117: 87 | B117: 813000 | C117: ПРИМАЊА ОД ПРОДАЈЕ ОСТАЛИХ ОСНОВНИХ СРЕДСТАВА (88) | D117: =D118 -> 0 | E117: 0 | F117: 0 | G117: 0 | H117: 0 | I117: 0 | J117: 0 | K117: 0 | L117: 0 | M117: 0 | N117: 0 | O117: 0
A118: 88 | B118: 813100 | C118: Примања од продаје осталих основних средстава | N118: 0 | O118: 0
A119: 89 | B119: 820000 | C119: ПРИМАЊА ОД ПРОДАЈЕ ЗАЛИХА (90 + 92 + 94) | D119: =D120+D122+D124 -> 0 | E119: 0 | F119: 0 | G119: 0 | H119: 0 | I119: 0 | J119: 0 | K119: 0 | L119: 0 | M119: 0 | N119: 0 | O119: 0
A120: 90 | B120: 821000 | C120: ПРИМАЊА ОД ПРОДАЈЕ РОБНИХ РЕЗЕРВИ (91) | D120: =D121 -> 0 | E120: 0 | F120: 0 | G120: 0 | H120: 0 | I120: 0 | J120: 0 | K120: 0 | L120: 0 | M120: 0 | N120: 0 | O120: 0
A121: 91 | B121: 821100 | C121: Примања од продаје робних резерви | N121: 0 | O121: 0
A122: 92 | B122: 822000 | C122: ПРИМАЊА ОД ПРОДАЈЕ ЗАЛИХА ПРОИЗВОДЊЕ (93) | D122: =D123 -> 0 | E122: 0 | F122: 0 | G122: 0 | H122: 0 | I122: 0 | J122: 0 | K122: 0 | L122: 0 | M122: 0 | N122: 0 | O122: 0
A123: 93 | B123: 822100 | C123: Примања од продаје залиха производње | N123: 0 | O123: 0
A124: 94 | B124: 823000 | C124: ПРИМАЊА ОД ПРОДАЈЕ РОБЕ ЗА ДАЉУ ПРОДАЈУ (95) | D124: =D125 -> 0 | E124: 0 | F124: 0 | G124: 0 | H124: 0 | I124: 0 | J124: 0 | K124: 0 | L124: 0 | M124: 0 | N124: 0 | O124: 0
A125: 95 | B125: 823100 | C125: Примања од продаје робе за даљу продају | N125: 0 | O125: 0
A126: 96 | B126: 830000 | C126: ПРИМАЊА ОД ПРОДАЈЕ ДРАГОЦЕНОСТИ (97) | D126: =D127 -> 0 | E126: 0 | F126: 0 | G126: 0 | H126: 0 | I126: 0 | J126: 0 | K126: 0 | L126: 0 | M126: 0 | N126: 0 | O126: 0
A127: 97 | B127: 831000 | C127: ПРИМАЊА ОД ПРОДАЈЕ ДРАГОЦЕНОСТИ (98) | D127: 0 | E127: 0 | F127: 0 | G127: 0 | H127: 0 | I127: 0 | J127: 0 | K127: 0 | L127: 0 | M127: 0 | N127: 0 | O127: 0
A128: 98 | B128: 831100 | C128: Примања од продаје драгоцености | N128: 0 | O128: 0
A129: 99 | B129: 840000 | C129: ПРИМАЊА ОД ПРОДАЈЕ ПРИРОДНЕ ИМОВИНЕ (100 + 102 + 104) | D129: =D130+D132+D134 -> 0 | E129: 0 | F129: 0 | G129: 0 | H129: 0 | I129: 0 | J129: 0 | K129: 0 | L129: 0 | M129: 0 | N129: 0 | O129: 0
A130: 100 | B130: 841000 | C130: ПРИМАЊА ОД ПРОДАЈЕ ЗЕМЉИШТА (101) | D130: =D131 -> 0 | E130: 0 | F130: 0 | G130: 0 | H130: 0 | I130: 0 | J130: 0 | K130: 0 | L130: 0 | M130: 0 | N130: 0 | O130: 0
A131: 101 | B131: 841100 | C131: Примања од продаје земљишта | N131: 0 | O131: 0
A132: 102 | B132: 842000 | C132: ПРИМАЊА ОД ПРОДАЈЕ ПОДЗЕМНИХ БЛАГА (103) | D132: =D133 -> 0 | E132: 0 | F132: 0 | G132: 0 | H132: 0 | I132: 0 | J132: 0 | K132: 0 | L132: 0 | M132: 0 | N132: 0 | O132: 0
A133: 103 | B133: 842100 | C133: Примања од продаје подземних блага | N133: 0 | O133: 0
A134: 104 | B134: 843000 | C134: ПРИМАЊА ОД ПРОДАЈЕ ШУМА И ВОДА (105) | D134: =D135 -> 0 | E134: 0 | F134: 0 | G134: 0 | H134: 0 | I134: 0 | J134: 0 | K134: 0 | L134: 0 | M134: 0 | N134: 0 | O134: 0
A135: 105 | B135: 843100 | C135: Примања од продаје шума и вода | N135: =SUM(H135,J135,L135) -> 0 | O135: 0
A136: 106 | B136: 900000 | C136: ПРИМАЊА ОД ЗАДУЖИВАЊА И ПРОДАЈЕ ФИНАНСИЈСКЕ ИМОВИНЕ (107 + 126) | D136: =D137+D156 -> 0 | E136: =E137+E156 -> 0 | F136: 0 | G136: 0 | H136: 0 | I136: 0 | J136: 0 | K136: 0 | L136: 0 | M136: 0 | N136: 0 | O136: 0
A137: 107 | B137: 910000 | C137: ПРИМАЊА ОД ЗАДУЖИВАЊА (108+118) | D137: =D138+D148 -> 0 | E137: =E138+E148 -> 0 | F137: 0 | G137: 0 | H137: 0 | I137: 0 | J137: 0 | K137: 0 | L137: 0 | M137: 0 | N137: 0 | O137: 0
A138: 108 | B138: 911000 | C138: ПРИМАЊА ОД ДОМАЋИХ ЗАДУЖИВАЊА (од 109 до 117) | D138: =SUM(D139:D147) -> 0 | E138: 0 | F138: 0 | G138: 0 | H138: 0 | I138: 0 | J138: 0 | K138: 0 | L138: 0 | M138: 0 | N138: 0 | O138: 0
A139: 109 | B139: 911100 | C139: Примања од емитовања домаћих хартија од вредности, изузев акција | N139: 0 | O139: 0
A140: 110 | B140: 911200 | C140: Примања од задуживања од осталих нивоа власти | N140: 0 | O140: 0
A141: 111 | B141: 911300 | C141: Примања од задуживања од јавних финансијских институција у земљи | N141: 0 | O141: 0
A142: 112 | B142: 911400 | C142: Примања од задуживања од пословних банака у земљи | N142: 0 | O142: 0
A143: 113 | B143: 911500 | C143: Примања од задуживања код осталих поверилаца у земљи | N143: 0 | O143: 0
A144: 114 | B144: 911600 | C144: Примања од задуживања од домаћинстава у земљи | N144: 0 | O144: 0
A145: 115 | B145: 911700 | C145: Примања од домаћих финансијских деривата | N145: 0 | O145: 0
A146: 116 | B146: 911800 | C146: Примања од домаћих меница | N146: 0 | O146: 0
A147: 117 | B147: 911900 | C147: Исправка унутрашњег дуга | N147: 0 | O147: 0
A148: 118 | B148: 912000 | C148: ПРИМАЊА ОД ИНОСТРАНОГ ЗАДУЖИВАЊА (од 119 + 125) | D148: =SUM(D149:D155) -> 0 | E148: 0 | F148: 0 | G148: 0 | H148: 0 | I148: 0 | J148: 0 | K148: 0 | L148: 0 | M148: 0 | N148: 0 | O148: 0
A149: 119 | B149: 912100 | C149: Примања од емитовања хартија од вредности, изузев акција, на иностраном финансијском тржишту | N149: 0 | O149: 0
A150: 120 | B150: 912200 | C150: Примања од задуживања од иностраних држава | N150: 0 | O150: 0
A151: 121 | B151: 912300 | C151: Примања од задуживања од мултилатералних институција | N151: 0 | O151: 0
A152: 122 | B152: 912400 | C152: Примања од задуживања од иностраних пословних банака | N152: 0 | O152: 0
A153: 123 | B153: 912500 | C153: Примања од задуживања од осталих иностраних поверилаца | N153: 0 | O153: 0
A154: 124 | B154: 912600 | C154: Примања од иностраних финансијских деривата | N154: 0 | O154: 0
A155: 125 | B155: 912900 | C155: Исправка спољног дуга | N155: 0 | O155: 0
A156: 126 | B156: 920000 | C156: ПРИМАЊА ОД ПРОДАЈЕ ФИНАНСИЈСКЕ ИМОВИНЕ (127 + 137) | D156: =D157+D167 -> 0 | E156: 0 | F156: 0 | G156: 0 | H156: 0 | I156: 0 | J156: 0 | K156: 0 | L156: 0 | M156: 0 | N156: 0 | O156: 0
A157: 127 | B157: 921000 | C157: ПРИМАЊА ОД ПРОДАЈЕ ДОМАЋЕ ФИНАНСИЈСКЕ ИМОВИНЕ (од 128 до 136) | D157: =SUM(D158:D166) -> 0 | E157: 0 | F157: 0 | G157: 0 | H157: 0 | I157: 0 | J157: 0 | K157: 0 | L157: 0 | M157: 0 | N157: 0 | O157: 0
A158: 128 | B158: 921100 | C158: Примања од продаје домаћих хартија од вредности, изузев акција | N158: 0 | O158: 0
A159: 129 | B159: 921200 | C159: Примања од отплате кредита датих осталим нивоима власти | N159: 0 | O159: 0
A160: 130 | B160: 921300 | C160: Примања од отплате кредита датих домаћим јавним финансијским институцијама | N160: 0 | O160: 0
A161: 131 | B161: 921400 | C161: Примања од отплате кредита домаћим пословним банкама | N161: 0 | O161: 0
A162: 132 | B162: 921500 | C162: Примања од отплате кредита датих домаћим јавним нефинансијским институцијама | N162: 0 | O162: 0
A163: 133 | B163: 921600 | C163: Примања од отплате кредита датих физичким лицима и домаћинствима у земљи | N163: 0 | O163: 0
A164: 134 | B164: 921700 | C164: Примања од отплате кредита датих удружењима грађана у земљи | N164: 0 | O164: 0
A165: 135 | B165: 921800 | C165: Примања од отплате кредита датих нефинансијским приватним предузећима у земљи | N165: 0 | O165: 0
A166: 136 | B166: 921900 | C166: Примања од продаје домаћих акција и осталог капитала | N166: 0 | O166: 0
A167: =A166+1 -> 137 | B167: 922000 | C167: ПРИМАЊА ОД ПРОДАЈЕ СТРАНЕ ФИНАНСИЈСКЕ ИМОВИНЕ (од 138 до 145) | D167: =SUM(D168:D175) -> 0 | E167: =SUM(E168:E175) -> 0 | F167: 0 | G167: 0 | H167: 0 | I167: 0 | J167: 0 | K167: 0 | L167: 0 | M167: 0 | N167: 0 | O167: 0
A168: 138 | B168: 922100 | C168: Примања од продаје страних хартија од вредности, изузев акција | N168: 0 | O168: 0
A169: 139 | B169: 922200 | C169: Примања од отплате кредита датих страним владама | N169: 0 | O169: 0
A170: 140 | B170: 922300 | C170: Примања од отплате кредита датих међународним организацијама | N170: 0 | O170: 0
A171: 141 | B171: 922400 | C171: Примања од отплате кредита датих страним пословним банкама | N171: 0 | O171: 0
A172: 142 | B172: 922500 | C172: Примања од отплате кредита датих страним нефинансијским институцијама | N172: 0 | O172: 0
A173: 143 | B173: 922600 | C173: Примања од отплате кредита датих страним невладиним организацијама | N173: 0 | O173: 0
A174: 144 | B174: 922700 | C174: Примања од продаје страних акција и осталог капитала | N174: 0 | O174: 0
A175: 145 | B175: 922800 | C175: Примања од продаје стране валуте | N175: 0 | O175: 0
A176: 146 | C176: УКУПНИ ПРИХОДИ, ПРИМАЊА И ПРЕНЕТА СРЕДСТВА ИЗ ПРЕТХОДНЕ ГОДИНЕ (1 + 8 + 81 + 106) | D176: =D31+D38+D111+D136 -> 8057000 | E176: =E31+E38+E111+E136 -> 68759000 | F176: 16169000 | G176: 72882000 | H176: 16475000 | I176: 80491000 | J176: 17630000 | K176: 104880000 | L176: 17630000 | M176: 104880000 | N176: =SUM(H176,J176,L176) -> 51735000 | O176: =SUM(I176,K176,M176) -> 290251000
A177: 147 | B177: 400000 | C177: ТЕКУЋИ РАСХОДИ (148+166+211+226+250+263+279+294) | D177: =D178+D196+D241+D256+D280+D293+D309+D324 -> 8041000 | E177: 68671000 | F177: 16169000 | G177: 72873000 | H177: 15925000 | I177: 80191000 | J177: 17630000 | K177: 104880000 | L177: 17630000 | M177: 104880000 | N177: 51185000 | O177: 289951000
A178: 148 | B178: 410000 | C178: РАСХОДИ ЗА ЗАПОСЛЕНЕ (149+151+155+157+162+164) | D178: =D179+D181+D185+D187+D192+D194 -> 2994000 | E178: =E179+E181+E185+E187+E192+E194 -> 65425000 | F178: 3037000 | G178: 69299000 | H178: 2400000 | I178: 74696000 | J178: 3400000 | K178: 99000000 | L178: 3400000 | M178: 99000000 | N178: 9200000 | O178: 272696000
A179: 149 | B179: 411000 | C179: ПЛАТЕ, ДОДАЦИ И НАКНАДЕ ЗАПОСЛЕНИХ (ЗАРАДЕ) (150) | D179: =D180 -> 0 | E179: 53188000 | F179: 0 | G179: 56740000 | H179: 0 | I179: 62236000 | J179: 0 | K179: 80000000 | L179: 0 | M179: 80000000 | N179: 0 | O179: 222236000
A180: 150 | B180: 411100 | C180: Плате, додаци и накнаде запослених | E180: 53188000 | G180: 56740000 | I180: 62236000 | K180: 80000000 | M180: 80000000 | N180: 0 | O180: 222236000
A181: 151 | B181: 412000 | C181: СОЦИЈАЛНИ ДОПРИНОСИ НА ТЕРЕТ ПОСЛОДАВЦА (од 152 до 154) | D181: =SUM(D182:D184) -> 0 | E181: 9547000 | F181: 0 | G181: 10198000 | H181: 0 | I181: 11160000 | J181: 0 | K181: 16000000 | L181: 0 | M181: 16000000 | N181: 0 | O181: 43160000
A182: 152 | B182: 412100 | C182: Допринос за пензијско и инвалидско осигурање | E182: 6400000 | G182: 6837000 | I182: 7481000 | K182: 10000000 | M182: 10000000 | N182: 0 | O182: 27481000
A183: 153 | B183: 412200 | C183: Допринос за здравствено осигурање | E183: 2747000 | G183: 2934000 | I183: 3211000 | K183: 5000000 | M183: 5000000 | N183: 0 | O183: 13211000
A184: 154 | B184: 412300 | C184: Допринос за незапосленост | E184: 400000 | G184: 427000 | I184: 468000 | K184: 1000000 | M184: 1000000 | N184: 0 | O184: 2468000
A185: 155 | B185: 413000 | C185: НАКНАДЕ У НАТУРИ (156) | D185: =D186 -> 279000 | E185: 0 | F185: 327000 | G185: 0 | H185: 400000 | I185: 0 | J185: 600000 | K185: 0 | L185: 600000 | M185: 0 | N185: 1600000 | O185: 0
A186: 156 | B186: 413100 | C186: Накнаде у натури | D186: 279000 | F186: 327000 | H186: 400000 | J186: 600000 | L186: 600000 | N186: 1600000 | O186: 0
A187: 157 | B187: 414000 | C187: СОЦИЈАЛНА ДАВАЊА ЗАПОСЛЕНИМА (од 158 до 161) | D187: =SUM(D188:D191) -> 0 | E187: 2690000 | F187: 0 | G187: 2361000 | H187: 0 | I187: 1300000 | J187: 0 | K187: 3000000 | L187: 0 | M187: 3000000 | N187: 0 | O187: 7300000
A188: 158 | B188: 414100 | C188: Исплата накнада за време одсуствовања с посла на терет фондова | E188: 2690000 | G188: 1812000 | I188: 1000000 | K188: 2000000 | M188: 2000000 | N188: 0 | O188: 5000000
A189: 159 | B189: 414200 | C189: Расходи за образовање деце запослених | N189: 0 | O189: 0
A190: 160 | B190: 414300 | C190: Отпремнине и помоћи | G190: 549000 | I190: 300000 | K190: 1000000 | M190: 1000000 | N190: 0 | O190: 2300000
A191: 161 | B191: 414400 | C191: Помоћ у медицинском лечењу запосленог или чланова уже породице и друге помоћи запосленом | N191: 0 | O191: 0
A192: 162 | B192: 415000 | C192: НАКНАДА ТРОШКОВА ЗА ЗАПОСЛЕНЕ (163) | D192: =D193 -> 2271000 | E192: 0 | F192: 1783000 | G192: 0 | H192: 1450000 | I192: 0 | J192: 1800000 | K192: 0 | L192: 1800000 | M192: 0 | N192: 5050000 | O192: 0
A193: 163 | B193: 415100 | C193: Накнаде трошкова за запослене | D193: 2271000 | F193: 1783000 | H193: 1450000 | J193: 1800000 | L193: 1800000 | N193: 5050000 | O193: 0
A194: 164 | B194: 416000 | C194: НАГРАДЕ ЗАПОСЛЕНИМА И ОСТАЛИ ПОСЕБНИ РАСХОДИ (165) | D194: =D195 -> 444000 | E194: 0 | F194: 927000 | G194: 0 | H194: 550000 | I194: 0 | J194: 1000000 | K194: 0 | L194: 1000000 | M194: 0 | N194: 2550000 | O194: 0
A195: 165 | B195: 416100 | C195: Награде запосленима и остали посебни расходи | D195: 444000 | F195: 927000 | H195: 550000 | J195: 1000000 | L195: 1000000 | N195: 2550000 | O195: 0
A196: 166 | B196: 420000 | C196: КОРИШЋЕЊЕ УСЛУГА И РОБА (167 + 175 + 181 + 190 + 198 + 201) | D196: =D197+D205+D211+D220+D228+D231 -> 5022000 | E196: 2894000 | F196: 12690000 | G196: 3552000 | H196: 13495000 | I196: 5425000 | J196: 14030000 | K196: 5840000 | L196: 14030000 | M196: 5840000 | N196: =SUM(H196,J196,L196) -> 41555000 | O196: 17105000
A197: 167 | B197: 421000 | C197: СТАЛНИ ТРОШКОВИ (од 168 до 174) | D197: =SUM(D198:D204) -> 2210000 | E197: 66000 | F197: 7640000 | G197: 46000 | H197: 7200000 | I197: 95000 | J197: 9330000 | K197: 100000 | L197: 9330000 | M197: 100000 | N197: 25860000 | O197: 295000
A198: 168 | B198: 421100 | C198: Трошкови платног промета и банкарских услуга | D198: 102000 | E198: 21000 | F198: 130000 | G198: 20000 | H198: 130000 | I198: 30000 | J198: 150000 | K198: 50000 | L198: 150000 | M198: 50000 | N198: 430000 | O198: 130000
A199: 169 | B199: 421200 | C199: Енергетске услуге | D199: 1373000 | E199: 13000 | F199: 6489000 | G199: 15000 | H199: 5950000 | I199: 20000 | J199: 8000000 | L199: 8000000 | N199: 21950000 | O199: 20000
A200: 170 | B200: 421300 | C200: Комуналне услуге | D200: 680000 | F200: 924000 | H200: 1000000 | J200: 1000000 | L200: 1000000 | N200: 3000000 | O200: 0
A201: 171 | B201: 421400 | C201: Услуге комуникација | D201: 42000 | E201: 32000 | F201: 40000 | G201: 11000 | H201: 70000 | I201: 20000 | J201: 60000 | K201: 20000 | L201: 60000 | M201: 20000 | N201: 190000 | O201: 60000
A202: 172 | B202: 421500 | C202: Трошкови осигурања | D202: 13000 | F202: 57000 | H202: 50000 | J202: 60000 | L202: 60000 | N202: 170000 | O202: 0
A203: 173 | B203: 421600 | C203: Закуп имовине и опреме | I203: 25000 | J203: 60000 | K203: 30000 | L203: 60000 | M203: 30000 | N203: 120000 | O203: 85000
A204: 174 | B204: 421900 | C204: Остали трошкови | N204: 0 | O204: 0
A205: 175 | B205: 422000 | C205: ТРОШКОВИ ПУТОВАЊА (од 176 до 180) | D205: =SUM(D206:D210) -> 2431000 | E205: 451000 | F205: 2671000 | G205: 476000 | H205: 2600000 | I205: 600000 | J205: 3100000 | K205: 700000 | L205: 3100000 | M205: 700000 | N205: 8800000 | O205: 2000000
A206: 176 | B206: 422100 | C206: Трошкови службених путовања у земљи | E206: 451000 | G206: 476000 | I206: 600000 | K206: 700000 | M206: 700000 | N206: 0 | O206: 2000000
A207: 177 | B207: 422200 | C207: Трошкови службених путовања у иностранство | N207: 0 | O207: 0
A208: 178 | B208: 422300 | C208: Трошкови путовања у оквиру редовног рада | N208: 0 | O208: 0
... 255 more rows

Sheet Пројекат (2)
A1: Обрасци за припрему програмског буџета
A2: 3. ПРОЈЕКАТ
A4: Програм коме припада: | D4: =IF(Програм!$D$4="","",Програм!$D$4) -> Програм 9. Основно образовање и вспитање
A5: Шифра пројекта: | D5: =Програм!$D$5 -> 2002 | E5: П1
A6: Назив пројекта: | D6: Унапређење квлитета образовања и васпитања
A7: Функција: | D7: 912- Основно образовање
A8: Назив организационе јединице/Буџетски корисник: | D8: ОШ ,, ДЕСАНКА МАКСИМОВИЋ,, ГРДЕЛИЦА
A9: Сврха: | D9: Унапређење квлитета образовања и васпитања
A10: Основ: | D10: Пројетна документација
A11: Опис: | D11: Израда ограде
A12: Трајање пројекта: | D12: 2019
A13: Ознака за капитални пројекат: | D13: пројетна документација
A14: Ознака да ли је ИПА пројекат:
A15: Мере и поглавље преговора о приступању ЕУ:
A16: Одговорно лице за спровођење пројекта: | D16: Ненад Младеновић
B18: Циљ* | D18: Индикатори**
D19: Назив индикатора | G19: Вредност у базној години (2017) | H19: Очекивана вредност у 2018. години | I19: Циљана вредност у 2019. години | J19: Циљана вредност у 2020. години | K19: Циљана вредност у 2021. години | L19: Извор верификације
A20: 1 | B20: Унапређење квалитета образовања | D20: Број деце које похађају ваннаставне активности | G20: 0.75 | H20: 0.8 | I20: 0.9 | J20: 0.95 | K20: 0.95 | L20: Школска документација
D21: Број стручних лица која су добила најмање 24 бода за стручно усавршавње | G21: 0.5 | H21: 0.55 | I21: 0.6 | J21: 0.65 | K21: 0.65 | L21: Извештај о стручном усавршавању
A25: ПЛАНИРАНА СРЕДСТВА ЗА ПРОЈЕКАТ
A26: Рбр. | B26: Конто | C26: ОПИС | D26: Вредност у базној години (2017) | F26: Очекивана вредност у 2018. години | H26: Вредност у 2019. години | J26: Вредност у 2020. години | L26: Вредност у 2021. години | N26: Укупно (2019-2021)
D27: Приходи из буџета | E27: Приходи из осталих извора | F27: Приходи из буџета | G27: Приходи из осталих извора | H27: Приходи из буџета | I27: Приходи из осталих извора | J27: Приходи из буџета | K27: Приходи из осталих извора | L27: Приходи из буџета | M27: Приходи из осталих извора | N27: Приходи из буџета | O27: Приходи из осталих извора
A28: 1 | B28: 2 | C28: 3 | D28: 4 | E28: 5 | F28: 6 | G28: 7 | H28: 8 | I28: 9 | J28: 10 | K28: 11 | L28: 12 | M28: 13 | N28: 14=(8+10+12) | O28: 15=(9+11+13)
A29: 1 | B29: 300000 | C29: КАПИТАЛ, УТВРЂИВАЊЕ РЕЗУЛТАТА ПОСЛОВАЊА И ВАНБИЛАНСНА ЕВИДЕНЦИЈА (2 + 5) | D29: =SUM(D30,D33) -> 0 | E29: =SUM(E30,E33) -> 0 | F29: 0 | G29: 0 | H29: 0 | I29: 0 | J29: 0 | K29: 0 | L29: 0 | M29: 0 | N29: 0 | O29: 0
A30: 2 | B30: 310000 | C30: КАПИТАЛ (3) | D30: =SUM(D31) -> 0 | E30: =SUM(E31) -> 0 | F30: 0 | G30: 0 | H30: 0 | I30: 0 | J30: 0 | K30: 0 | L30: 0 | M30: 0 | N30: 0 | O30: 0
A31: 3 | B31: 311000 | C31: КАПИТАЛ (4) | D31: =SUM(D32) -> 0 | E31: 0 | F31: 0 | G31: 0 | H31: 0 | I31: 0 | J31: 0 | K31: 0 | L31: 0 | M31: 0 | N31: 0 | O31: 0
A32: 4 | B32: 311700 | C32: Пренета неутрошена средства из ранијих година | N32: =SUM(H32,J32,L32) -> 0 | O32: =SUM(I32,K32,M32) -> 0
A33: 5 | B33: 320000 | C33: УТВРЂИВАЊЕ РЕЗУЛТАТА ПОСЛОВАЊА (6) | D33: =SUM(D34) -> 0 | E33: =SUM(E34) -> 0 | F33: 0 | G33: 0 | H33: 0 | I33: 0 | J33: 0 | K33: 0 | L33: 0 | M33: 0 | N33: 0 | O33: 0
A34: 6 | B34: 321000 | C34: УТВРЂИВАЊЕ РЕЗУЛТАТА ПОСЛОВАЊА (7) | D34: =SUM(D35) -> 0 | E34: 0 | F34: 0 | G34: 0 | H34: 0 | I34: 0 | J34: 0 | K34: 0 | L34: 0 | M34: 0 | N34: 0 | O34: 0
A35: 7 | B35: 321300 | C35: Нераспоређени вишак прихода и примања или дефицит из ранијих година | N35: =SUM(H35,J35,L35) -> 0 | O35: =SUM(I35,K35,M35) -> 0
A36: =A35+1 -> 8 | B36: 700000 | C36: ТЕКУЋИ ПРИХОДИ (9 + 32 + 44 + 69 + 74 +78) | D36: =D37+D60+D72+D97+D102+D106 -> 0 | E36: =E37+E60+E72+E97+E102+E106 -> 0 | F36: 0 | G36: 0 | H36: 0 | I36: 0 | J36: 0 | K36: 0 | L36: 0 | M36: 0 | N36: =N37+N60+N72+N97+N102+N106 -> 0 | O36: 0
A37: =A36+1 -> 9 | B37: 710000 | C37: ПОРЕЗИ (10 + 14 + 16 + 23 + 29) | D37: =D38+D42+D44+D51+D57 -> 0 | E37: =E38+E42+E44+E51+E57 -> 0 | F37: 0 | G37: 0 | H37: 0 | I37: 0 | J37: 0 | K37: 0 | L37: 0 | M37: 0 | N37: 0 | O37: 0
A38: 10 | B38: 711000 | C38: ПОРЕЗ НА ДОХОДАК, ДОБИТ И КАПИТАЛНЕ ДОБИТКЕ (од 11 до 13) | D38: =SUM(D39:D41) -> 0 | E38: =SUM(E39:E41) -> 0 | F38: 0 | G38: 0 | H38: 0 | I38: 0 | J38: 0 | K38: 0 | L38: 0 | M38: 0 | N38: =SUM(H38,J38,L38) -> 0 | O38: 0
A39: 11 | B39: 711100 | C39: Порези на доходак и капиталнe добиткe које плаћају физичка лица | N39: 0 | O39: 0
A40: 12 | B40: 711200 | C40: Порези на добит и капиталне добитке које плаћају предузећа и друга правна лица | N40: 0 | O40: 0
A41: 13 | B41: 711300 | C41: Порези на доходак, добит и капиталне добитке који се не могу разврстати између физичких и правних лица | N41: 0 | O41: 0
A42: 14 | B42: 712000 | C42: ПОРЕЗ НА ФОНД ЗАРАДА (15) | D42: =SUM(D43) -> 0 | E42: 0 | F42: 0 | G42: 0 | H42: 0 | I42: 0 | J42: 0 | K42: 0 | L42: 0 | M42: 0 | N42: 0 | O42: 0
A43: 15 | B43: 712100 | C43: Порез на фонд зарада | N43: 0 | O43: 0
A44: 16 | B44: 713000 | C44: ПОРЕЗ НА ИМОВИНУ (од 17 до 22) | D44: =SUM(D45:D50) -> 0 | E44: 0 | F44: 0 | G44: 0 | H44: 0 | I44: 0 | J44: 0 | K44: 0 | L44: 0 | M44: 0 | N44: 0 | O44: 0
A45: 17 | B45: 713100 | C45: Периодични порези на непокретности | N45: 0 | O45: 0
A46: 18 | B46: 713200 | C46: Периодични порези на нето имовину | N46: 0 | O46: 0
A47: 19 | B47: 713300 | C47: Порези на заоставштину, наслеђе и поклон | N47: 0 | O47: 0
A48: 20 | B48: 713400 | C48: Порези на финансијске и капиталне трансакције | N48: 0 | O48: 0
A49: 21 | B49: 713500 | C49: Други једнократни порези на имовину | N49: 0 | O49: 0
A50: 22 | B50: 713600 | C50: Други периодични порези на имовину | N50: 0 | O50: 0
A51: 23 | B51: 714000 | C51: ПОРЕЗ НА ДОБРА И УСЛУГЕ (од 24 до 28) | D51: =SUM(D52:D56) -> 0 | E51: 0 | F51: 0 | G51: 0 | H51: 0 | I51: 0 | J51: 0 | K51: 0 | L51: 0 | M51: 0 | N51: 0 | O51: 0
A52: 24 | B52: 714100 | C52: Општи порези на добра и услуге | N52: 0 | O52: 0
A53: 25 | B53: 714300 | C53: Добит фискалних монопола | N53: 0 | O53: 0
A54: 26 | B54: 714400 | C54: Порези на појединачне услуге | N54: 0 | O54: 0
A55: 27 | B55: 714500 | C55: Порези, таксе и накнаде на употребу добара, на дозволу да се добра употребљавају или делатности обављају | N55: 0 | O55: 0
A56: 28 | B56: 714600 | C56: Други порези на добра и услуге | N56: 0 | O56: 0
A57: 29 | B57: 716000 | C57: ДРУГИ ПОРЕЗИ (30 + 31) | D57: =SUM(D58:D59) -> 0 | E57: 0 | F57: 0 | G57: 0 | H57: 0 | I57: 0 | J57: 0 | K57: 0 | L57: 0 | M57: 0 | N57: 0 | O57: 0
A58: 30 | B58: 716100 | C58: Други порези које искључиво плаћају предузећа, односно предузетници | N58: 0 | O58: 0
A59: 31 | B59: 716200 | C59: Други порези које плаћају остала лица или који се не могу идентификовати | N59: 0 | O59: 0
A60: 32 | B60: 730000 | C60: ДОНАЦИЈЕ, ПОМОЋИ И ТРАНСФЕРИ (33 + 36 + 41) | D60: =D61+D64+D69 -> 0 | E60: =E61+E64+E69 -> 0 | F60: 0 | G60: 0 | H60: 0 | I60: 0 | J60: 0 | K60: 0 | L60: 0 | M60: 0 | N60: 0 | O60: 0
A61: 33 | B61: 731000 | C61: ДОНАЦИЈЕ ОД ИНОСТРАНИХ ДРЖАВА (34 + 35) | D61: =SUM(D62:D63) -> 0 | E61: 0 | F61: 0 | G61: 0 | H61: 0 | I61: 0 | J61: 0 | K61: 0 | L61: 0 | M61: 0 | N61: 0 | O61: 0
A62: 34 | B62: 731100 | C62: Текуће донације од иностраних држава | N62: 0 | O62: 0
A63: 35 | B63: 731200 | C63: Капиталне донације од иностраних држава | N63: 0 | O63: 0
A64: 36 | B64: 732000 | C64: ДОНАЦИЈЕ И ПОМОЋИ ОД МЕЂУНАРОДНИХ ОРГАНИЗАЦИЈА (од 37 до 40) | D64: =SUM(D65:D68) -> 0 | E64: =SUM(E65:E68) -> 0 | F64: 0 | G64: 0 | H64: 0 | I64: 0 | J64: 0 | K64: 0 | L64: 0 | M64: 0 | N64: 0 | O64: 0
A65: 37 | B65: 732100 | C65: Текуће донације од међународних организација | N65: 0 | O65: 0
A66: 38 | B66: 732200 | C66: Капиталне донације од међународних организација | N66: 0 | O66: 0
A67: 39 | B67: 732300 | C67: Текуће помоћи од ЕУ | N67: 0 | O67: 0
A68: 40 | B68: 732400 | C68: Капиталне помоћи од ЕУ | N68: 0 | O68: 0
A69: 41 | B69: 733000 | C69: ТРАНСФЕРИ ОД ДРУГИХ НИВОА ВЛАСТИ (42 + 43) | D69: =SUM(D70:D71) -> 0 | E69: 0 | F69: 0 | G69: 0 | H69: 0 | I69: 0 | J69: 0 | K69: 0 | L69: 0 | M69: 0 | N69: =SUM(H69,J69,L69) -> 0 | O69: 0
A70: 42 | B70: 733100 | C70: Текући трансфери од других нивоа власти | N70: 0 | O70: 0
A71: 43 | B71: 733200 | C71: Капитални трансфери од других нивоа власти | N71: 0 | O71: 0
A72: 44 | B72: 740000 | C72: ДРУГИ ПРИХОДИ (45 + 52 + 57 + 64 + 67) | D72: =D73+D80+D85+D92+D95 -> 0 | E72: =E73+E80+E85+E92+E95 -> 0 | F72: 0 | G72: 0 | H72: 0 | I72: 0 | J72: 0 | K72: 0 | L72: 0 | M72: 0 | N72: 0 | O72: 0
A73: 45 | B73: 741000 | C73: ПРИХОДИ ОД ИМОВИНЕ (од 46 до 51) | D73: =SUM(D74:D79) -> 0 | E73: =SUM(E74:E79) -> 0 | F73: 0 | G73: 0 | H73: 0 | I73: 0 | J73: 0 | K73: 0 | L73: 0 | M73: 0 | N73: 0 | O73: 0
A74: 46 | B74: 741100 | C74: Камате | N74: 0 | O74: 0
A75: 47 | B75: 741200 | C75: Дивиденде | N75: 0 | O75: 0
A76: 48 | B76: 741300 | C76: Повлачење прихода од квази корпорација | N76: 0 | O76: 0
A77: 49 | B77: 741400 | C77: Приход од имовине који припада имаоцима полиса осигурања | N77: 0 | O77: 0
A78: 50 | B78: 741500 | C78: Закуп непроизведене имовине | N78: 0 | O78: 0
A79: 51 | B79: 741600 | C79: Финансијске промене на финансијским лизинзима | N79: 0 | O79: 0
A80: 52 | B80: 742000 | C80: ПРИХОДИ ОД ПРОДАЈЕ ДОБАРА И УСЛУГА (од 53 до 56) | D80: =SUM(D81:D84) -> 0 | E80: 0 | F80: 0 | G80: 0 | H80: 0 | I80: 0 | J80: 0 | K80: 0 | L80: 0 | M80: 0 | N80: 0 | O80: 0
A81: 53 | B81: 742100 | C81: Приходи од продаје добара и услуга или закупа од стране тржишних организација | N81: 0 | O81: 0
A82: 54 | B82: 742200 | C82: Таксе и накнаде | N82: 0 | O82: 0
A83: 55 | B83: 742300 | C83: Споредне продаје добара и услуга које врше државне нетржишне јединице | N83: 0 | O83: 0
A84: 56 | B84: 742400 | C84: Импутиране продаје добара и услуга | N84: 0 | O84: 0
A85: 57 | B85: 743000 | C85: НОВЧАНЕ КАЗНЕ И ОДУЗЕТА ИМОВИНСКА КОРИСТ (од 58 до 63) | D85: =SUM(D86:D91) -> 0 | E85: 0 | F85: 0 | G85: 0 | H85: 0 | I85: 0 | J85: 0 | K85: 0 | L85: 0 | M85: 0 | N85: 0 | O85: 0
A86: 58 | B86: 743100 | C86: Приходи од новчаних казни за кривична дела | N86: 0 | O86: 0
A87: 59 | B87: 743200 | C87: Приходи од новчаних казни за привредне преступе | N87: 0 | O87: 0
A88: 60 | B88: 743300 | C88: Приходи од новчаних казни за прекршаје | N88: 0 | O88: 0
A89: 61 | B89: 743400 | C89: Приходи од пенала | N89: 0 | O89: 0
A90: 62 | B90: 743500 | C90: Приходи од одузете имовинске користи | N90: 0 | O90: 0
A91: 63 | B91: 743900 | C91: Остале новчане казне, пенали и приходи од одузете имовинске користи | N91: 0 | O91: 0
A92: 64 | B92: 744000 | C92: ДОБРОВОЉНИ ТРАНСФЕРИ ОД ФИЗИЧКИХ И ПРАВНИХ ЛИЦА (65 + 66) | D92: =SUM(D93:D94) -> 0 | E92: 0 | F92: 0 | G92: 0 | H92: 0 | I92: 0 | J92: 0 | K92: 0 | L92: 0 | M92: 0 | N92: 0 | O92: 0
A93: 65 | B93: 744100 | C93: Текући добровољни трансфери од физичких и правних лица | N93: 0 | O93: 0
A94: 66 | B94: 744200 | C94: Капитални добровољни трансфери од физичких и правних лица | N94: 0 | O94: 0
A95: 67 | B95: 745000 | C95: МЕШОВИТИ И НЕОДРЕЂЕНИ ПРИХОДИ (68) | D95: =D96 -> 0 | E95: =E96 -> 0 | F95: 0 | G95: 0 | H95: 0 | I95: 0 | J95: 0 | K95: 0 | L95: 0 | M95: 0 | N95: 0 | O95: 0
A96: 68 | B96: 745100 | C96: Мешовити и неодређени приходи | N96: 0 | O96: 0
A97: 69 | B97: 770000 | C97: МЕМОРАНДУМСКЕ СТАВКЕ ЗА РЕФУНДАЦИЈУ РАСХОДА (70 + 72) | D97: =D98+D100 -> 0 | E97: 0 | F97: 0 | G97: 0 | H97: 0 | I97: 0 | J97: 0 | K97: 0 | L97: 0 | M97: 0 | N97: 0 | O97: 0
A98: 70 | B98: 771000 | C98: МЕМОРАНДУМСКЕ СТАВКЕ ЗА РЕФУНДАЦИЈУ РАСХОДА (71) | D98: =D99 -> 0 | E98: =E99 -> 0 | F98: 0 | G98: 0 | H98: 0 | I98: 0 | J98: 0 | K98: 0 | L98: 0 | M98: 0 | N98: 0 | O98: 0
A99: 71 | B99: 771100 | C99: Меморандумске ставке за рефундацију расхода | N99: 0 | O99: 0
A100: 72 | B100: 772000 | C100: МЕМОРАНДУМСКЕ СТАВКЕ ЗА РЕФУНДАЦИЈУ РАСХОДА ИЗ ПРЕТХОДНЕ ГОДИНЕ (73) | D100: =D101 -> 0 | E100: =E101 -> 0 | F100: 0 | G100: 0 | H100: 0 | I100: 0 | J100: 0 | K100: 0 | L100: 0 | M100: 0 | N100: 0 | O100: 0
A101: =A100+1 -> 73 | B101: 772100 | C101: Меморандумске ставке за рефундацију расхода из претходне године | N101: 0 | O101: 0
A102: 74 | B102: 780000 | C102: ТРАНСФЕРИ ИЗМЕЂУ БУЏЕТСКИХ КОРИСНИКА НА ИСТОМ НИВОУ (75) | D102: =D103 -> 0 | E102: 0 | F102: 0 | G102: 0 | H102: 0 | I102: 0 | J102: 0 | K102: 0 | L102: 0 | M102: 0 | N102: 0 | O102: 0
A103: 75 | B103: 781000 | C103: ТРАНСФЕРИ ИЗМЕЂУ БУЏЕТСКИХ КОРИСНИКА НА ИСТОМ НИВОУ (76 + 77) | D103: =SUM(D104:D105) -> 0 | E103: 0 | F103: 0 | G103: 0 | H103: 0 | I103: 0 | J103: 0 | K103: 0 | L103: 0 | M103: 0 | N103: 0 | O103: 0
A104: 76 | B104: 781100 | C104: Трансфери између буџетских корисника на истом нивоу | N104: 0
A105: 77 | B105: 781300 | C105: Трансфери између организација обавезног социјалног осигурања | N105: =SUM(H105,J105,L105) -> 0 | O105: 0
A106: 78 | B106: 790000 | C106: ПРИХОДИ ИЗ БУЏЕТА (79) | D106: =D107 -> 0 | E106: 0 | F106: 0 | G106: 0 | H106: 0 | I106: 0 | J106: 0 | K106: 0 | L106: 0 | M106: 0 | N106: 0 | O106: 0
A107: 79 | B107: 791000 | C107: ПРИХОДИ ИЗ БУЏЕТА (80) | D107: =D108 -> 0 | E107: 0 | F107: 0 | G107: 0 | H107: 0 | I107: 0 | J107: 0 | K107: 0 | L107: 0 | M107: 0 | N107: 0 | O107: =SUM(I107,K107,M107) -> 0
A108: 80 | B108: 791100 | C108: Приходи из буџета | N108: 0
A109: 81 | B109: 800000 | C109: ПРИМАЊА ОД ПРОДАЈЕ НЕФИНАНСИЈСКЕ ИМОВИНЕ (82 + 89 + 96 + 99) | D109: =D110+D117+D124+D127 -> 0 | E109: =E110+E117+E124+E127 -> 0 | F109: 0 | G109: 0 | H109: 0 | I109: 0 | J109: 0 | K109: 0 | L109: 0 | M109: 0 | N109: 0 | O109: 0
A110: 82 | B110: 810000 | C110: ПРИМАЊА ОД ПРОДАЈЕ ОСНОВНИХ СРЕДСТАВА (83 + 85 + 87) | D110: =D111+D113+D115 -> 0 | E110: =E111+E113+E115 -> 0 | F110: 0 | G110: 0 | H110: 0 | I110: 0 | J110: 0 | K110: 0 | L110: 0 | M110: 0 | N110: 0 | O110: 0
A111: 83 | B111: 811000 | C111: ПРИМАЊА ОД ПРОДАЈЕ НЕПОКРЕТНОСТИ (84) | D111: =D112 -> 0 | E111: =E112 -> 0 | F111: 0 | G111: 0 | H111: 0 | I111: 0 | J111: 0 | K111: 0 | L111: 0 | M111: 0 | N111: 0 | O111: 0
A112: 84 | B112: 811100 | C112: Примања од продаје непокретности | N112: 0 | O112: 0
A113: 85 | B113: 812000 | C113: ПРИМАЊА ОД ПРОДАЈЕ ПОКРЕТНЕ ИМОВИНЕ (86) | D113: =D114 -> 0 | E113: 0 | F113: 0 | G113: 0 | H113: 0 | I113: 0 | J113: 0 | K113: 0 | L113: 0 | M113: 0 | N113: 0 | O113: 0
A114: 86 | B114: 812100 | C114: Примања од продаје покретне имовине | N114: 0 | O114: 0
A115: 87 | B115: 813000 | C115: ПРИМАЊА ОД ПРОДАЈЕ ОСТАЛИХ ОСНОВНИХ СРЕДСТАВА (88) | D115: =D116 -> 0 | E115: 0 | F115: 0 | G115: 0 | H115: 0 | I115: 0 | J115: 0 | K115: 0 | L115: 0 | M115: 0 | N115: 0 | O115: 0
A116: 88 | B116: 813100 | C116: Примања од продаје осталих основних средстава | N116: 0 | O116: 0
A117: 89 | B117: 820000 | C117: ПРИМАЊА ОД ПРОДАЈЕ ЗАЛИХА (90 + 92 + 94) | D117: =D118+D120+D122 -> 0 | E117: 0 | F117: 0 | G117: 0 | H117: 0 | I117: 0 | J117: 0 | K117: 0 | L117: 0 | M117: 0 | N117: 0 | O117: 0
A118: 90 | B118: 821000 | C118: ПРИМАЊА ОД ПРОДАЈЕ РОБНИХ РЕЗЕРВИ (91) | D118: =D119 -> 0 | E118: 0 | F118: 0 | G118: 0 | H118: 0 | I118: 0 | J118: 0 | K118: 0 | L118: 0 | M118: 0 | N118: 0 | O118: 0
A119: 91 | B119: 821100 | C119: Примања од продаје робних резерви | N119: 0 | O119: 0
A120: 92 | B120: 822000 | C120: ПРИМАЊА ОД ПРОДАЈЕ ЗАЛИХА ПРОИЗВОДЊЕ (93) | D120: =D121 -> 0 | E120: 0 | F120: 0 | G120: 0 | H120: 0 | I120: 0 | J120: 0 | K120: 0 | L120: 0 | M120: 0 | N120: 0 | O120: 0
A121: 93 | B121: 822100 | C121: Примања од продаје залиха производње | N121: 0 | O121: 0
A122: 94 | B122: 823000 | C122: ПРИМАЊА ОД ПРОДАЈЕ РОБЕ ЗА ДАЉУ ПРОДАЈУ (95) | D122: =D123 -> 0 | E122: 0 | F122: 0 | G122: 0 | H122: 0 | I122: 0 | J122: 0 | K122: 0 | L122: 0 | M122: 0 | N122: 0 | O122: 0
A123: 95 | B123: 823100 | C123: Примања од продаје робе за даљу продају | N123: 0 | O123: 0
A124: 96 | B124: 830000 | C124: ПРИМАЊА ОД ПРОДАЈЕ ДРАГОЦЕНОСТИ (97) | D124: =D125 -> 0 | E124: 0 | F124: 0 | G124: 0 | H124: 0 | I124: 0 | J124: 0 | K124: 0 | L124: 0 | M124: 0 | N124: 0 | O124: 0
A125: 97 | B125: 831000 | C125: ПРИМАЊА ОД ПРОДАЈЕ ДРАГОЦЕНОСТИ (98) | D125: 0 | E125: 0 | F125: 0 | G125: 0 | H125: 0 | I125: 0 | J125: 0 | K125: 0 | L125: 0 | M125: 0 | N125: 0 | O125: 0
A126: 98 | B126: 831100 | C126: Примања од продаје драгоцености | N126: 0 | O126: 0
A127: 99 | B127: 840000 | C127: ПРИМАЊА ОД ПРОДАЈЕ ПРИРОДНЕ ИМОВИНЕ (100 + 102 + 104) | D127: =D128+D130+D132 -> 0 | E127: 0 | F127: 0 | G127: 0 | H127: 0 | I127: 0 | J127: 0 | K127: 0 | L127: 0 | M127: 0 | N127: 0 | O127: 0
A128: 100 | B128: 841000 | C128: ПРИМАЊА ОД ПРОДАЈЕ ЗЕМЉИШТА (101) | D128: =D129 -> 0 | E128: 0 | F128: 0 | G128: 0 | H128: 0 | I128: 0 | J128: 0 | K128: 0 | L128: 0 | M128: 0 | N128: 0 | O128: 0
A129: 101 | B129: 841100 | C129: Примања од продаје земљишта | N129: 0 | O129: 0
A130: 102 | B130: 842000 | C130: ПРИМАЊА ОД ПРОДАЈЕ ПОДЗЕМНИХ БЛАГА (103) | D130: =D131 -> 0 | E130: 0 | F130: 0 | G130: 0 | H130: 0 | I130: 0 | J130: 0 | K130: 0 | L130: 0 | M130: 0 | N130: 0 | O130: 0
A131: 103 | B131: 842100 | C131: Примања од продаје подземних блага | N131: 0 | O131: 0
A132: 104 | B132: 843000 | C132: ПРИМАЊА ОД ПРОДАЈЕ ШУМА И ВОДА (105) | D132: =D133 -> 0 | E132: 0 | F132: 0 | G132: 0 | H132: 0 | I132: 0 | J132: 0 | K132: 0 | L132: 0 | M132: 0 | N132: 0 | O132: 0
A133: 105 | B133: 843100 | C133: Примања од продаје шума и вода | N133: =SUM(H133,J133,L133) -> 0 | O133: 0
A134: 106 | B134: 900000 | C134: ПРИМАЊА ОД ЗАДУЖИВАЊА И ПРОДАЈЕ ФИНАНСИЈСКЕ ИМОВИНЕ (107 + 126) | D134: =D135+D154 -> 0 | E134: =E135+E154 -> 0 | F134: 0 | G134: 0 | H134: 0 | I134: 0 | J134: 0 | K134: 0 | L134: 0 | M134: 0 | N134: 0 | O134: 0
A135: 107 | B135: 910000 | C135: ПРИМАЊА ОД ЗАДУЖИВАЊА (108+118) | D135: =D136+D146 -> 0 | E135: =E136+E146 -> 0 | F135: 0 | G135: 0 | H135: 0 | I135: 0 | J135: 0 | K135: 0 | L135: 0 | M135: 0 | N135: 0 | O135: 0
A136: 108 | B136: 911000 | C136: ПРИМАЊА ОД ДОМАЋИХ ЗАДУЖИВАЊА (од 109 до 117) | D136: =SUM(D137:D145) -> 0 | E136: 0 | F136: 0 | G136: 0 | H136: 0 | I136: 0 | J136: 0 | K136: 0 | L136: 0 | M136: 0 | N136: 0 | O136: 0
A137: 109 | B137: 911100 | C137: Примања од емитовања домаћих хартија од вредности, изузев акција | N137: 0 | O137: 0
A138: 110 | B138: 911200 | C138: Примања од задуживања од осталих нивоа власти | N138: 0 | O138: 0
A139: 111 | B139: 911300 | C139: Примања од задуживања од јавних финансијских институција у земљи | N139: 0 | O139: 0
A140: 112 | B140: 911400 | C140: Примања од задуживања од пословних банака у земљи | N140: 0 | O140: 0
A141: 113 | B141: 911500 | C141: Примања од задуживања код осталих поверилаца у земљи | N141: 0 | O141: 0
A142: 114 | B142: 911600 | C142: Примања од задуживања од домаћинстава у земљи | N142: 0 | O142: 0
A143: 115 | B143: 911700 | C143: Примања од домаћих финансијских деривата | N143: 0 | O143: 0
A144: 116 | B144: 911800 | C144: Примања од домаћих меница | N144: 0 | O144: 0
A145: 117 | B145: 911900 | C145: Исправка унутрашњег дуга | N145: 0 | O145: 0
A146: 118 | B146: 912000 | C146: ПРИМАЊА ОД ИНОСТРАНОГ ЗАДУЖИВАЊА (од 119 + 125) | D146: =SUM(D147:D153) -> 0 | E146: 0 | F146: 0 | G146: 0 | H146: 0 | I146: 0 | J146: 0 | K146: 0 | L146: 0 | M146: 0 | N146: 0 | O146: 0
A147: 119 | B147: 912100 | C147: Примања од емитовања хартија од вредности, изузев акција, на иностраном финансијском тржишту | N147: 0 | O147: 0
A148: 120 | B148: 912200 | C148: Примања од задуживања од иностраних држава | N148: 0 | O148: 0
A149: 121 | B149: 912300 | C149: Примања од задуживања од мултилатералних институција | N149: 0 | O149: 0
A150: 122 | B150: 912400 | C150: Примања од задуживања од иностраних пословних банака | N150: 0 | O150: 0
A151: 123 | B151: 912500 | C151: Примања од задуживања од осталих иностраних поверилаца | N151: 0 | O151: 0
A152: 124 | B152: 912600 | C152: Примања од иностраних финансијских деривата | N152: 0 | O152: 0
A153: 125 | B153: 912900 | C153: Исправка спољног дуга | N153: 0 | O153: 0
A154: 126 | B154: 920000 | C154: ПРИМАЊА ОД ПРОДАЈЕ ФИНАНСИЈСКЕ ИМОВИНЕ (127 + 137) | D154: =D155+D165 -> 0 | E154: 0 | F154: 0 | G154: 0 | H154: 0 | I154: 0 | J154: 0 | K154: 0 | L154: 0 | M154: 0 | N154: 0 | O154: 0
A155: 127 | B155: 921000 | C155: ПРИМАЊА ОД ПРОДАЈЕ ДОМАЋЕ ФИНАНСИЈСКЕ ИМОВИНЕ (од 128 до 136) | D155: =SUM(D156:D164) -> 0 | E155: 0 | F155: 0 | G155: 0 | H155: 0 | I155: 0 | J155: 0 | K155: 0 | L155: 0 | M155: 0 | N155: 0 | O155: 0
A156: 128 | B156: 921100 | C156: Примања од продаје домаћих хартија од вредности, изузев акција | N156: 0 | O156: 0
A157: 129 | B157: 921200 | C157: Примања од отплате кредита датих осталим нивоима власти | N157: 0 | O157: 0
A158: 130 | B158: 921300 | C158: Примања од отплате кредита датих домаћим јавним финансијским институцијама | N158: 0 | O158: 0
A159: 131 | B159: 921400 | C159: Примања од отплате кредита домаћим пословним банкама | N159: 0 | O159: 0
A160: 132 | B160: 921500 | C160: Примања од отплате кредита датих домаћим јавним нефинансијским институцијама | N160: 0 | O160: 0
A161: 133 | B161: 921600 | C161: Примања од отплате кредита датих физичким лицима и домаћинствима у земљи | N161: 0 | O161: 0
A162: 134 | B162: 921700 | C162: Примања од отплате кредита датих удружењима грађана у земљи | N162: 0 | O162: 0
A163: 135 | B163: 921800 | C163: Примања од отплате кредита датих нефинансијским приватним предузећима у земљи | N163: 0 | O163: 0
A164: 136 | B164: 921900 | C164: Примања од продаје домаћих акција и осталог капитала | N164: 0 | O164: 0
A165: =A164+1 -> 137 | B165: 922000 | C165: ПРИМАЊА ОД ПРОДАЈЕ СТРАНЕ ФИНАНСИЈСКЕ ИМОВИНЕ (од 138 до 145) | D165: =SUM(D166:D173) -> 0 | E165: =SUM(E166:E173) -> 0 | F165: 0 | G165: 0 | H165: 0 | I165: 0 | J165: 0 | K165: 0 | L165: 0 | M165: 0 | N165: 0 | O165: 0
A166: 138 | B166: 922100 | C166: Примања од продаје страних хартија од вредности, изузев акција | N166: 0 | O166: 0
A167: 139 | B167: 922200 | C167: Примања од отплате кредита датих страним владама | N167: 0 | O167: 0
A168: 140 | B168: 922300 | C168: Примања од отплате кредита датих међународним организацијама | N168: 0 | O168: 0
A169: 141 | B169: 922400 | C169: Примања од отплате кредита датих страним пословним банкама | N169: 0 | O169: 0
A170: 142 | B170: 922500 | C170: Примања од отплате кредита датих страним нефинансијским институцијама | N170: 0 | O170: 0
A171: 143 | B171: 922600 | C171: Примања од отплате кредита датих страним невладиним организацијама | N171: 0 | O171: 0
A172: 144 | B172: 922700 | C172: Примања од продаје страних акција и осталог капитала | N172: 0 | O172: 0
A173: 145 | B173: 922800 | C173: Примања од продаје стране валуте | N173: 0 | O173: 0
A174: 146 | C174: УКУПНИ ПРИХОДИ, ПРИМАЊА И ПРЕНЕТА СРЕДСТВА ИЗ ПРЕТХОДНЕ ГОДИНЕ (1 + 8 + 81 + 106) | D174: =D29+D36+D109+D134 -> 0 | E174: =E29+E36+E109+E134 -> 0 | F174: 0 | G174: 0 | H174: 0 | I174: 0 | J174: 0 | K174: 0 | L174: 0 | M174: 0 | N174: =SUM(H174,J174,L174) -> 0 | O174: =SUM(I174,K174,M174) -> 0
A175: 147 | B175: 400000 | C175: ТЕКУЋИ РАСХОДИ (148+166+211+226+250+263+279+294) | D175: =D176+D194+D239+D254+D278+D291+D307+D322 -> 0 | E175: 0 | F175: 0 | G175: 0 | H175: 0 | I175: 0 | J175: 0 | K175: 0 | L175: 0 | M175: 0 | N175: 0 | O175: 0
A176: 148 | B176: 410000 | C176: РАСХОДИ ЗА ЗАПОСЛЕНЕ (149+151+155+157+162+164) | D176: =D177+D179+D183+D185+D190+D192 -> 0 | E176: =E177+E179+E183+E185+E190+E192 -> 0 | F176: 0 | G176: 0 | H176: 0 | I176: 0 | J176: 0 | K176: 0 | L176: 0 | M176: 0 | N176: 0 | O176: 0
A177: 149 | B177: 411000 | C177: ПЛАТЕ, ДОДАЦИ И НАКНАДЕ ЗАПОСЛЕНИХ (ЗАРАДЕ) (150) | D177: =D178 -> 0 | E177: 0 | F177: 0 | G177: 0 | H177: 0 | I177: 0 | J177: 0 | K177: 0 | L177: 0 | M177: 0 | N177: 0 | O177: 0
A178: 150 | B178: 411100 | C178: Плате, додаци и накнаде запослених | N178: 0 | O178: 0
A179: 151 | B179: 412000 | C179: СОЦИЈАЛНИ ДОПРИНОСИ НА ТЕРЕТ ПОСЛОДАВЦА (од 152 до 154) | D179: =SUM(D180:D182) -> 0 | E179: 0 | F179: 0 | G179: 0 | H179: 0 | I179: 0 | J179: 0 | K179: 0 | L179: 0 | M179: 0 | N179: 0 | O179: 0
A180: 152 | B180: 412100 | C180: Допринос за пензијско и инвалидско осигурање | N180: 0 | O180: 0
A181: 153 | B181: 412200 | C181: Допринос за здравствено осигурање | N181: 0 | O181: 0
A182: 154 | B182: 412300 | C182: Допринос за незапосленост | N182: 0 | O182: 0
A183: 155 | B183: 413000 | C183: НАКНАДЕ У НАТУРИ (156) | D183: =D184 -> 0 | E183: 0 | F183: 0 | G183: 0 | H183: 0 | I183: 0 | J183: 0 | K183: 0 | L183: 0 | M183: 0 | N183: 0 | O183: 0
A184: 156 | B184: 413100 | C184: Накнаде у натури | N184: 0 | O184: 0
A185: 157 | B185: 414000 | C185: СОЦИЈАЛНА ДАВАЊА ЗАПОСЛЕНИМА (од 158 до 161) | D185: =SUM(D186:D189) -> 0 | E185: 0 | F185: 0 | G185: 0 | H185: 0 | I185: 0 | J185: 0 | K185: 0 | L185: 0 | M185: 0 | N185: 0 | O185: 0
A186: 158 | B186: 414100 | C186: Исплата накнада за време одсуствовања с посла на терет фондова | N186: 0 | O186: 0
A187: 159 | B187: 414200 | C187: Расходи за образовање деце запослених | N187: 0 | O187: 0
A188: 160 | B188: 414300 | C188: Отпремнине и помоћи | N188: 0 | O188: 0
A189: 161 | B189: 414400 | C189: Помоћ у медицинском лечењу запосленог или чланова уже породице и друге помоћи запосленом | N189: 0 | O189: 0
A190: 162 | B190: 415000 | C190: НАКНАДА ТРОШКОВА ЗА ЗАПОСЛЕНЕ (163) | D190: =D191 -> 0 | E190: 0 | F190: 0 | G190: 0 | H190: 0 | I190: 0 | J190: 0 | K190: 0 | L190: 0 | M190: 0 | N190: 0 | O190: 0
A191: 163 | B191: 415100 | C191: Накнаде трошкова за запослене | N191: 0 | O191: 0
A192: 164 | B192: 416000 | C192: НАГРАДЕ ЗАПОСЛЕНИМА И ОСТАЛИ ПОСЕБНИ РАСХОДИ (165) | D192: =D193 -> 0 | E192: 0 | F192: 0 | G192: 0 | H192: 0 | I192: 0 | J192: 0 | K192: 0 | L192: 0 | M192: 0 | N192: 0 | O192: 0
A193: 165 | B193: 416100 | C193: Награде запосленима и остали посебни расходи | N193: 0 | O193: 0
A194: 166 | B194: 420000 | C194: КОРИШЋЕЊЕ УСЛУГА И РОБА (167 + 175 + 181 + 190 + 198 + 201) | D194: =D195+D203+D209+D218+D226+D229 -> 0 | E194: 0 | F194: 0 | G194: 0 | H194: 0 | I194: 0 | J194: 0 | K194: 0 | L194: 0 | M194: 0 | N194: =SUM(H194,J194,L194) -> 0 | O194: 0
A195: 167 | B195: 421000 | C195: СТАЛНИ ТРОШКОВИ (од 168 до 174) | D195: =SUM(D196:D202) -> 0 | E195: 0 | F195: 0 | G195: 0 | H195: 0 | I195: 0 | J195: 0 | K195: 0 | L195: 0 | M195: 0 | N195: 0 | O195: 0
A196: 168 | B196: 421100 | C196: Трошкови платног промета и банкарских услуга | N196: 0 | O196: 0
A197: 169 | B197: 421200 | C197: Енергетске услуге | N197: 0 | O197: 0
A198: 170 | B198: 421300 | C198: Комуналне услуге | N198: 0 | O198: 0
A199: 171 | B199: 421400 | C199: Услуге комуникација | N199: 0 | O199: 0
A200: 172 | B200: 421500 | C200: Трошкови осигурања | N200: 0 | O200: 0
A201: 173 | B201: 421600 | C201: Закуп имовине и опреме | N201: 0 | O201: 0
A202: 174 | B202: 421900 | C202: Остали трошкови | N202: 0 | O202: 0
A203: 175 | B203: 422000 | C203: ТРОШКОВИ ПУТОВАЊА (од 176 до 180) | D203: =SUM(D204:D208) -> 0 | E203: 0 | F203: 0 | G203: 0 | H203: 0 | I203: 0 | J203: 0 | K203: 0 | L203: 0 | M203: 0 | N203: 0 | O203: 0
A204: 176 | B204: 422100 | C204: Трошкови службених путовања у земљи | N204: 0 | O204: 0
A205: 177 | B205: 422200 | C205: Трошкови службених путовања у иностранство | N205: 0 | O205: 0
... 254 more rows

Sheet Пројекат (3)
A1: Обрасци за припрему програмског буџета
A2: 3. ПРОЈЕКАТ
A4: Програм коме припада: | D4: =IF(Програм!$D$4="","",Програм!$D$4) -> Програм 9. Основно образовање и вспитање
A5: Шифра пројекта: | D5: =Програм!$D$5 -> 2002 | E5: П1
A6: Назив пројекта: | D6: Унапређење квлитета образовања и васпитања
A7: Функција: | D7: 912- Основно образовање
A8: Назив организационе јединице/Буџетски корисник: | D8: ОШ ,, ДЕСАНКА МАКСИМОВИЋ,, ГРДЕЛИЦА
A9: Сврха: | D9: Унапређење квлитета образовања и васпитања
A10: Основ: | D10: Пројетна документација
A11: Опис: | D11: Реконструкција спрата школе
A12: Трајање пројекта: | D12: 2019
A13: Ознака за капитални пројекат: | D13: пројетна документација
A14: Ознака да ли је ИПА пројекат:
A15: Мере и поглавље преговора о приступању ЕУ:
A16: Одговорно лице за спровођење пројекта: | D16: Ненад Младеновић
B18: Циљ* | D18: Индикатори**
D19: Назив индикатора | G19: Вредност у базној години (2017) | H19: Очекивана вредност у 2018. години | I19: Циљана вредност у 2019. години | J19: Циљана вредност у 2020. години | K19: Циљана вредност у 2021. години | L19: Извор верификације
A20: 1 | B20: Унапређење квалитета образовања | D20: Број деце које похађају ваннаставне активности | G20: 0.75 | H20: 0.8 | I20: 0.9 | J20: 0.95 | K20: 0.95 | L20: Школска документација
D21: Број стручних лица која су добила најмање 24 бода за стручно усавршавње | G21: 0.5 | H21: 0.55 | I21: 0.6 | J21: 0.65 | K21: 0.65 | L21: Извештај о стручном усавршавању
A25: ПЛАНИРАНА СРЕДСТВА ЗА ПРОЈЕКАТ
A26: Рбр. | B26: Конто | C26: ОПИС | D26: Вредност у базној години (2017) | F26: Очекивана вредност у 2018. години | H26: Вредност у 2019. години | J26: Вредност у 2020. години | L26: Вредност у 2021. години | N26: Укупно (2019-2021)
D27: Приходи из буџета | E27: Приходи из осталих извора | F27: Приходи из буџета | G27: Приходи из осталих извора | H27: Приходи из буџета | I27: Приходи из осталих извора | J27: Приходи из буџета | K27: Приходи из осталих извора | L27: Приходи из буџета | M27: Приходи из осталих извора | N27: Приходи из буџета | O27: Приходи из осталих извора
A28: 1 | B28: 2 | C28: 3 | D28: 4 | E28: 5 | F28: 6 | G28: 7 | H28: 8 | I28: 9 | J28: 10 | K28: 11 | L28: 12 | M28: 13 | N28: 14=(8+10+12) | O28: 15=(9+11+13)
A29: 1 | B29: 300000 | C29: КАПИТАЛ, УТВРЂИВАЊЕ РЕЗУЛТАТА ПОСЛОВАЊА И ВАНБИЛАНСНА ЕВИДЕНЦИЈА (2 + 5) | D29: =SUM(D30,D33) -> 0 | E29: =SUM(E30,E33) -> 0 | F29: 0 | G29: 0 | H29: 0 | I29: 0 | J29: 0 | K29: 0 | L29: 0 | M29: 0 | N29: 0 | O29: 0
A30: 2 | B30: 310000 | C30: КАПИТАЛ (3) | D30: =SUM(D31) -> 0 | E30: =SUM(E31) -> 0 | F30: 0 | G30: 0 | H30: 0 | I30: 0 | J30: 0 | K30: 0 | L30: 0 | M30: 0 | N30: 0 | O30: 0
A31: 3 | B31: 311000 | C31: КАПИТАЛ (4) | D31: =SUM(D32) -> 0 | E31: 0 | F31: 0 | G31: 0 | H31: 0 | I31: 0 | J31: 0 | K31: 0 | L31: 0 | M31: 0 | N31: 0 | O31: 0
A32: 4 | B32: 311700 | C32: Пренета неутрошена средства из ранијих година | N32: =SUM(H32,J32,L32) -> 0 | O32: =SUM(I32,K32,M32) -> 0
A33: 5 | B33: 320000 | C33: УТВРЂИВАЊЕ РЕЗУЛТАТА ПОСЛОВАЊА (6) | D33: =SUM(D34) -> 0 | E33: =SUM(E34) -> 0 | F33: 0 | G33: 0 | H33: 0 | I33: 0 | J33: 0 | K33: 0 | L33: 0 | M33: 0 | N33: 0 | O33: 0
A34: 6 | B34: 321000 | C34: УТВРЂИВАЊЕ РЕЗУЛТАТА ПОСЛОВАЊА (7) | D34: =SUM(D35) -> 0 | E34: 0 | F34: 0 | G34: 0 | H34: 0 | I34: 0 | J34: 0 | K34: 0 | L34: 0 | M34: 0 | N34: 0 | O34: 0
A35: 7 | B35: 321300 | C35: Нераспоређени вишак прихода и примања или дефицит из ранијих година | N35: =SUM(H35,J35,L35) -> 0 | O35: =SUM(I35,K35,M35) -> 0
A36: =A35+1 -> 8 | B36: 700000 | C36: ТЕКУЋИ ПРИХОДИ (9 + 32 + 44 + 69 + 74 +78) | D36: =D37+D60+D72+D97+D102+D106 -> 0 | E36: =E37+E60+E72+E97+E102+E106 -> 0 | F36: 0 | G36: 0 | H36: 1800000 | I36: 0 | J36: 0 | K36: 0 | L36: 0 | M36: 0 | N36: =N37+N60+N72+N97+N102+N106 -> 1800000 | O36: 0
A37: =A36+1 -> 9 | B37: 710000 | C37: ПОРЕЗИ (10 + 14 + 16 + 23 + 29) | D37: =D38+D42+D44+D51+D57 -> 0 | E37: =E38+E42+E44+E51+E57 -> 0 | F37: 0 | G37: 0 | H37: 0 | I37: 0 | J37: 0 | K37: 0 | L37: 0 | M37: 0 | N37: 0 | O37: 0
A38: 10 | B38: 711000 | C38: ПОРЕЗ НА ДОХОДАК, ДОБИТ И КАПИТАЛНЕ ДОБИТКЕ (од 11 до 13) | D38: =SUM(D39:D41) -> 0 | E38: =SUM(E39:E41) -> 0 | F38: 0 | G38: 0 | H38: 0 | I38: 0 | J38: 0 | K38: 0 | L38: 0 | M38: 0 | N38: =SUM(H38,J38,L38) -> 0 | O38: 0
A39: 11 | B39: 711100 | C39: Порези на доходак и капиталнe добиткe које плаћају физичка лица | N39: 0 | O39: 0
A40: 12 | B40: 711200 | C40: Порези на добит и капиталне добитке које плаћају предузећа и друга правна лица | N40: 0 | O40: 0
A41: 13 | B41: 711300 | C41: Порези на доходак, добит и капиталне добитке који се не могу разврстати између физичких и правних лица | N41: 0 | O41: 0
A42: 14 | B42: 712000 | C42: ПОРЕЗ НА ФОНД ЗАРАДА (15) | D42: =SUM(D43) -> 0 | E42: 0 | F42: 0 | G42: 0 | H42: 0 | I42: 0 | J42: 0 | K42: 0 | L42: 0 | M42: 0 | N42: 0 | O42: 0
A43: 15 | B43: 712100 | C43: Порез на фонд зарада | N43: 0 | O43: 0
A44: 16 | B44: 713000 | C44: ПОРЕЗ НА ИМОВИНУ (од 17 до 22) | D44: =SUM(D45:D50) -> 0 | E44: 0 | F44: 0 | G44: 0 | H44: 0 | I44: 0 | J44: 0 | K44: 0 | L44: 0 | M44: 0 | N44: 0 | O44: 0
A45: 17 | B45: 713100 | C45: Периодични порези на непокретности | N45: 0 | O45: 0
A46: 18 | B46: 713200 | C46: Периодични порези на нето имовину | N46: 0 | O46: 0
A47: 19 | B47: 713300 | C47: Порези на заоставштину, наслеђе и поклон | N47: 0 | O47: 0
A48: 20 | B48: 713400 | C48: Порези на финансијске и капиталне трансакције | N48: 0 | O48: 0
A49: 21 | B49: 713500 | C49: Други једнократни порези на имовину | N49: 0 | O49: 0
A50: 22 | B50: 713600 | C50: Други периодични порези на имовину | N50: 0 | O50: 0
A51: 23 | B51: 714000 | C51: ПОРЕЗ НА ДОБРА И УСЛУГЕ (од 24 до 28) | D51: =SUM(D52:D56) -> 0 | E51: 0 | F51: 0 | G51: 0 | H51: 0 | I51: 0 | J51: 0 | K51: 0 | L51: 0 | M51: 0 | N51: 0 | O51: 0
A52: 24 | B52: 714100 | C52: Општи порези на добра и услуге | N52: 0 | O52: 0
A53: 25 | B53: 714300 | C53: Добит фискалних монопола | N53: 0 | O53: 0
A54: 26 | B54: 714400 | C54: Порези на појединачне услуге | N54: 0 | O54: 0
A55: 27 | B55: 714500 | C55: Порези, таксе и накнаде на употребу добара, на дозволу да се добра употребљавају или делатности обављају | N55: 0 | O55: 0
A56: 28 | B56: 714600 | C56: Други порези на добра и услуге | N56: 0 | O56: 0
A57: 29 | B57: 716000 | C57: ДРУГИ ПОРЕЗИ (30 + 31) | D57: =SUM(D58:D59) -> 0 | E57: 0 | F57: 0 | G57: 0 | H57: 0 | I57: 0 | J57: 0 | K57: 0 | L57: 0 | M57: 0 | N57: 0 | O57: 0
A58: 30 | B58: 716100 | C58: Други порези које искључиво плаћају предузећа, односно предузетници | N58: 0 | O58: 0
A59: 31 | B59: 716200 | C59: Други порези које плаћају остала лица или који се не могу идентификовати | N59: 0 | O59: 0
A60: 32 | B60: 730000 | C60: ДОНАЦИЈЕ, ПОМОЋИ И ТРАНСФЕРИ (33 + 36 + 41) | D60: =D61+D64+D69 -> 0 | E60: =E61+E64+E69 -> 0 | F60: 0 | G60: 0 | H60: 0 | I60: 0 | J60: 0 | K60: 0 | L60: 0 | M60: 0 | N60: 0 | O60: 0
A61: 33 | B61: 731000 | C61: ДОНАЦИЈЕ ОД ИНОСТРАНИХ ДРЖАВА (34 + 35) | D61: =SUM(D62:D63) -> 0 | E61: 0 | F61: 0 | G61: 0 | H61: 0 | I61: 0 | J61: 0 | K61: 0 | L61: 0 | M61: 0 | N61: 0 | O61: 0
A62: 34 | B62: 731100 | C62: Текуће донације од иностраних држава | N62: 0 | O62: 0
A63: 35 | B63: 731200 | C63: Капиталне донације од иностраних држава | N63: 0 | O63: 0
A64: 36 | B64: 732000 | C64: ДОНАЦИЈЕ И ПОМОЋИ ОД МЕЂУНАРОДНИХ ОРГАНИЗАЦИЈА (од 37 до 40) | D64: =SUM(D65:D68) -> 0 | E64: =SUM(E65:E68) -> 0 | F64: 0 | G64: 0 | H64: 0 | I64: 0 | J64: 0 | K64: 0 | L64: 0 | M64: 0 | N64: 0 | O64: 0
A65: 37 | B65: 732100 | C65: Текуће донације од међународних организација | N65: 0 | O65: 0
A66: 38 | B66: 732200 | C66: Капиталне донације од међународних организација | N66: 0 | O66: 0
A67: 39 | B67: 732300 | C67: Текуће помоћи од ЕУ | N67: 0 | O67: 0
A68: 40 | B68: 732400 | C68: Капиталне помоћи од ЕУ | N68: 0 | O68: 0
A69: 41 | B69: 733000 | C69: ТРАНСФЕРИ ОД ДРУГИХ НИВОА ВЛАСТИ (42 + 43) | D69: =SUM(D70:D71) -> 0 | E69: 0 | F69: 0 | G69: 0 | H69: 0 | I69: 0 | J69: 0 | K69: 0 | L69: 0 | M69: 0 | N69: =SUM(H69,J69,L69) -> 0 | O69: 0
A70: 42 | B70: 733100 | C70: Текући трансфери од других нивоа власти | N70: 0 | O70: 0
A71: 43 | B71: 733200 | C71: Капитални трансфери од других нивоа власти | N71: 0 | O71: 0
A72: 44 | B72: 740000 | C72: ДРУГИ ПРИХОДИ (45 + 52 + 57 + 64 + 67) | D72: =D73+D80+D85+D92+D95 -> 0 | E72: =E73+E80+E85+E92+E95 -> 0 | F72: 0 | G72: 0 | H72: 0 | I72: 0 | J72: 0 | K72: 0 | L72: 0 | M72: 0 | N72: 0 | O72: 0
A73: 45 | B73: 741000 | C73: ПРИХОДИ ОД ИМОВИНЕ (од 46 до 51) | D73: =SUM(D74:D79) -> 0 | E73: =SUM(E74:E79) -> 0 | F73: 0 | G73: 0 | H73: 0 | I73: 0 | J73: 0 | K73: 0 | L73: 0 | M73: 0 | N73: 0 | O73: 0
A74: 46 | B74: 741100 | C74: Камате | N74: 0 | O74: 0
A75: 47 | B75: 741200 | C75: Дивиденде | N75: 0 | O75: 0
A76: 48 | B76: 741300 | C76: Повлачење прихода од квази корпорација | N76: 0 | O76: 0
A77: 49 | B77: 741400 | C77: Приход од имовине који припада имаоцима полиса осигурања | N77: 0 | O77: 0
A78: 50 | B78: 741500 | C78: Закуп непроизведене имовине | N78: 0 | O78: 0
A79: 51 | B79: 741600 | C79: Финансијске промене на финансијским лизинзима | N79: 0 | O79: 0
A80: 52 | B80: 742000 | C80: ПРИХОДИ ОД ПРОДАЈЕ ДОБАРА И УСЛУГА (од 53 до 56) | D80: =SUM(D81:D84) -> 0 | E80: 0 | F80: 0 | G80: 0 | H80: 0 | I80: 0 | J80: 0 | K80: 0 | L80: 0 | M80: 0 | N80: 0 | O80: 0
A81: 53 | B81: 742100 | C81: Приходи од продаје добара и услуга или закупа од стране тржишних организација | N81: 0 | O81: 0
A82: 54 | B82: 742200 | C82: Таксе и накнаде | N82: 0 | O82: 0
A83: 55 | B83: 742300 | C83: Споредне продаје добара и услуга које врше државне нетржишне јединице | N83: 0 | O83: 0
A84: 56 | B84: 742400 | C84: Импутиране продаје добара и услуга | N84: 0 | O84: 0
A85: 57 | B85: 743000 | C85: НОВЧАНЕ КАЗНЕ И ОДУЗЕТА ИМОВИНСКА КОРИСТ (од 58 до 63) | D85: =SUM(D86:D91) -> 0 | E85: 0 | F85: 0 | G85: 0 | H85: 0 | I85: 0 | J85: 0 | K85: 0 | L85: 0 | M85: 0 | N85: 0 | O85: 0
A86: 58 | B86: 743100 | C86: Приходи од новчаних казни за кривична дела | N86: 0 | O86: 0
A87: 59 | B87: 743200 | C87: Приходи од новчаних казни за привредне преступе | N87: 0 | O87: 0
A88: 60 | B88: 743300 | C88: Приходи од новчаних казни за прекршаје | N88: 0 | O88: 0
A89: 61 | B89: 743400 | C89: Приходи од пенала | N89: 0 | O89: 0
A90: 62 | B90: 743500 | C90: Приходи од одузете имовинске користи | N90: 0 | O90: 0
A91: 63 | B91: 743900 | C91: Остале новчане казне, пенали и приходи од одузете имовинске користи | N91: 0 | O91: 0
A92: 64 | B92: 744000 | C92: ДОБРОВОЉНИ ТРАНСФЕРИ ОД ФИЗИЧКИХ И ПРАВНИХ ЛИЦА (65 + 66) | D92: =SUM(D93:D94) -> 0 | E92: 0 | F92: 0 | G92: 0 | H92: 0 | I92: 0 | J92: 0 | K92: 0 | L92: 0 | M92: 0 | N92: 0 | O92: 0
A93: 65 | B93: 744100 | C93: Текући добровољни трансфери од физичких и правних лица | N93: 0 | O93: 0
A94: 66 | B94: 744200 | C94: Капитални добровољни трансфери од физичких и правних лица | N94: 0 | O94: 0
A95: 67 | B95: 745000 | C95: МЕШОВИТИ И НЕОДРЕЂЕНИ ПРИХОДИ (68) | D95: =D96 -> 0 | E95: =E96 -> 0 | F95: 0 | G95: 0 | H95: 0 | I95: 0 | J95: 0 | K95: 0 | L95: 0 | M95: 0 | N95: 0 | O95: 0
A96: 68 | B96: 745100 | C96: Мешовити и неодређени приходи | N96: 0 | O96: 0
A97: 69 | B97: 770000 | C97: МЕМОРАНДУМСКЕ СТАВКЕ ЗА РЕФУНДАЦИЈУ РАСХОДА (70 + 72) | D97: =D98+D100 -> 0 | E97: 0 | F97: 0 | G97: 0 | H97: 0 | I97: 0 | J97: 0 | K97: 0 | L97: 0 | M97: 0 | N97: 0 | O97: 0
A98: 70 | B98: 771000 | C98: МЕМОРАНДУМСКЕ СТАВКЕ ЗА РЕФУНДАЦИЈУ РАСХОДА (71) | D98: =D99 -> 0 | E98: =E99 -> 0 | F98: 0 | G98: 0 | H98: 0 | I98: 0 | J98: 0 | K98: 0 | L98: 0 | M98: 0 | N98: 0 | O98: 0
A99: 71 | B99: 771100 | C99: Меморандумске ставке за рефундацију расхода | N99: 0 | O99: 0
A100: 72 | B100: 772000 | C100: МЕМОРАНДУМСКЕ СТАВКЕ ЗА РЕФУНДАЦИЈУ РАСХОДА ИЗ ПРЕТХОДНЕ ГОДИНЕ (73) | D100: =D101 -> 0 | E100: =E101 -> 0 | F100: 0 | G100: 0 | H100: 0 | I100: 0 | J100: 0 | K100: 0 | L100: 0 | M100: 0 | N100: 0 | O100: 0
A101: =A100+1 -> 73 | B101: 772100 | C101: Меморандумске ставке за рефундацију расхода из претходне године | N101: 0 | O101: 0
A102: 74 | B102: 780000 | C102: ТРАНСФЕРИ ИЗМЕЂУ БУЏЕТСКИХ КОРИСНИКА НА ИСТОМ НИВОУ (75) | D102: =D103 -> 0 | E102: 0 | F102: 0 | G102: 0 | H102: 0 | I102: 0 | J102: 0 | K102: 0 | L102: 0 | M102: 0 | N102: 0 | O102: 0
A103: 75 | B103: 781000 | C103: ТРАНСФЕРИ ИЗМЕЂУ БУЏЕТСКИХ КОРИСНИКА НА ИСТОМ НИВОУ (76 + 77) | D103: =SUM(D104:D105) -> 0 | E103: 0 | F103: 0 | G103: 0 | H103: 0 | I103: 0 | J103: 0 | K103: 0 | L103: 0 | M103: 0 | N103: 0 | O103: 0
A104: 76 | B104: 781100 | C104: Трансфери између буџетских корисника на истом нивоу | N104: 0
A105: 77 | B105: 781300 | C105: Трансфери између организација обавезног социјалног осигурања | N105: =SUM(H105,J105,L105) -> 0 | O105: 0
A106: 78 | B106: 790000 | C106: ПРИХОДИ ИЗ БУЏЕТА (79) | D106: =D107 -> 0 | E106: 0 | F106: 0 | G106: 0 | H106: 1800000 | I106: 0 | J106: 0 | K106: 0 | L106: 0 | M106: 0 | N106: 1800000 | O106: 0
A107: 79 | B107: 791000 | C107: ПРИХОДИ ИЗ БУЏЕТА (80) | D107: =D108 -> 0 | E107: 0 | F107: 0 | G107: 0 | H107: 1800000 | I107: 0 | J107: 0 | K107: 0 | L107: 0 | M107: 0 | N107: 1800000 | O107: =SUM(I107,K107,M107) -> 0
A108: 80 | B108: 791100 | C108: Приходи из буџета | H108: 1800000 | N108: 1800000
A109: 81 | B109: 800000 | C109: ПРИМАЊА ОД ПРОДАЈЕ НЕФИНАНСИЈСКЕ ИМОВИНЕ (82 + 89 + 96 + 99) | D109: =D110+D117+D124+D127 -> 0 | E109: =E110+E117+E124+E127 -> 0 | F109: 0 | G109: 0 | H109: 0 | I109: 0 | J109: 0 | K109: 0 | L109: 0 | M109: 0 | N109: 0 | O109: 0
A110: 82 | B110: 810000 | C110: ПРИМАЊА ОД ПРОДАЈЕ ОСНОВНИХ СРЕДСТАВА (83 + 85 + 87) | D110: =D111+D113+D115 -> 0 | E110: =E111+E113+E115 -> 0 | F110: 0 | G110: 0 | H110: 0 | I110: 0 | J110: 0 | K110: 0 | L110: 0 | M110: 0 | N110: 0 | O110: 0
A111: 83 | B111: 811000 | C111: ПРИМАЊА ОД ПРОДАЈЕ НЕПОКРЕТНОСТИ (84) | D111: =D112 -> 0 | E111: =E112 -> 0 | F111: 0 | G111: 0 | H111: 0 | I111: 0 | J111: 0 | K111: 0 | L111: 0 | M111: 0 | N111: 0 | O111: 0
A112: 84 | B112: 811100 | C112: Примања од продаје непокретности | N112: 0 | O112: 0
A113: 85 | B113: 812000 | C113: ПРИМАЊА ОД ПРОДАЈЕ ПОКРЕТНЕ ИМОВИНЕ (86) | D113: =D114 -> 0 | E113: 0 | F113: 0 | G113: 0 | H113: 0 | I113: 0 | J113: 0 | K113: 0 | L113: 0 | M113: 0 | N113: 0 | O113: 0
A114: 86 | B114: 812100 | C114: Примања од продаје покретне имовине | N114: 0 | O114: 0
A115: 87 | B115: 813000 | C115: ПРИМАЊА ОД ПРОДАЈЕ ОСТАЛИХ ОСНОВНИХ СРЕДСТАВА (88) | D115: =D116 -> 0 | E115: 0 | F115: 0 | G115: 0 | H115: 0 | I115: 0 | J115: 0 | K115: 0 | L115: 0 | M115: 0 | N115: 0 | O115: 0
A116: 88 | B116: 813100 | C116: Примања од продаје осталих основних средстава | N116: 0 | O116: 0
A117: 89 | B117: 820000 | C117: ПРИМАЊА ОД ПРОДАЈЕ ЗАЛИХА (90 + 92 + 94) | D117: =D118+D120+D122 -> 0 | E117: 0 | F117: 0 | G117: 0 | H117: 0 | I117: 0 | J117: 0 | K117: 0 | L117: 0 | M117: 0 | N117: 0 | O117: 0
A118: 90 | B118: 821000 | C118: ПРИМАЊА ОД ПРОДАЈЕ РОБНИХ РЕЗЕРВИ (91) | D118: =D119 -> 0 | E118: 0 | F118: 0 | G118: 0 | H118: 0 | I118: 0 | J118: 0 | K118: 0 | L118: 0 | M118: 0 | N118: 0 | O118: 0
A119: 91 | B119: 821100 | C119: Примања од продаје робних резерви | N119: 0 | O119: 0
A120: 92 | B120: 822000 | C120: ПРИМАЊА ОД ПРОДАЈЕ ЗАЛИХА ПРОИЗВОДЊЕ (93) | D120: =D121 -> 0 | E120: 0 | F120: 0 | G120: 0 | H120: 0 | I120: 0 | J120: 0 | K120: 0 | L120: 0 | M120: 0 | N120: 0 | O120: 0
A121: 93 | B121: 822100 | C121: Примања од продаје залиха производње | N121: 0 | O121: 0
A122: 94 | B122: 823000 | C122: ПРИМАЊА ОД ПРОДАЈЕ РОБЕ ЗА ДАЉУ ПРОДАЈУ (95) | D122: =D123 -> 0 | E122: 0 | F122: 0 | G122: 0 | H122: 0 | I122: 0 | J122: 0 | K122: 0 | L122: 0 | M122: 0 | N122: 0 | O122: 0
A123: 95 | B123: 823100 | C123: Примања од продаје робе за даљу продају | N123: 0 | O123: 0
A124: 96 | B124: 830000 | C124: ПРИМАЊА ОД ПРОДАЈЕ ДРАГОЦЕНОСТИ (97) | D124: =D125 -> 0 | E124: 0 | F124: 0 | G124: 0 | H124: 0 | I124: 0 | J124: 0 | K124: 0 | L124: 0 | M124: 0 | N124: 0 | O124: 0
A125: 97 | B125: 831000 | C125: ПРИМАЊА ОД ПРОДАЈЕ ДРАГОЦЕНОСТИ (98) | D125: 0 | E125: 0 | F125: 0 | G125: 0 | H125: 0 | I125: 0 | J125: 0 | K125: 0 | L125: 0 | M125: 0 | N125: 0 | O125: 0
A126: 98 | B126: 831100 | C126: Примања од продаје драгоцености | N126: 0 | O126: 0
A127: 99 | B127: 840000 | C127: ПРИМАЊА ОД ПРОДАЈЕ ПРИРОДНЕ ИМОВИНЕ (100 + 102 + 104) | D127: =D128+D130+D132 -> 0 | E127: 0 | F127: 0 | G127: 0 | H127: 0 | I127: 0 | J127: 0 | K127: 0 | L127: 0 | M127: 0 | N127: 0 | O127: 0
A128: 100 | B128: 841000 | C128: ПРИМАЊА ОД ПРОДАЈЕ ЗЕМЉИШТА (101) | D128: =D129 -> 0 | E128: 0 | F128: 0 | G128: 0 | H128: 0 | I128: 0 | J128: 0 | K128: 0 | L128: 0 | M128: 0 | N128: 0 | O128: 0
A129: 101 | B129: 841100 | C129: Примања од продаје земљишта | N129: 0 | O129: 0
A130: 102 | B130: 842000 | C130: ПРИМАЊА ОД ПРОДАЈЕ ПОДЗЕМНИХ БЛАГА (103) | D130: =D131 -> 0 | E130: 0 | F130: 0 | G130: 0 | H130: 0 | I130: 0 | J130: 0 | K130: 0 | L130: 0 | M130: 0 | N130: 0 | O130: 0
A131: 103 | B131: 842100 | C131: Примања од продаје подземних блага | N131: 0 | O131: 0
A132: 104 | B132: 843000 | C132: ПРИМАЊА ОД ПРОДАЈЕ ШУМА И ВОДА (105) | D132: =D133 -> 0 | E132: 0 | F132: 0 | G132: 0 | H132: 0 | I132: 0 | J132: 0 | K132: 0 | L132: 0 | M132: 0 | N132: 0 | O132: 0
A133: 105 | B133: 843100 | C133: Примања од продаје шума и вода | N133: =SUM(H133,J133,L133) -> 0 | O133: 0
A134: 106 | B134: 900000 | C134: ПРИМАЊА ОД ЗАДУЖИВАЊА И ПРОДАЈЕ ФИНАНСИЈСКЕ ИМОВИНЕ (107 + 126) | D134: =D135+D154 -> 0 | E134: =E135+E154 -> 0 | F134: 0 | G134: 0 | H134: 0 | I134: 0 | J134: 0 | K134: 0 | L134: 0 | M134: 0 | N134: 0 | O134: 0
A135: 107 | B135: 910000 | C135: ПРИМАЊА ОД ЗАДУЖИВАЊА (108+118) | D135: =D136+D146 -> 0 | E135: =E136+E146 -> 0 | F135: 0 | G135: 0 | H135: 0 | I135: 0 | J135: 0 | K135: 0 | L135: 0 | M135: 0 | N135: 0 | O135: 0
A136: 108 | B136: 911000 | C136: ПРИМАЊА ОД ДОМАЋИХ ЗАДУЖИВАЊА (од 109 до 117) | D136: =SUM(D137:D145) -> 0 | E136: 0 | F136: 0 | G136: 0 | H136: 0 | I136: 0 | J136: 0 | K136: 0 | L136: 0 | M136: 0 | N136: 0 | O136: 0
A137: 109 | B137: 911100 | C137: Примања од емитовања домаћих хартија од вредности, изузев акција | N137: 0 | O137: 0
A138: 110 | B138: 911200 | C138: Примања од задуживања од осталих нивоа власти | N138: 0 | O138: 0
A139: 111 | B139: 911300 | C139: Примања од задуживања од јавних финансијских институција у земљи | N139: 0 | O139: 0
A140: 112 | B140: 911400 | C140: Примања од задуживања од пословних банака у земљи | N140: 0 | O140: 0
A141: 113 | B141: 911500 | C141: Примања од задуживања код осталих поверилаца у земљи | N141: 0 | O141: 0
A142: 114 | B142: 911600 | C142: Примања од задуживања од домаћинстава у земљи | N142: 0 | O142: 0
A143: 115 | B143: 911700 | C143: Примања од домаћих финансијских деривата | N143: 0 | O143: 0
A144: 116 | B144: 911800 | C144: Примања од домаћих меница | N144: 0 | O144: 0
A145: 117 | B145: 911900 | C145: Исправка унутрашњег дуга | N145: 0 | O145: 0
A146: 118 | B146: 912000 | C146: ПРИМАЊА ОД ИНОСТРАНОГ ЗАДУЖИВАЊА (од 119 + 125) | D146: =SUM(D147:D153) -> 0 | E146: 0 | F146: 0 | G146: 0 | H146: 0 | I146: 0 | J146: 0 | K146: 0 | L146: 0 | M146: 0 | N146: 0 | O146: 0
A147: 119 | B147: 912100 | C147: Примања од емитовања хартија од вредности, изузев акција, на иностраном финансијском тржишту | N147: 0 | O147: 0
A148: 120 | B148: 912200 | C148: Примања од задуживања од иностраних држава | N148: 0 | O148: 0
A149: 121 | B149: 912300 | C149: Примања од задуживања од мултилатералних институција | N149: 0 | O149: 0
A150: 122 | B150: 912400 | C150: Примања од задуживања од иностраних пословних банака | N150: 0 | O150: 0
A151: 123 | B151: 912500 | C151: Примања од задуживања од осталих иностраних поверилаца | N151: 0 | O151: 0
A152: 124 | B152: 912600 | C152: Примања од иностраних финансијских деривата | N152: 0 | O152: 0
A153: 125 | B153: 912900 | C153: Исправка спољног дуга | N153: 0 | O153: 0
A154: 126 | B154: 920000 | C154: ПРИМАЊА ОД ПРОДАЈЕ ФИНАНСИЈСКЕ ИМОВИНЕ (127 + 137) | D154: =D155+D165 -> 0 | E154: 0 | F154: 0 | G154: 0 | H154: 0 | I154: 0 | J154: 0 | K154: 0 | L154: 0 | M154: 0 | N154: 0 | O154: 0
A155: 127 | B155: 921000 | C155: ПРИМАЊА ОД ПРОДАЈЕ ДОМАЋЕ ФИНАНСИЈСКЕ ИМОВИНЕ (од 128 до 136) | D155: =SUM(D156:D164) -> 0 | E155: 0 | F155: 0 | G155: 0 | H155: 0 | I155: 0 | J155: 0 | K155: 0 | L155: 0 | M155: 0 | N155: 0 | O155: 0
A156: 128 | B156: 921100 | C156: Примања од продаје домаћих хартија од вредности, изузев акција | N156: 0 | O156: 0
A157: 129 | B157: 921200 | C157: Примања од отплате кредита датих осталим нивоима власти | N157: 0 | O157: 0
A158: 130 | B158: 921300 | C158: Примања од отплате кредита датих домаћим јавним финансијским институцијама | N158: 0 | O158: 0
A159: 131 | B159: 921400 | C159: Примања од отплате кредита домаћим пословним банкама | N159: 0 | O159: 0
A160: 132 | B160: 921500 | C160: Примања од отплате кредита датих домаћим јавним нефинансијским институцијама | N160: 0 | O160: 0
A161: 133 | B161: 921600 | C161: Примања од отплате кредита датих физичким лицима и домаћинствима у земљи | N161: 0 | O161: 0
A162: 134 | B162: 921700 | C162: Примања од отплате кредита датих удружењима грађана у земљи | N162: 0 | O162: 0
A163: 135 | B163: 921800 | C163: Примања од отплате кредита датих нефинансијским приватним предузећима у земљи | N163: 0 | O163: 0
A164: 136 | B164: 921900 | C164: Примања од продаје домаћих акција и осталог капитала | N164: 0 | O164: 0
A165: =A164+1 -> 137 | B165: 922000 | C165: ПРИМАЊА ОД ПРОДАЈЕ СТРАНЕ ФИНАНСИЈСКЕ ИМОВИНЕ (од 138 до 145) | D165: =SUM(D166:D173) -> 0 | E165: =SUM(E166:E173) -> 0 | F165: 0 | G165: 0 | H165: 0 | I165: 0 | J165: 0 | K165: 0 | L165: 0 | M165: 0 | N165: 0 | O165: 0
A166: 138 | B166: 922100 | C166: Примања од продаје страних хартија од вредности, изузев акција | N166: 0 | O166: 0
A167: 139 | B167: 922200 | C167: Примања од отплате кредита датих страним владама | N167: 0 | O167: 0
A168: 140 | B168: 922300 | C168: Примања од отплате кредита датих међународним организацијама | N168: 0 | O168: 0
A169: 141 | B169: 922400 | C169: Примања од отплате кредита датих страним пословним банкама | N169: 0 | O169: 0
A170: 142 | B170: 922500 | C170: Примања од отплате кредита датих страним нефинансијским институцијама | N170: 0 | O170: 0
A171: 143 | B171: 922600 | C171: Примања од отплате кредита датих страним невладиним организацијама | N171: 0 | O171: 0
A172: 144 | B172: 922700 | C172: Примања од продаје страних акција и осталог капитала | N172: 0 | O172: 0
A173: 145 | B173: 922800 | C173: Примања од продаје стране валуте | N173: 0 | O173: 0
A174: 146 | C174: УКУПНИ ПРИХОДИ, ПРИМАЊА И ПРЕНЕТА СРЕДСТВА ИЗ ПРЕТХОДНЕ ГОДИНЕ (1 + 8 + 81 + 106) | D174: =D29+D36+D109+D134 -> 0 | E174: =E29+E36+E109+E134 -> 0 | F174: 0 | G174: 0 | H174: 1800000 | I174: 0 | J174: 0 | K174: 0 | L174: 0 | M174: 0 | N174: =SUM(H174,J174,L174) -> 1800000 | O174: =SUM(I174,K174,M174) -> 0
A175: 147 | B175: 400000 | C175: ТЕКУЋИ РАСХОДИ (148+166+211+226+250+263+279+294) | D175: =D176+D194+D239+D254+D278+D291+D307+D322 -> 0 | E175: 0 | F175: 0 | G175: 0 | H175: 1800000 | I175: 0 | J175: 0 | K175: 0 | L175: 0 | M175: 0 | N175: 1800000 | O175: 0
A176: 148 | B176: 410000 | C176: РАСХОДИ ЗА ЗАПОСЛЕНЕ (149+151+155+157+162+164) | D176: =D177+D179+D183+D185+D190+D192 -> 0 | E176: =E177+E179+E183+E185+E190+E192 -> 0 | F176: 0 | G176: 0 | H176: 0 | I176: 0 | J176: 0 | K176: 0 | L176: 0 | M176: 0 | N176: 0 | O176: 0
A177: 149 | B177: 411000 | C177: ПЛАТЕ, ДОДАЦИ И НАКНАДЕ ЗАПОСЛЕНИХ (ЗАРАДЕ) (150) | D177: =D178 -> 0 | E177: 0 | F177: 0 | G177: 0 | H177: 0 | I177: 0 | J177: 0 | K177: 0 | L177: 0 | M177: 0 | N177: 0 | O177: 0
A178: 150 | B178: 411100 | C178: Плате, додаци и накнаде запослених | N178: 0 | O178: 0
A179: 151 | B179: 412000 | C179: СОЦИЈАЛНИ ДОПРИНОСИ НА ТЕРЕТ ПОСЛОДАВЦА (од 152 до 154) | D179: =SUM(D180:D182) -> 0 | E179: 0 | F179: 0 | G179: 0 | H179: 0 | I179: 0 | J179: 0 | K179: 0 | L179: 0 | M179: 0 | N179: 0 | O179: 0
A180: 152 | B180: 412100 | C180: Допринос за пензијско и инвалидско осигурање | N180: 0 | O180: 0
A181: 153 | B181: 412200 | C181: Допринос за здравствено осигурање | N181: 0 | O181: 0
A182: 154 | B182: 412300 | C182: Допринос за незапосленост | N182: 0 | O182: 0
A183: 155 | B183: 413000 | C183: НАКНАДЕ У НАТУРИ (156) | D183: =D184 -> 0 | E183: 0 | F183: 0 | G183: 0 | H183: 0 | I183: 0 | J183: 0 | K183: 0 | L183: 0 | M183: 0 | N183: 0 | O183: 0
A184: 156 | B184: 413100 | C184: Накнаде у натури | N184: 0 | O184: 0
A185: 157 | B185: 414000 | C185: СОЦИЈАЛНА ДАВАЊА ЗАПОСЛЕНИМА (од 158 до 161) | D185: =SUM(D186:D189) -> 0 | E185: 0 | F185: 0 | G185: 0 | H185: 0 | I185: 0 | J185: 0 | K185: 0 | L185: 0 | M185: 0 | N185: 0 | O185: 0
A186: 158 | B186: 414100 | C186: Исплата накнада за време одсуствовања с посла на терет фондова | N186: 0 | O186: 0
A187: 159 | B187: 414200 | C187: Расходи за образовање деце запослених | N187: 0 | O187: 0
A188: 160 | B188: 414300 | C188: Отпремнине и помоћи | N188: 0 | O188: 0
A189: 161 | B189: 414400 | C189: Помоћ у медицинском лечењу запосленог или чланова уже породице и друге помоћи запосленом | N189: 0 | O189: 0
A190: 162 | B190: 415000 | C190: НАКНАДА ТРОШКОВА ЗА ЗАПОСЛЕНЕ (163) | D190: =D191 -> 0 | E190: 0 | F190: 0 | G190: 0 | H190: 0 | I190: 0 | J190: 0 | K190: 0 | L190: 0 | M190: 0 | N190: 0 | O190: 0
A191: 163 | B191: 415100 | C191: Накнаде трошкова за запослене | N191: 0 | O191: 0
A192: 164 | B192: 416000 | C192: НАГРАДЕ ЗАПОСЛЕНИМА И ОСТАЛИ ПОСЕБНИ РАСХОДИ (165) | D192: =D193 -> 0 | E192: 0 | F192: 0 | G192: 0 | H192: 0 | I192: 0 | J192: 0 | K192: 0 | L192: 0 | M192: 0 | N192: 0 | O192: 0
A193: 165 | B193: 416100 | C193: Награде запосленима и остали посебни расходи | N193: 0 | O193: 0
A194: 166 | B194: 420000 | C194: КОРИШЋЕЊЕ УСЛУГА И РОБА (167 + 175 + 181 + 190 + 198 + 201) | D194: =D195+D203+D209+D218+D226+D229 -> 0 | E194: 0 | F194: 0 | G194: 0 | H194: 1800000 | I194: 0 | J194: 0 | K194: 0 | L194: 0 | M194: 0 | N194: =SUM(H194,J194,L194) -> 1800000 | O194: 0
A195: 167 | B195: 421000 | C195: СТАЛНИ ТРОШКОВИ (од 168 до 174) | D195: =SUM(D196:D202) -> 0 | E195: 0 | F195: 0 | G195: 0 | H195: 0 | I195: 0 | J195: 0 | K195: 0 | L195: 0 | M195: 0 | N195: 0 | O195: 0
A196: 168 | B196: 421100 | C196: Трошкови платног промета и банкарских услуга | N196: 0 | O196: 0
A197: 169 | B197: 421200 | C197: Енергетске услуге | N197: 0 | O197: 0
A198: 170 | B198: 421300 | C198: Комуналне услуге | N198: 0 | O198: 0
A199: 171 | B199: 421400 | C199: Услуге комуникација | N199: 0 | O199: 0
A200: 172 | B200: 421500 | C200: Трошкови осигурања | N200: 0 | O200: 0
A201: 173 | B201: 421600 | C201: Закуп имовине и опреме | N201: 0 | O201: 0
A202: 174 | B202: 421900 | C202: Остали трошкови | N202: 0 | O202: 0
A203: 175 | B203: 422000 | C203: ТРОШКОВИ ПУТОВАЊА (од 176 до 180) | D203: =SUM(D204:D208) -> 0 | E203: 0 | F203: 0 | G203: 0 | H203: 0 | I203: 0 | J203: 0 | K203: 0 | L203: 0 | M203: 0 | N203: 0 | O203: 0
A204: 176 | B204: 422100 | C204: Трошкови службених путовања у земљи | N204: 0 | O204: 0
A205: 177 | B205: 422200 | C205: Трошкови службених путовања у иностранство | N205: 0 | O205: 0
... 254 more rows

Sheet Пројекат
A1: Обрасци за припрему програмског буџета
A2: 3. ПРОЈЕКАТ
A4: Програм коме припада: | D4: =IF(Програм!$D$4="","",Програм!$D$4) -> Програм 9. Основно образовање и вспитање
A5: Шифра пројекта: | D5: =Програм!$D$5 -> 2002 | E5: П1
A6: Назив пројекта: | D6: Унапређење квлитета образовања и васпитања
A7: Функција: | D7: 912- Основно образовање
A8: Назив организационе јединице/Буџетски корисник: | D8: ОШ ,, ДЕСАНКА МАКСИМОВИЋ,, ГРДЕЛИЦА
A9: Сврха: | D9: Унапређење квлитета образовања и васпитања
A10: Основ: | D10: Пројетна документација
A11: Опис: | D11: Израда ограде
A12: Трајање пројекта: | D12: 2019
A13: Ознака за капитални пројекат: | D13: пројетна документација
A14: Ознака да ли је ИПА пројекат:
A15: Мере и поглавље преговора о приступању ЕУ:
A16: Одговорно лице за спровођење пројекта: | D16: Ненад Младеновић
B18: Циљ* | D18: Индикатори**
D19: Назив индикатора | G19: Вредност у базној години (2017) | H19: Очекивана вредност у 2018. години | I19: Циљана вредност у 2019. години | J19: Циљана вредност у 2020. години | K19: Циљана вредност у 2021. години | L19: Извор верификације
A20: 1 | B20: Унапређење квалитета образовања | D20: Број деце које похађају ваннаставне активности | G20: 0.75 | H20: 0.8 | I20: 0.9 | J20: 0.95 | K20: 0.95 | L20: Школска документација
D21: Број стручних лица која су добила најмање 24 бода за стручно усавршавње | G21: 0.5 | H21: 0.55 | I21: 0.6 | J21: 0.65 | K21: 0.65 | L21: Извештај о стручном усавршавању
A25: ПЛАНИРАНА СРЕДСТВА ЗА ПРОЈЕКАТ
A26: Рбр. | B26: Конто | C26: ОПИС | D26: Вредност у базној години (2017) | F26: Очекивана вредност у 2018. години | H26: Вредност у 2019. години | J26: Вредност у 2020. години | L26: Вредност у 2021. години | N26: Укупно (2019-2021)
D27: Приходи из буџета | E27: Приходи из осталих извора | F27: Приходи из буџета | G27: Приходи из осталих извора | H27: Приходи из буџета | I27: Приходи из осталих извора | J27: Приходи из буџета | K27: Приходи из осталих извора | L27: Приходи из буџета | M27: Приходи из осталих извора | N27: Приходи из буџета | O27: Приходи из осталих извора
A28: 1 | B28: 2 | C28: 3 | D28: 4 | E28: 5 | F28: 6 | G28: 7 | H28: 8 | I28: 9 | J28: 10 | K28: 11 | L28: 12 | M28: 13 | N28: 14=(8+10+12) | O28: 15=(9+11+13)
A29: 1 | B29: 300000 | C29: КАПИТАЛ, УТВРЂИВАЊЕ РЕЗУЛТАТА ПОСЛОВАЊА И ВАНБИЛАНСНА ЕВИДЕНЦИЈА (2 + 5) | D29: =SUM(D30,D33) -> 0 | E29: =SUM(E30,E33) -> 0 | F29: 0 | G29: 0 | H29: 0 | I29: 0 | J29: 0 | K29: 0 | L29: 0 | M29: 0 | N29: 0 | O29: 0
A30: 2 | B30: 310000 | C30: КАПИТАЛ (3) | D30: =SUM(D31) -> 0 | E30: =SUM(E31) -> 0 | F30: 0 | G30: 0 | H30: 0 | I30: 0 | J30: 0 | K30: 0 | L30: 0 | M30: 0 | N30: 0 | O30: 0
A31: 3 | B31: 311000 | C31: КАПИТАЛ (4) | D31: =SUM(D32) -> 0 | E31: 0 | F31: 0 | G31: 0 | H31: 0 | I31: 0 | J31: 0 | K31: 0 | L31: 0 | M31: 0 | N31: 0 | O31: 0
A32: 4 | B32: 311700 | C32: Пренета неутрошена средства из ранијих година | N32: =SUM(H32,J32,L32) -> 0 | O32: =SUM(I32,K32,M32) -> 0
A33: 5 | B33: 320000 | C33: УТВРЂИВАЊЕ РЕЗУЛТАТА ПОСЛОВАЊА (6) | D33: =SUM(D34) -> 0 | E33: =SUM(E34) -> 0 | F33: 0 | G33: 0 | H33: 0 | I33: 0 | J33: 0 | K33: 0 | L33: 0 | M33: 0 | N33: 0 | O33: 0
A34: 6 | B34: 321000 | C34: УТВРЂИВАЊЕ РЕЗУЛТАТА ПОСЛОВАЊА (7) | D34: =SUM(D35) -> 0 | E34: 0 | F34: 0 | G34: 0 | H34: 0 | I34: 0 | J34: 0 | K34: 0 | L34: 0 | M34: 0 | N34: 0 | O34: 0
A35: 7 | B35: 321300 | C35: Нераспоређени вишак прихода и примања или дефицит из ранијих година | N35: =SUM(H35,J35,L35) -> 0 | O35: =SUM(I35,K35,M35) -> 0
A36: =A35+1 -> 8 | B36: 700000 | C36: ТЕКУЋИ ПРИХОДИ (9 + 32 + 44 + 69 + 74 +78) | D36: =D37+D60+D72+D97+D102+D106 -> 0 | E36: =E37+E60+E72+E97+E102+E106 -> 0 | F36: 0 | G36: 0 | H36: 2000000 | I36: 0 | J36: 0 | K36: 0 | L36: 0 | M36: 0 | N36: =N37+N60+N72+N97+N102+N106 -> 2000000 | O36: 0
A37: =A36+1 -> 9 | B37: 710000 | C37: ПОРЕЗИ (10 + 14 + 16 + 23 + 29) | D37: =D38+D42+D44+D51+D57 -> 0 | E37: =E38+E42+E44+E51+E57 -> 0 | F37: 0 | G37: 0 | H37: 0 | I37: 0 | J37: 0 | K37: 0 | L37: 0 | M37: 0 | N37: 0 | O37: 0
A38: 10 | B38: 711000 | C38: ПОРЕЗ НА ДОХОДАК, ДОБИТ И КАПИТАЛНЕ ДОБИТКЕ (од 11 до 13) | D38: =SUM(D39:D41) -> 0 | E38: =SUM(E39:E41) -> 0 | F38: 0 | G38: 0 | H38: 0 | I38: 0 | J38: 0 | K38: 0 | L38: 0 | M38: 0 | N38: =SUM(H38,J38,L38) -> 0 | O38: 0
A39: 11 | B39: 711100 | C39: Порези на доходак и капиталнe добиткe које плаћају физичка лица | N39: 0 | O39: 0
A40: 12 | B40: 711200 | C40: Порези на добит и капиталне добитке које плаћају предузећа и друга правна лица | N40: 0 | O40: 0
A41: 13 | B41: 711300 | C41: Порези на доходак, добит и капиталне добитке који се не могу разврстати између физичких и правних лица | N41: 0 | O41: 0
A42: 14 | B42: 712000 | C42: ПОРЕЗ НА ФОНД ЗАРАДА (15) | D42: =SUM(D43) -> 0 | E42: 0 | F42: 0 | G42: 0 | H42: 0 | I42: 0 | J42: 0 | K42: 0 | L42: 0 | M42: 0 | N42: 0 | O42: 0
A43: 15 | B43: 712100 | C43: Порез на фонд зарада | N43: 0 | O43: 0
A44: 16 | B44: 713000 | C44: ПОРЕЗ НА ИМОВИНУ (од 17 до 22) | D44: =SUM(D45:D50) -> 0 | E44: 0 | F44: 0 | G44: 0 | H44: 0 | I44: 0 | J44: 0 | K44: 0 | L44: 0 | M44: 0 | N44: 0 | O44: 0
A45: 17 | B45: 713100 | C45: Периодични порези на непокретности | N45: 0 | O45: 0
A46: 18 | B46: 713200 | C46: Периодични порези на нето имовину | N46: 0 | O46: 0
A47: 19 | B47: 713300 | C47: Порези на заоставштину, наслеђе и поклон | N47: 0 | O47: 0
A48: 20 | B48: 713400 | C48: Порези на финансијске и капиталне трансакције | N48: 0 | O48: 0
A49: 21 | B49: 713500 | C49: Други једнократни порези на имовину | N49: 0 | O49: 0
A50: 22 | B50: 713600 | C50: Други периодични порези на имовину | N50: 0 | O50: 0
A51: 23 | B51: 714000 | C51: ПОРЕЗ НА ДОБРА И УСЛУГЕ (од 24 до 28) | D51: =SUM(D52:D56) -> 0 | E51: 0 | F51: 0 | G51: 0 | H51: 0 | I51: 0 | J51: 0 | K51: 0 | L51: 0 | M51: 0 | N51: 0 | O51: 0
A52: 24 | B52: 714100 | C52: Општи порези на добра и услуге | N52: 0 | O52: 0
A53: 25 | B53: 714300 | C53: Добит фискалних монопола | N53: 0 | O53: 0
A54: 26 | B54: 714400 | C54: Порези на појединачне услуге | N54: 0 | O54: 0
A55: 27 | B55: 714500 | C55: Порези, таксе и накнаде на употребу добара, на дозволу да се добра употребљавају или делатности обављају | N55: 0 | O55: 0
A56: 28 | B56: 714600 | C56: Други порези на добра и услуге | N56: 0 | O56: 0
A57: 29 | B57: 716000 | C57: ДРУГИ ПОРЕЗИ (30 + 31) | D57: =SUM(D58:D59) -> 0 | E57: 0 | F57: 0 | G57: 0 | H57: 0 | I57: 0 | J57: 0 | K57: 0 | L57: 0 | M57: 0 | N57: 0 | O57: 0
A58: 30 | B58: 716100 | C58: Други порези које искључиво плаћају предузећа, односно предузетници | N58: 0 | O58: 0
A59: 31 | B59: 716200 | C59: Други порези које плаћају остала лица или који се не могу идентификовати | N59: 0 | O59: 0
A60: 32 | B60: 730000 | C60: ДОНАЦИЈЕ, ПОМОЋИ И ТРАНСФЕРИ (33 + 36 + 41) | D60: =D61+D64+D69 -> 0 | E60: =E61+E64+E69 -> 0 | F60: 0 | G60: 0 | H60: 0 | I60: 0 | J60: 0 | K60: 0 | L60: 0 | M60: 0 | N60: 0 | O60: 0
A61: 33 | B61: 731000 | C61: ДОНАЦИЈЕ ОД ИНОСТРАНИХ ДРЖАВА (34 + 35) | D61: =SUM(D62:D63) -> 0 | E61: 0 | F61: 0 | G61: 0 | H61: 0 | I61: 0 | J61: 0 | K61: 0 | L61: 0 | M61: 0 | N61: 0 | O61: 0
A62: 34 | B62: 731100 | C62: Текуће донације од иностраних држава | N62: 0 | O62: 0
A63: 35 | B63: 731200 | C63: Капиталне донације од иностраних држава | N63: 0 | O63: 0
A64: 36 | B64: 732000 | C64: ДОНАЦИЈЕ И ПОМОЋИ ОД МЕЂУНАРОДНИХ ОРГАНИЗАЦИЈА (од 37 до 40) | D64: =SUM(D65:D68) -> 0 | E64: =SUM(E65:E68) -> 0 | F64: 0 | G64: 0 | H64: 0 | I64: 0 | J64: 0 | K64: 0 | L64: 0 | M64: 0 | N64: 0 | O64: 0
A65: 37 | B65: 732100 | C65: Текуће донације од међународних организација | N65: 0 | O65: 0
A66: 38 | B66: 732200 | C66: Капиталне донације од међународних организација | N66: 0 | O66: 0
A67: 39 | B67: 732300 | C67: Текуће помоћи од ЕУ | N67: 0 | O67: 0
A68: 40 | B68: 732400 | C68: Капиталне помоћи од ЕУ | N68: 0 | O68: 0
A69: 41 | B69: 733000 | C69: ТРАНСФЕРИ ОД ДРУГИХ НИВОА ВЛАСТИ (42 + 43) | D69: =SUM(D70:D71) -> 0 | E69: 0 | F69: 0 | G69: 0 | H69: 0 | I69: 0 | J69: 0 | K69: 0 | L69: 0 | M69: 0 | N69: =SUM(H69,J69,L69) -> 0 | O69: 0
A70: 42 | B70: 733100 | C70: Текући трансфери од других нивоа власти | N70: 0 | O70: 0
A71: 43 | B71: 733200 | C71: Капитални трансфери од других нивоа власти | N71: 0 | O71: 0
A72: 44 | B72: 740000 | C72: ДРУГИ ПРИХОДИ (45 + 52 + 57 + 64 + 67) | D72: =D73+D80+D85+D92+D95 -> 0 | E72: =E73+E80+E85+E92+E95 -> 0 | F72: 0 | G72: 0 | H72: 0 | I72: 0 | J72: 0 | K72: 0 | L72: 0 | M72: 0 | N72: 0 | O72: 0
A73: 45 | B73: 741000 | C73: ПРИХОДИ ОД ИМОВИНЕ (од 46 до 51) | D73: =SUM(D74:D79) -> 0 | E73: =SUM(E74:E79) -> 0 | F73: 0 | G73: 0 | H73: 0 | I73: 0 | J73: 0 | K73: 0 | L73: 0 | M73: 0 | N73: 0 | O73: 0
A74: 46 | B74: 741100 | C74: Камате | N74: 0 | O74: 0
A75: 47 | B75: 741200 | C75: Дивиденде | N75: 0 | O75: 0
A76: 48 | B76: 741300 | C76: Повлачење прихода од квази корпорација | N76: 0 | O76: 0
A77: 49 | B77: 741400 | C77: Приход од имовине који припада имаоцима полиса осигурања | N77: 0 | O77: 0
A78: 50 | B78: 741500 | C78: Закуп непроизведене имовине | N78: 0 | O78: 0
A79: 51 | B79: 741600 | C79: Финансијске промене на финансијским лизинзима | N79: 0 | O79: 0
A80: 52 | B80: 742000 | C80: ПРИХОДИ ОД ПРОДАЈЕ ДОБАРА И УСЛУГА (од 53 до 56) | D80: =SUM(D81:D84) -> 0 | E80: 0 | F80: 0 | G80: 0 | H80: 0 | I80: 0 | J80: 0 | K80: 0 | L80: 0 | M80: 0 | N80: 0 | O80: 0
A81: 53 | B81: 742100 | C81: Приходи од продаје добара и услуга или закупа од стране тржишних организација | N81: 0 | O81: 0
A82: 54 | B82: 742200 | C82: Таксе и накнаде | N82: 0 | O82: 0
A83: 55 | B83: 742300 | C83: Споредне продаје добара и услуга које врше државне нетржишне јединице | N83: 0 | O83: 0
A84: 56 | B84: 742400 | C84: Импутиране продаје добара и услуга | N84: 0 | O84: 0
A85: 57 | B85: 743000 | C85: НОВЧАНЕ КАЗНЕ И ОДУЗЕТА ИМОВИНСКА КОРИСТ (од 58 до 63) | D85: =SUM(D86:D91) -> 0 | E85: 0 | F85: 0 | G85: 0 | H85: 0 | I85: 0 | J85: 0 | K85: 0 | L85: 0 | M85: 0 | N85: 0 | O85: 0
A86: 58 | B86: 743100 | C86: Приходи од новчаних казни за кривична дела | N86: 0 | O86: 0
A87: 59 | B87: 743200 | C87: Приходи од новчаних казни за привредне преступе | N87: 0 | O87: 0
A88: 60 | B88: 743300 | C88: Приходи од новчаних казни за прекршаје | N88: 0 | O88: 0
A89: 61 | B89: 743400 | C89: Приходи од пенала | N89: 0 | O89: 0
A90: 62 | B90: 743500 | C90: Приходи од одузете имовинске користи | N90: 0 | O90: 0
A91: 63 | B91: 743900 | C91: Остале новчане казне, пенали и приходи од одузете имовинске користи | N91: 0 | O91: 0
A92: 64 | B92: 744000 | C92: ДОБРОВОЉНИ ТРАНСФЕРИ ОД ФИЗИЧКИХ И ПРАВНИХ ЛИЦА (65 + 66) | D92: =SUM(D93:D94) -> 0 | E92: 0 | F92: 0 | G92: 0 | H92: 0 | I92: 0 | J92: 0 | K92: 0 | L92: 0 | M92: 0 | N92: 0 | O92: 0
A93: 65 | B93: 744100 | C93: Текући добровољни трансфери од физичких и правних лица | N93: 0 | O93: 0
A94: 66 | B94: 744200 | C94: Капитални добровољни трансфери од физичких и правних лица | N94: 0 | O94: 0
A95: 67 | B95: 745000 | C95: МЕШОВИТИ И НЕОДРЕЂЕНИ ПРИХОДИ (68) | D95: =D96 -> 0 | E95: =E96 -> 0 | F95: 0 | G95: 0 | H95: 0 | I95: 0 | J95: 0 | K95: 0 | L95: 0 | M95: 0 | N95: 0 | O95: 0
A96: 68 | B96: 745100 | C96: Мешовити и неодређени приходи | N96: 0 | O96: 0
A97: 69 | B97: 770000 | C97: МЕМОРАНДУМСКЕ СТАВКЕ ЗА РЕФУНДАЦИЈУ РАСХОДА (70 + 72) | D97: =D98+D100 -> 0 | E97: 0 | F97: 0 | G97: 0 | H97: 0 | I97: 0 | J97: 0 | K97: 0 | L97: 0 | M97: 0 | N97: 0 | O97: 0
A98: 70 | B98: 771000 | C98: МЕМОРАНДУМСКЕ СТАВКЕ ЗА РЕФУНДАЦИЈУ РАСХОДА (71) | D98: =D99 -> 0 | E98: =E99 -> 0 | F98: 0 | G98: 0 | H98: 0 | I98: 0 | J98: 0 | K98: 0 | L98: 0 | M98: 0 | N98: 0 | O98: 0
A99: 71 | B99: 771100 | C99: Меморандумске ставке за рефундацију расхода | N99: 0 | O99: 0
A100: 72 | B100: 772000 | C100: МЕМОРАНДУМСКЕ СТАВКЕ ЗА РЕФУНДАЦИЈУ РАСХОДА ИЗ ПРЕТХОДНЕ ГОДИНЕ (73) | D100: =D101 -> 0 | E100: =E101 -> 0 | F100: 0 | G100: 0 | H100: 0 | I100: 0 | J100: 0 | K100: 0 | L100: 0 | M100: 0 | N100: 0 | O100: 0
A101: =A100+1 -> 73 | B101: 772100 | C101: Меморандумске ставке за рефундацију расхода из претходне године | N101: 0 | O101: 0
A102: 74 | B102: 780000 | C102: ТРАНСФЕРИ ИЗМЕЂУ БУЏЕТСКИХ КОРИСНИКА НА ИСТОМ НИВОУ (75) | D102: =D103 -> 0 | E102: 0 | F102: 0 | G102: 0 | H102: 0 | I102: 0 | J102: 0 | K102: 0 | L102: 0 | M102: 0 | N102: 0 | O102: 0
A103: 75 | B103: 781000 | C103: ТРАНСФЕРИ ИЗМЕЂУ БУЏЕТСКИХ КОРИСНИКА НА ИСТОМ НИВОУ (76 + 77) | D103: =SUM(D104:D105) -> 0 | E103: 0 | F103: 0 | G103: 0 | H103: 0 | I103: 0 | J103: 0 | K103: 0 | L103: 0 | M103: 0 | N103: 0 | O103: 0
A104: 76 | B104: 781100 | C104: Трансфери између буџетских корисника на истом нивоу | N104: 0
A105: 77 | B105: 781300 | C105: Трансфери између организација обавезног социјалног осигурања | N105: =SUM(H105,J105,L105) -> 0 | O105: 0
A106: 78 | B106: 790000 | C106: ПРИХОДИ ИЗ БУЏЕТА (79) | D106: =D107 -> 0 | E106: 0 | F106: 0 | G106: 0 | H106: 2000000 | I106: 0 | J106: 0 | K106: 0 | L106: 0 | M106: 0 | N106: 2000000 | O106: 0
A107: 79 | B107: 791000 | C107: ПРИХОДИ ИЗ БУЏЕТА (80) | D107: =D108 -> 0 | E107: 0 | F107: 0 | G107: 0 | H107: 2000000 | I107: 0 | J107: 0 | K107: 0 | L107: 0 | M107: 0 | N107: 2000000 | O107: =SUM(I107,K107,M107) -> 0
A108: 80 | B108: 791100 | C108: Приходи из буџета | H108: 2000000 | N108: 2000000
A109: 81 | B109: 800000 | C109: ПРИМАЊА ОД ПРОДАЈЕ НЕФИНАНСИЈСКЕ ИМОВИНЕ (82 + 89 + 96 + 99) | D109: =D110+D117+D124+D127 -> 0 | E109: =E110+E117+E124+E127 -> 0 | F109: 0 | G109: 0 | H109: 0 | I109: 0 | J109: 0 | K109: 0 | L109: 0 | M109: 0 | N109: 0 | O109: 0
A110: 82 | B110: 810000 | C110: ПРИМАЊА ОД ПРОДАЈЕ ОСНОВНИХ СРЕДСТАВА (83 + 85 + 87) | D110: =D111+D113+D115 -> 0 | E110: =E111+E113+E115 -> 0 | F110: 0 | G110: 0 | H110: 0 | I110: 0 | J110: 0 | K110: 0 | L110: 0 | M110: 0 | N110: 0 | O110: 0
A111: 83 | B111: 811000 | C111: ПРИМАЊА ОД ПРОДАЈЕ НЕПОКРЕТНОСТИ (84) | D111: =D112 -> 0 | E111: =E112 -> 0 | F111: 0 | G111: 0 | H111: 0 | I111: 0 | J111: 0 | K111: 0 | L111: 0 | M111: 0 | N111: 0 | O111: 0
A112: 84 | B112: 811100 | C112: Примања од продаје непокретности | N112: 0 | O112: 0
A113: 85 | B113: 812000 | C113: ПРИМАЊА ОД ПРОДАЈЕ ПОКРЕТНЕ ИМОВИНЕ (86) | D113: =D114 -> 0 | E113: 0 | F113: 0 | G113: 0 | H113: 0 | I113: 0 | J113: 0 | K113: 0 | L113: 0 | M113: 0 | N113: 0 | O113: 0
A114: 86 | B114: 812100 | C114: Примања од продаје покретне имовине | N114: 0 | O114: 0
A115: 87 | B115: 813000 | C115: ПРИМАЊА ОД ПРОДАЈЕ ОСТАЛИХ ОСНОВНИХ СРЕДСТАВА (88) | D115: =D116 -> 0 | E115: 0 | F115: 0 | G115: 0 | H115: 0 | I115: 0 | J115: 0 | K115: 0 | L115: 0 | M115: 0 | N115: 0 | O115: 0
A116: 88 | B116: 813100 | C116: Примања од продаје осталих основних средстава | N116: 0 | O116: 0
A117: 89 | B117: 820000 | C117: ПРИМАЊА ОД ПРОДАЈЕ ЗАЛИХА (90 + 92 + 94) | D117: =D118+D120+D122 -> 0 | E117: 0 | F117: 0 | G117: 0 | H117: 0 | I117: 0 | J117: 0 | K117: 0 | L117: 0 | M117: 0 | N117: 0 | O117: 0
A118: 90 | B118: 821000 | C118: ПРИМАЊА ОД ПРОДАЈЕ РОБНИХ РЕЗЕРВИ (91) | D118: =D119 -> 0 | E118: 0 | F118: 0 | G118: 0 | H118: 0 | I118: 0 | J118: 0 | K118: 0 | L118: 0 | M118: 0 | N118: 0 | O118: 0
A119: 91 | B119: 821100 | C119: Примања од продаје робних резерви | N119: 0 | O119: 0
A120: 92 | B120: 822000 | C120: ПРИМАЊА ОД ПРОДАЈЕ ЗАЛИХА ПРОИЗВОДЊЕ (93) | D120: =D121 -> 0 | E120: 0 | F120: 0 | G120: 0 | H120: 0 | I120: 0 | J120: 0 | K120: 0 | L120: 0 | M120: 0 | N120: 0 | O120: 0
A121: 93 | B121: 822100 | C121: Примања од продаје залиха производње | N121: 0 | O121: 0
A122: 94 | B122: 823000 | C122: ПРИМАЊА ОД ПРОДАЈЕ РОБЕ ЗА ДАЉУ ПРОДАЈУ (95) | D122: =D123 -> 0 | E122: 0 | F122: 0 | G122: 0 | H122: 0 | I122: 0 | J122: 0 | K122: 0 | L122: 0 | M122: 0 | N122: 0 | O122: 0
A123: 95 | B123: 823100 | C123: Примања од продаје робе за даљу продају | N123: 0 | O123: 0
A124: 96 | B124: 830000 | C124: ПРИМАЊА ОД ПРОДАЈЕ ДРАГОЦЕНОСТИ (97) | D124: =D125 -> 0 | E124: 0 | F124: 0 | G124: 0 | H124: 0 | I124: 0 | J124: 0 | K124: 0 | L124: 0 | M124: 0 | N124: 0 | O124: 0
A125: 97 | B125: 831000 | C125: ПРИМАЊА ОД ПРОДАЈЕ ДРАГОЦЕНОСТИ (98) | D125: 0 | E125: 0 | F125: 0 | G125: 0 | H125: 0 | I125: 0 | J125: 0 | K125: 0 | L125: 0 | M125: 0 | N125: 0 | O125: 0
A126: 98 | B126: 831100 | C126: Примања од продаје драгоцености | N126: 0 | O126: 0
A127: 99 | B127: 840000 | C127: ПРИМАЊА ОД ПРОДАЈЕ ПРИРОДНЕ ИМОВИНЕ (100 + 102 + 104) | D127: =D128+D130+D132 -> 0 | E127: 0 | F127: 0 | G127: 0 | H127: 0 | I127: 0 | J127: 0 | K127: 0 | L127: 0 | M127: 0 | N127: 0 | O127: 0
A128: 100 | B128: 841000 | C128: ПРИМАЊА ОД ПРОДАЈЕ ЗЕМЉИШТА (101) | D128: =D129 -> 0 | E128: 0 | F128: 0 | G128: 0 | H128: 0 | I128: 0 | J128: 0 | K128: 0 | L128: 0 | M128: 0 | N128: 0 | O128: 0
A129: 101 | B129: 841100 | C129: Примања од продаје земљишта | N129: 0 | O129: 0
A130: 102 | B130: 842000 | C130: ПРИМАЊА ОД ПРОДАЈЕ ПОДЗЕМНИХ БЛАГА (103) | D130: =D131 -> 0 | E130: 0 | F130: 0 | G130: 0 | H130: 0 | I130: 0 | J130: 0 | K130: 0 | L130: 0 | M130: 0 | N130: 0 | O130: 0
A131: 103 | B131: 842100 | C131: Примања од продаје подземних блага | N131: 0 | O131: 0
A132: 104 | B132: 843000 | C132: ПРИМАЊА ОД ПРОДАЈЕ ШУМА И ВОДА (105) | D132: =D133 -> 0 | E132: 0 | F132: 0 | G132: 0 | H132: 0 | I132: 0 | J132: 0 | K132: 0 | L132: 0 | M132: 0 | N132: 0 | O132: 0
A133: 105 | B133: 843100 | C133: Примања од продаје шума и вода | N133: =SUM(H133,J133,L133) -> 0 | O133: 0
A134: 106 | B134: 900000 | C134: ПРИМАЊА ОД ЗАДУЖИВАЊА И ПРОДАЈЕ ФИНАНСИЈСКЕ ИМОВИНЕ (107 + 126) | D134: =D135+D154 -> 0 | E134: =E135+E154 -> 0 | F134: 0 | G134: 0 | H134: 0 | I134: 0 | J134: 0 | K134: 0 | L134: 0 | M134: 0 | N134: 0 | O134: 0
A135: 107 | B135: 910000 | C135: ПРИМАЊА ОД ЗАДУЖИВАЊА (108+118) | D135: =D136+D146 -> 0 | E135: =E136+E146 -> 0 | F135: 0 | G135: 0 | H135: 0 | I135: 0 | J135: 0 | K135: 0 | L135: 0 | M135: 0 | N135: 0 | O135: 0
A136: 108 | B136: 911000 | C136: ПРИМАЊА ОД ДОМАЋИХ ЗАДУЖИВАЊА (од 109 до 117) | D136: =SUM(D137:D145) -> 0 | E136: 0 | F136: 0 | G136: 0 | H136: 0 | I136: 0 | J136: 0 | K136: 0 | L136: 0 | M136: 0 | N136: 0 | O136: 0
A137: 109 | B137: 911100 | C137: Примања од емитовања домаћих хартија од вредности, изузев акција | N137: 0 | O137: 0
A138: 110 | B138: 911200 | C138: Примања од задуживања од осталих нивоа власти | N138: 0 | O138: 0
A139: 111 | B139: 911300 | C139: Примања од задуживања од јавних финансијских институција у земљи | N139: 0 | O139: 0
A140: 112 | B140: 911400 | C140: Примања од задуживања од пословних банака у земљи | N140: 0 | O140: 0
A141: 113 | B141: 911500 | C141: Примања од задуживања код осталих поверилаца у земљи | N141: 0 | O141: 0
A142: 114 | B142: 911600 | C142: Примања од задуживања од домаћинстава у земљи | N142: 0 | O142: 0
A143: 115 | B143: 911700 | C143: Примања од домаћих финансијских деривата | N143: 0 | O143: 0
A144: 116 | B144: 911800 | C144: Примања од домаћих меница | N144: 0 | O144: 0
A145: 117 | B145: 911900 | C145: Исправка унутрашњег дуга | N145: 0 | O145: 0
A146: 118 | B146: 912000 | C146: ПРИМАЊА ОД ИНОСТРАНОГ ЗАДУЖИВАЊА (од 119 + 125) | D146: =SUM(D147:D153) -> 0 | E146: 0 | F146: 0 | G146: 0 | H146: 0 | I146: 0 | J146: 0 | K146: 0 | L146: 0 | M146: 0 | N146: 0 | O146: 0
A147: 119 | B147: 912100 | C147: Примања од емитовања хартија од вредности, изузев акција, на иностраном финансијском тржишту | N147: 0 | O147: 0
A148: 120 | B148: 912200 | C148: Примања од задуживања од иностраних држава | N148: 0 | O148: 0
A149: 121 | B149: 912300 | C149: Примања од задуживања од мултилатералних институција | N149: 0 | O149: 0
A150: 122 | B150: 912400 | C150: Примања од задуживања од иностраних пословних банака | N150: 0 | O150: 0
A151: 123 | B151: 912500 | C151: Примања од задуживања од осталих иностраних поверилаца | N151: 0 | O151: 0
A152: 124 | B152: 912600 | C152: Примања од иностраних финансијских деривата | N152: 0 | O152: 0
A153: 125 | B153: 912900 | C153: Исправка спољног дуга | N153: 0 | O153: 0
A154: 126 | B154: 920000 | C154: ПРИМАЊА ОД ПРОДАЈЕ ФИНАНСИЈСКЕ ИМОВИНЕ (127 + 137) | D154: =D155+D165 -> 0 | E154: 0 | F154: 0 | G154: 0 | H154: 0 | I154: 0 | J154: 0 | K154: 0 | L154: 0 | M154: 0 | N154: 0 | O154: 0
A155: 127 | B155: 921000 | C155: ПРИМАЊА ОД ПРОДАЈЕ ДОМАЋЕ ФИНАНСИЈСКЕ ИМОВИНЕ (од 128 до 136) | D155: =SUM(D156:D164) -> 0 | E155: 0 | F155: 0 | G155: 0 | H155: 0 | I155: 0 | J155: 0 | K155: 0 | L155: 0 | M155: 0 | N155: 0 | O155: 0
A156: 128 | B156: 921100 | C156: Примања од продаје домаћих хартија од вредности, изузев акција | N156: 0 | O156: 0
A157: 129 | B157: 921200 | C157: Примања од отплате кредита датих осталим нивоима власти | N157: 0 | O157: 0
A158: 130 | B158: 921300 | C158: Примања од отплате кредита датих домаћим јавним финансијским институцијама | N158: 0 | O158: 0
A159: 131 | B159: 921400 | C159: Примања од отплате кредита домаћим пословним банкама | N159: 0 | O159: 0
A160: 132 | B160: 921500 | C160: Примања од отплате кредита датих домаћим јавним нефинансијским институцијама | N160: 0 | O160: 0
A161: 133 | B161: 921600 | C161: Примања од отплате кредита датих физичким лицима и домаћинствима у земљи | N161: 0 | O161: 0
A162: 134 | B162: 921700 | C162: Примања од отплате кредита датих удружењима грађана у земљи | N162: 0 | O162: 0
A163: 135 | B163: 921800 | C163: Примања од отплате кредита датих нефинансијским приватним предузећима у земљи | N163: 0 | O163: 0
A164: 136 | B164: 921900 | C164: Примања од продаје домаћих акција и осталог капитала | N164: 0 | O164: 0
A165: =A164+1 -> 137 | B165: 922000 | C165: ПРИМАЊА ОД ПРОДАЈЕ СТРАНЕ ФИНАНСИЈСКЕ ИМОВИНЕ (од 138 до 145) | D165: =SUM(D166:D173) -> 0 | E165: =SUM(E166:E173) -> 0 | F165: 0 | G165: 0 | H165: 0 | I165: 0 | J165: 0 | K165: 0 | L165: 0 | M165: 0 | N165: 0 | O165: 0
A166: 138 | B166: 922100 | C166: Примања од продаје страних хартија од вредности, изузев акција | N166: 0 | O166: 0
A167: 139 | B167: 922200 | C167: Примања од отплате кредита датих страним владама | N167: 0 | O167: 0
A168: 140 | B168: 922300 | C168: Примања од отплате кредита датих међународним организацијама | N168: 0 | O168: 0
A169: 141 | B169: 922400 | C169: Примања од отплате кредита датих страним пословним банкама | N169: 0 | O169: 0
A170: 142 | B170: 922500 | C170: Примања од отплате кредита датих страним нефинансијским институцијама | N170: 0 | O170: 0
A171: 143 | B171: 922600 | C171: Примања од отплате кредита датих страним невладиним организацијама | N171: 0 | O171: 0
A172: 144 | B172: 922700 | C172: Примања од продаје страних акција и осталог капитала | N172: 0 | O172: 0
A173: 145 | B173: 922800 | C173: Примања од продаје стране валуте | N173: 0 | O173: 0
A174: 146 | C174: УКУПНИ ПРИХОДИ, ПРИМАЊА И ПРЕНЕТА СРЕДСТВА ИЗ ПРЕТХОДНЕ ГОДИНЕ (1 + 8 + 81 + 106) | D174: =D29+D36+D109+D134 -> 0 | E174: =E29+E36+E109+E134 -> 0 | F174: 0 | G174: 0 | H174: 2000000 | I174: 0 | J174: 0 | K174: 0 | L174: 0 | M174: 0 | N174: =SUM(H174,J174,L174) -> 2000000 | O174: =SUM(I174,K174,M174) -> 0
A175: 147 | B175: 400000 | C175: ТЕКУЋИ РАСХОДИ (148+166+211+226+250+263+279+294) | D175: =D176+D194+D239+D254+D278+D291+D307+D322 -> 0 | E175: 0 | F175: 0 | G175: 0 | H175: 0 | I175: 0 | J175: 0 | K175: 0 | L175: 0 | M175: 0 | N175: 0 | O175: 0
A176: 148 | B176: 410000 | C176: РАСХОДИ ЗА ЗАПОСЛЕНЕ (149+151+155+157+162+164) | D176: =D177+D179+D183+D185+D190+D192 -> 0 | E176: =E177+E179+E183+E185+E190+E192 -> 0 | F176: 0 | G176: 0 | H176: 0 | I176: 0 | J176: 0 | K176: 0 | L176: 0 | M176: 0 | N176: 0 | O176: 0
A177: 149 | B177: 411000 | C177: ПЛАТЕ, ДОДАЦИ И НАКНАДЕ ЗАПОСЛЕНИХ (ЗАРАДЕ) (150) | D177: =D178 -> 0 | E177: 0 | F177: 0 | G177: 0 | H177: 0 | I177: 0 | J177: 0 | K177: 0 | L177: 0 | M177: 0 | N177: 0 | O177: 0
A178: 150 | B178: 411100 | C178: Плате, додаци и накнаде запослених | N178: 0 | O178: 0
A179: 151 | B179: 412000 | C179: СОЦИЈАЛНИ ДОПРИНОСИ НА ТЕРЕТ ПОСЛОДАВЦА (од 152 до 154) | D179: =SUM(D180:D182) -> 0 | E179: 0 | F179: 0 | G179: 0 | H179: 0 | I179: 0 | J179: 0 | K179: 0 | L179: 0 | M179: 0 | N179: 0 | O179: 0
A180: 152 | B180: 412100 | C180: Допринос за пензијско и инвалидско осигурање | N180: 0 | O180: 0
A181: 153 | B181: 412200 | C181: Допринос за здравствено осигурање | N181: 0 | O181: 0
A182: 154 | B182: 412300 | C182: Допринос за незапосленост | N182: 0 | O182: 0
A183: 155 | B183: 413000 | C183: НАКНАДЕ У НАТУРИ (156) | D183: =D184 -> 0 | E183: 0 | F183: 0 | G183: 0 | H183: 0 | I183: 0 | J183: 0 | K183: 0 | L183: 0 | M183: 0 | N183: 0 | O183: 0
A184: 156 | B184: 413100 | C184: Накнаде у натури | N184: 0 | O184: 0
A185: 157 | B185: 414000 | C185: СОЦИЈАЛНА ДАВАЊА ЗАПОСЛЕНИМА (од 158 до 161) | D185: =SUM(D186:D189) -> 0 | E185: 0 | F185: 0 | G185: 0 | H185: 0 | I185: 0 | J185: 0 | K185: 0 | L185: 0 | M185: 0 | N185: 0 | O185: 0
A186: 158 | B186: 414100 | C186: Исплата накнада за време одсуствовања с посла на терет фондова | N186: 0 | O186: 0
A187: 159 | B187: 414200 | C187: Расходи за образовање деце запослених | N187: 0 | O187: 0
A188: 160 | B188: 414300 | C188: Отпремнине и помоћи | N188: 0 | O188: 0
A189: 161 | B189: 414400 | C189: Помоћ у медицинском лечењу запосленог или чланова уже породице и друге помоћи запосленом | N189: 0 | O189: 0
A190: 162 | B190: 415000 | C190: НАКНАДА ТРОШКОВА ЗА ЗАПОСЛЕНЕ (163) | D190: =D191 -> 0 | E190: 0 | F190: 0 | G190: 0 | H190: 0 | I190: 0 | J190: 0 | K190: 0 | L190: 0 | M190: 0 | N190: 0 | O190: 0
A191: 163 | B191: 415100 | C191: Накнаде трошкова за запослене | N191: 0 | O191: 0
A192: 164 | B192: 416000 | C192: НАГРАДЕ ЗАПОСЛЕНИМА И ОСТАЛИ ПОСЕБНИ РАСХОДИ (165) | D192: =D193 -> 0 | E192: 0 | F192: 0 | G192: 0 | H192: 0 | I192: 0 | J192: 0 | K192: 0 | L192: 0 | M192: 0 | N192: 0 | O192: 0
A193: 165 | B193: 416100 | C193: Награде запосленима и остали посебни расходи | N193: 0 | O193: 0
A194: 166 | B194: 420000 | C194: КОРИШЋЕЊЕ УСЛУГА И РОБА (167 + 175 + 181 + 190 + 198 + 201) | D194: =D195+D203+D209+D218+D226+D229 -> 0 | E194: 0 | F194: 0 | G194: 0 | H194: 0 | I194: 0 | J194: 0 | K194: 0 | L194: 0 | M194: 0 | N194: =SUM(H194,J194,L194) -> 0 | O194: 0
A195: 167 | B195: 421000 | C195: СТАЛНИ ТРОШКОВИ (од 168 до 174) | D195: =SUM(D196:D202) -> 0 | E195: 0 | F195: 0 | G195: 0 | H195: 0 | I195: 0 | J195: 0 | K195: 0 | L195: 0 | M195: 0 | N195: 0 | O195: 0
A196: 168 | B196: 421100 | C196: Трошкови платног промета и банкарских услуга | N196: 0 | O196: 0
A197: 169 | B197: 421200 | C197: Енергетске услуге | N197: 0 | O197: 0
A198: 170 | B198: 421300 | C198: Комуналне услуге | N198: 0 | O198: 0
A199: 171 | B199: 421400 | C199: Услуге комуникација | N199: 0 | O199: 0
A200: 172 | B200: 421500 | C200: Трошкови осигурања | N200: 0 | O200: 0
A201: 173 | B201: 421600 | C201: Закуп имовине и опреме | N201: 0 | O201: 0
A202: 174 | B202: 421900 | C202: Остали трошкови | N202: 0 | O202: 0
A203: 175 | B203: 422000 | C203: ТРОШКОВИ ПУТОВАЊА (од 176 до 180) | D203: =SUM(D204:D208) -> 0 | E203: 0 | F203: 0 | G203: 0 | H203: 0 | I203: 0 | J203: 0 | K203: 0 | L203: 0 | M203: 0 | N203: 0 | O203: 0
A204: 176 | B204: 422100 | C204: Трошкови службених путовања у земљи | N204: 0 | O204: 0
A205: 177 | B205: 422200 | C205: Трошкови службених путовања у иностранство | N205: 0 | O205: 0
... 254 more rows

Sheet Упутство
A9: Поступак за попуњавање образаца
A12: I | B12: ПОДЕШАВАЊЕ ПОЧЕТНИХ ПАРАМЕТАРА:
B13: Прво што је потребно урадити јесте да омогућите макрое у Вашој верзији Ексела. У зависности од верзије по покретању документа добићете обавештење да су макрои онемогућени и питање да ли желите да омогућите макрое. Кликом на опцију "Еnable this content" или "Enable macros" омогућавају се програмске процедуре које су неопходне за рад документа.
B14: Након омогућавања макроа у радном листу "Програм", у ћелији "D4" изаберете назив Програма. Овим поступком сте подесили параметре за рад у радним листовима "Програмска активност" и "Пројекат".
A17: I | B17: КОПИРАЊЕ ПОТРЕБНОГ БРОЈA SHEET-ОВА ЗА ПРОГРАМСКЕ АКТИВНОСТИ И ПРОЈЕКТЕ
B18: Сваки програм се састоји из различитог броја програмских активности и пројеката те је неопходно да за онај број програмских активности и пројеката који Вам је потребан ископирате радне листове "Програмска активност" и "Пројекат". Поступак копирања је следећи:
B19: 1) За нову програмску активност : Кликните десним кликом на радни лист - "Програмска активност" и изаберите опцију "Move or copy". Након тога приказаће Вам се прозор у коме треба у одељку "Before sheet" одабрати позицију новог радног листа ("Sheet"-a) односно Програмске активности. Kликом на један од понуђених радних листова бирате позицију нове програмске активности, и то тако што се нова програмска активност позиционира испред изабраног постојећег радног листа. Након избора позиције обавезно штиклирате опцију "Create a copy" а затим кликните на ОК.
B20: Препоручљиво је да приликом избора позиције за нову програмску активност у одељку "Before sheet" изаберете радни лист - "Пројекат" како би се испоштовао редослед у позиционирању (најпре програм, затим све програмске активности у оквиру програма и на крају сви пројекти у оквиру изабраног програма).
B21: 2) За нови пројекат: Кликните десним кликом на радни лист "Пројекат" и изаберите опцију "Move or copy". Након тога приказаће Вам се прозор у коме треба у одељку "Before sheet" одабрати позицију новог радног листа ("Sheet"-a) односно Пројекта. Kликом на један од понуђених радних листова бирате позицију новог пројекта, и то тако што се нови пројекат позиционира испред изабраног постојећег радног листа. Препоручљиво је да у одељку "Before sheet" за нови пројекат изаберете радни лист - "Упутство". Након избора позиције штиклирате опцију "Create a copy" затим кликнете на ОК.
A23: II | B23: ЗНАЧЕЊЕ ПОЈЕДИНИХ НАСЛОВА КОД ПРОГРАМА, ПРОГРАМСКИХ АКТИВНОСТИ И ПРОЈЕКАТА И ИНФОРМАЦИЈЕ КОЈЕ СЕ УНОСЕ
B24: 1) У табелама у којима се исказују индикатори:
B26: - наслов колоне "Вредност у базној години (2017)" односи се на иницијалну референтну вредност индикатора у односу на коју настојимо да пратимо промене током времена (у буџетском циклусу за 2019. годину то ће бити 2017. година, кроз наредне буџетске циклусе ће бити расположиве вредности са краја 2018/2019/итд.). За буџетску кампању 2019., као иницијалну референтну вредност у овој колони треба унети вредност према расположивим подацима за крај 2017. године тј. из завршног рачуна. Уколико нису познати подаци о вредности индикатора за крај 2017. године, унети вредност индикатора из периода који претходи крају 2017. године и за који су подаци доступни (нпр. средина 2017. године, крај 2016. године и сл.)
B27: - наслов колоне "Очекивана вредност у 2018. години" односи се на вредност индикатора пројектовану за крај текуће године у којој се припрема буџет за наредну годину. Будући да у периоду припреме буџета за 2019. годину нису познате вредности индикатора које ће бити коначно остварене до краја текуће 2018. године, у ову колону уносе се планиране/очекиване вредности индикатора. Уколико се у циклусу припреме буџета за 2019. годину користи исти индикатор који је коришћен и у циклусу за 2018. годину, у ову колону уноси се вредност индикатора која је исказана као пројекција за 2018. годину уколико је она и даље реална, а уколико није реална потребно је унети вредност индикатора за коју се објективно процењује да ће бити остварена до краја 2018. године.
B28: - У колонама које се односе на циљане вредности за 2019., 2020. и 2021. годину, корисник уноси очекиване вредности индикатора према пројекцијама за крај сваке односне године.
B29: 2) У табелама у којима се исказују приходи / примања и расходи/издаци :
B30: - наслов колоне "Конто" се односи на шифре конта прописаних Правилником о класификационом оквиру и контном плану за буџетски систем на нивоу класе, категорије, групе и синтетичког конта (четвороцифрени) ниво, - наслов колоне "ОПИС" се односи на назив шифре конта . - наслов колоне "Вредност у базној години (2017)“ односи се на вредност прихода/расхода из последњег завршног рачуна буџетског корисника. За буџетску кампању 2019. то је завршни рачун из 2017. године. У наредним буџетским циклусима, корисници коригују године у складу са буџетском кампањом која је у току;
B31: - наслов колоне "Очекивана вредност у 2018. години“ односи се на вредност прихода/расхода који је усвојен последњом Одлуком о буџету општине/града односно финансијским планом буџетског корисника. За буџетску кампању 2019. то је Одлука о буџету или Одлука о последњем ребалансу за 2018. годину у тренутку почетка припреме буџета за 2019. годину.
B32: У оквиру сваке године се налазе две колоне "Приходи из буџета" и "Приходи из осталих извора"
B33: При томе, директни и индиректни корисници буџета локалне самоуправе: 1) у колони "Приходи из буџета" исказују се искључиво планирана средства (приходи и примања, односно расходи и издаци) из извора финансирања 01 - Приходи из буџета, а 2) у колони "Приходи из осталих извора" исказују се укупно планирана средства (приходи и примања, односно расходи и издаци) из свих осталих извора (извори финансирања од 03 – 16 и 56 ).
B34: НАПОМЕНА: Када је реч о индиректним корисницима Републичког буџета: 1) у колони "Приходи из буџета" исказују се искључиво планирана средства (приходи и примања, односно расходи и издаци) која ће добити из буџета Републике, а 2) у колони "Приходи из осталих извора" исказују се укупно планирана средства (приходи и примања, односно расходи и издаци) на извору 07 - која ће добити из буџета локлане самоуправе, као и на извору 06 - средства добијена од донација.
A36: III | B36: ПОПУЊАВАЊЕ ПРОГАМА, ПРОГРАМСКИХ АКТИВНОСТИ И ПРОЈЕКАТА
B37: 1) За Програм: Програмска класификација је дефинисана Анексом 5 Упутства за припрему програмског буџета тако да називе програма програма , шифру програма, сектор коме припада програм и сврху програма можете преузети из материјала СКГО-а, тако да почетак попуњавања креће од Основа програма. Образац Програм треба да прикаже консолидоване податке свих програмских активности и пројеката које корисник попуњава.
B39: 2) За програмску активност: Свака појединачна програмска активност се попуњавана у посебном радном листу. У зависности од изабране програмске активности, у делу обрасца који се односи на дефинисање циљева и индикатора можете користити циљеве и индикаторе који су дефинисани од стране СКГО-а, али је остављена могућност за сопствено дефинисање.
B40: 3) За пројекте: у ћелији "D5" упишите шифру програма коме припада пројекат а у ћелији "Е5" упишите шифру пројекта у формату П1,П2,П3.итд у зависности од редоследа пројеката у оквиру програма. За пројекте које ЛС реализује заједнос са републичким органом користити шифру пројекта коју је одредио републички орган. Поступак попуњавања дела који се односи на трошкове и изворе финансирања је идентичан као и код програмске активности.
B43: За више информација о попуњавању образаца погледајте Упутство за попуњавање образаца на сајту www.skgo.org.rs
